Workbook

Sheet ACOP2020rawdata_forpublication
A1: Status | B1: 1.0 RSPO Member Particulars - Member Name | C1: 1.0 RSPO Member Particulars - Membership Number | D1: 1.0 RSPO Member Particulars - Membership Sector | E1: 1.0 RSPO Member Particulars - Membership Category | F1: 1.0 RSPO Member Particulars - Country | G1: 2.0 Does your company or organisation produce, process, consume or sell any palm oil or any products containing derivatives of palm oil? | H1: 2.1 Please select all description(s) that describe the palm oil-related activities of your company or organisation. Multiple selections are allowed, and not limited to the primary sector of the member's RSPO membership. You will be required to complete the relevant ACOP section based on your selection(s). For Environmental/Conservation NGO and Social/Development NGO RSPO members that consume or retail palm oil or products containing palm oil, you will be required to answer the relevant supply chain sector ACOP form that must include the volumes of palm oil or products containing palm oil consumed or retailed under your organisation's own brands. ‚ç∞ | I1: 2.2 Please select all the sectors that best describe the business activities of your company or organisation, including your primary RSPO membershop sector. You may select multiple sectors and will be required to complete the ACOP form for the relevant sectors ‚ç∞ | J1: RT.1.1 Please state your company's main activity(ies) within the palm oil supply chain. Please select all options that apply to your operations. - Selected Choice | K1: RT.1.1 Please state your company's main activity(ies) within the palm oil supply chain. Please select all options that apply to your operations. - Other - Text | L1: RT.2.1 Please list down all operations and subsidiaries using palm oil, palm kernel oil and related products that are owned and/or managed by the member, including those under Group Membership 50%) or under management control by the member, as declared under the RSPO Group membership.">‚ç∞ | M1: RT.2.1.1 In which markets does your company retail goods with palm oil and oil palm products? ‚ç∞ | N1: DL.2.0 In order to facilitate ease of reporting and transparency, RSPO members operating within the palm oil demand supply chain can now choose to report palm oil and palm oil product volumes on: 1) an aggregate level (as in previous ACOP reporting cycles) OR 2) by up to 5 individual subsidiaries. Members with more than 5 subsidiaries will be required to aggregate the volumes of remaining subsidiaries into a separate total. Please indicate whether you would like to declare your palm oil and palm oil product volumes in aggregate or by subsidiaries ‚ç∞ | O1: DL.2.1 Please state the number of subsidiaries you would like to declare separately (to a maximum of 5) | P1: 1 - DL.2.1.1 Please state the name of this subsidiary | Q1: 1 - DL.2.1.2 In which markets does this subsidiary operate? | R1: 1 - DL.2.1.3 Please provide additional information of this subsidiary's operations | S1: RT.2.2 Total volume of uncertified and certified palm oil, palm kernel oil and related products purchased for use in your company's own-brand products. Third-party brand products containing palm oil should be excluded. ‚ç∞ - Total volume of crude palm oil (tonnes) <span style="font-size:22px;font-weight: bold" title="Volume used for January-December during the ACOP reporting period. This volume includes certified and uncertified crude palm oil.">‚ç∞</span> | T1: RT.2.2 Total volume of uncertified and certified palm oil, palm kernel oil and related products purchased for use in your company's own-brand products. Third-party brand products containing palm oil should be excluded. ‚ç∞ - Total volume of crude palm kernel oil (tonnes) <span style="font-size:22px;font-weight: bold" title="Volume used for January-December during the ACOP reporting period. This volume includes certified and uncertified crude palm kernel oil.">‚ç∞</span> | U1: RT.2.2 Total volume of uncertified and certified palm oil, palm kernel oil and related products purchased for use in your company's own-brand products. Third-party brand products containing palm oil should be excluded. ‚ç∞ - Total volume of palm kernel expeller (tonnes) <span style="font-size:22px;font-weight: bold" title="Volume used for January-December during the ACOP reporting period. This volume includes certified and uncertified palm kernel expeller.">‚ç∞</span> | V1: RT.2.2 Total volume of uncertified and certified palm oil, palm kernel oil and related products purchased for use in your company's own-brand products. Third-party brand products containing palm oil should be excluded. ‚ç∞ - Total volume of crude palm oil/palm kernel oil-based derivatives and fractions (tonnes) <span style="font-size:22px;font-weight: bold" title="Volume used for January-December during the ACOP reporting period. This volume includes certified and uncertified crude palm oil and palm kernel oil derivatives and fractions.">‚ç∞</span> | W1: RT.2.2.1 Please estimate the percentage of derivatives and fractions (reported in Question RT.2.2) derived from palm oil or from palm kernel oil. The default split for volumes is assumed to be 80% palm oil-based derivatives and 20% palm kernel oil-based derivatives. - Palm oil-based derivatives and fractions | X1: RT.2.2.1 Please estimate the percentage of derivatives and fractions (reported in Question RT.2.2) derived from palm oil or from palm kernel oil. The default split for volumes is assumed to be 80% palm oil-based derivatives and 20% palm kernel oil-based derivatives. - Palm kernel oil-based derivatives and fractions | Y1: RT.2.3 Please estimate the regional distribution of your company's uncertified and certified palm oil, palm kernel oil and related products sales (as declared in Question 2.2) in the following countries/regions. In cases where sales distribution data is not available, members may use manufacturing regions as a proxy for regional usage of certified volumes. ‚ç∞ - Europe <span style="font-size:22px;font-weight: bold" title="Albania, Andorra, Austria, Belarus, Belgium, Bosnia and Herzegovina, Bulgaria, Croatia, Cyprus, Czech Republic, Denmark, Estonia, Finland, France, Germany, Gibraltar, Greece, Guernsey, Hungary, Iceland, Ireland, Isle of Man, Italy, Jersey, Kosovo, Latvia, Liechtenstein, Lithuania, Luxembourg, Macedonia, Malta, Moldova, Monaco, Montenegro, Netherlands, North Macedonia, Norway, Poland, Portugal, Romania, Russia, San Marino, Serbia, Slovakia, Slovenia, Spain, Sweden, Switzerland, Ukraine, United Kingdom, Vatican City">‚ç∞</span> | Z1: RT.2.3 Please estimate the regional distribution of your company's uncertified and certified palm oil, palm kernel oil and related products sales (as declared in Question 2.2) in the following countries/regions. In cases where sales distribution data is not available, members may use manufacturing regions as a proxy for regional usage of certified volumes. ‚ç∞ - North America <span style="font-size:22px;font-weight: bold" title="Canada, USA">‚ç∞</span> | AA1: RT.2.3 Please estimate the regional distribution of your company's uncertified and certified palm oil, palm kernel oil and related products sales (as declared in Question 2.2) in the following countries/regions. In cases where sales distribution data is not available, members may use manufacturing regions as a proxy for regional usage of certified volumes. ‚ç∞ - Malaysia | AB1: RT.2.3 Please estimate the regional distribution of your company's uncertified and certified palm oil, palm kernel oil and related products sales (as declared in Question 2.2) in the following countries/regions. In cases where sales distribution data is not available, members may use manufacturing regions as a proxy for regional usage of certified volumes. ‚ç∞ - Indonesia | AC1: RT.2.3 Please estimate the regional distribution of your company's uncertified and certified palm oil, palm kernel oil and related products sales (as declared in Question 2.2) in the following countries/regions. In cases where sales distribution data is not available, members may use manufacturing regions as a proxy for regional usage of certified volumes. ‚ç∞ - China | AD1: RT.2.3 Please estimate the regional distribution of your company's uncertified and certified palm oil, palm kernel oil and related products sales (as declared in Question 2.2) in the following countries/regions. In cases where sales distribution data is not available, members may use manufacturing regions as a proxy for regional usage of certified volumes. ‚ç∞ - India | AE1: RT.2.3 Please estimate the regional distribution of your company's uncertified and certified palm oil, palm kernel oil and related products sales (as declared in Question 2.2) in the following countries/regions. In cases where sales distribution data is not available, members may use manufacturing regions as a proxy for regional usage of certified volumes. ‚ç∞ - Latin America <span style="font-size:22px;font-weight: bold" title="Anguilla, Antigua and Barbuda, Argentina, Aruba, Bahamas, Barbados, Belize, Bolivia, Brazil, British Virgin Islands, Cayman Islands, Chile, Colombia, Costa Rica, Cuba, Cura√ßao, Dominica, Dominican Republic, Ecuador, El Salvador, Grenada, Guatemala, Guyana, Haiti, Honduras, Jamaica, Mexico, Montserrat, Nicaragua, Panama, Paraguay, Peru, Saint Barth√©lemy, Saint Kitts and Nevis, Saint Lucia, Saint Martin, Saint Vincent and the Grenadines, Sint Maarten, Suriname, Trinidad and Tobago, Turks and Caicos Islands, U.S. Virgin Islands, Uruguay, Venezuela">‚ç∞</span> | AF1: RT.2.3 Please estimate the regional distribution of your company's uncertified and certified palm oil, palm kernel oil and related products sales (as declared in Question 2.2) in the following countries/regions. In cases where sales distribution data is not available, members may use manufacturing regions as a proxy for regional usage of certified volumes. ‚ç∞ - Africa <span style="font-size:22px;font-weight: bold" title="Algeria, Angola, Benin, Botswana, Burkina Faso, Burundi, Cameroon, Cape Verde, Central African Republic, Chad, Comoros, Democratic Republic of Congo, Republic of Congo, C√¥te d'Ivoire, Djibouti, Egypt, Equatorial Guinea, Eritrea, Eswatini, Ethiopia, Gabon, Gambia, Ghana, Guinea, Guinea-Bissau, Kenya, Lesotho, Liberia, Libya, Madagascar, Malawi, Mali, Mauritania, Mauritius, Morocco, Mozambique, Namibia, Niger, Nigeria, Rwanda, S√£o Tom√© and Pr√≠ncipe, Senegal, Seychelles, Sierra Leone, Somalia, South Africa, South Sudan, Sudan, Swaziland, Tanzania, Togo, Tunisia, Uganda, Zambia, Zimbabwe">‚ç∞</span> | AG1: RT.2.3 Please estimate the regional distribution of your company's uncertified and certified palm oil, palm kernel oil and related products sales (as declared in Question 2.2) in the following countries/regions. In cases where sales distribution data is not available, members may use manufacturing regions as a proxy for regional usage of certified volumes. ‚ç∞ - Rest of World <span style="font-size:22px;font-weight: bold" title="Bangladesh, Bhutan, Brunei, Cambodia, Hong Kong S.A.R., Japan, Laos, Macao S.A.R., Maldives, Mongolia, Myanmar, Nepal, North Korea, Pakistan, Papua New Guinea, Philippines, Singapore, South Korea, Sri Lanka, Taiwan Region, Thailand, Timor-Leste, Vietnam, Bermuda, Kazakhstan, Kyrgyzstan, Tajikistan, Turkmenistan, Uzbekistan, Afghanistan, Armenia, Azerbaijan, Bahrain, Georgia, Iran, Iraq, Israel, Jordan, Kuwait, Lebanon, Oman, Palestine, Qatar, Saudi Arabia, Syria, Turkey, United Arab Emirates, Yemen, American Samoa, Australia, Cocos (Keeling) Islands, Cook Islands, Fiji, French Polynesia, Guam, Kiribati, Marshall Islands, Micronesia, Nauru, New Caledonia, New Zealand, Niue, Northern Mariana Islands, Palau, Samoa, Solomon Islands, Tonga, Tuvalu, Vanuatu">‚ç∞</span> | AH1: RT.2.4 Total volume of RSPO-certified palm oil, palm kernel oil and related products purchased for use in your company's own-brand products. Third-party brand products containing palm oil should be excluded. - RSPO Credits from Mill / Crusher ‚ç∞ - 1 - RSPO Credits from Mill / Crusher ‚ç∞ - Crude/Refined Palm Oil (CSPO) | AI1: RT.2.4 Total volume of RSPO-certified palm oil, palm kernel oil and related products purchased for use in your company's own-brand products. Third-party brand products containing palm oil should be excluded. - RSPO Credits from Mill / Crusher ‚ç∞ - 1 - RSPO Credits from Mill / Crusher ‚ç∞ - Palm/Refined Kernel Oil (CSPKO) | AJ1: RT.2.4 Total volume of RSPO-certified palm oil, palm kernel oil and related products purchased for use in your company's own-brand products. Third-party brand products containing palm oil should be excluded. - RSPO Credits from Mill / Crusher ‚ç∞ - 1 - RSPO Credits from Mill / Crusher ‚ç∞ - Palm Kernel Expeller (CSPKE) | AK1: RT.2.4 Total volume of RSPO-certified palm oil, palm kernel oil and related products purchased for use in your company's own-brand products. Third-party brand products containing palm oil should be excluded. - RSPO Credits from Mill / Crusher ‚ç∞ - 1 - RSPO Credits from Mill / Crusher ‚ç∞ - Certified Derivatives and Fractions | AL1: RT.2.4 Total volume of RSPO-certified palm oil, palm kernel oil and related products purchased for use in your company's own-brand products. Third-party brand products containing palm oil should be excluded. - RSPO Credits from Independent Smallholder ‚ç∞ - 1 - RSPO Credits from Independent Smallholder ‚ç∞ - Crude/Refined Palm Oil (CSPO) | AM1: RT.2.4 Total volume of RSPO-certified palm oil, palm kernel oil and related products purchased for use in your company's own-brand products. Third-party brand products containing palm oil should be excluded. - RSPO Credits from Independent Smallholder ‚ç∞ - 1 - RSPO Credits from Independent Smallholder ‚ç∞ - Palm/Refined Kernel Oil (CSPKO) | AN1: RT.2.4 Total volume of RSPO-certified palm oil, palm kernel oil and related products purchased for use in your company's own-brand products. Third-party brand products containing palm oil should be excluded. - RSPO Credits from Independent Smallholder ‚ç∞ - 1 - RSPO Credits from Independent Smallholder ‚ç∞ - Palm Kernel Expeller (CSPKE) | AO1: RT.2.4 Total volume of RSPO-certified palm oil, palm kernel oil and related products purchased for use in your company's own-brand products. Third-party brand products containing palm oil should be excluded. - RSPO Credits from Independent Smallholder ‚ç∞ - 1 - RSPO Credits from Independent Smallholder ‚ç∞ - Certified Derivatives and Fractions | AP1: RT.2.4 Total volume of RSPO-certified palm oil, palm kernel oil and related products purchased for use in your company's own-brand products. Third-party brand products containing palm oil should be excluded. - Mass Balance (MB) ‚ç∞ - 1 - Mass Balance (MB) ‚ç∞ - Crude/Refined Palm Oil (CSPO) | AQ1: RT.2.4 Total volume of RSPO-certified palm oil, palm kernel oil and related products purchased for use in your company's own-brand products. Third-party brand products containing palm oil should be excluded. - Mass Balance (MB) ‚ç∞ - 1 - Mass Balance (MB) ‚ç∞ - Palm/Refined Kernel Oil (CSPKO) | AR1: RT.2.4 Total volume of RSPO-certified palm oil, palm kernel oil and related products purchased for use in your company's own-brand products. Third-party brand products containing palm oil should be excluded. - Mass Balance (MB) ‚ç∞ - 1 - Mass Balance (MB) ‚ç∞ - Palm Kernel Expeller (CSPKE) | AS1: RT.2.4 Total volume of RSPO-certified palm oil, palm kernel oil and related products purchased for use in your company's own-brand products. Third-party brand products containing palm oil should be excluded. - Mass Balance (MB) ‚ç∞ - 1 - Mass Balance (MB) ‚ç∞ - Certified Derivatives and Fractions | AT1: RT.2.4 Total volume of RSPO-certified palm oil, palm kernel oil and related products purchased for use in your company's own-brand products. Third-party brand products containing palm oil should be excluded. - Segregated (SG) ‚ç∞ - 1 - Segregated (SG) ‚ç∞ - Crude/Refined Palm Oil (CSPO) | AU1: RT.2.4 Total volume of RSPO-certified palm oil, palm kernel oil and related products purchased for use in your company's own-brand products. Third-party brand products containing palm oil should be excluded. - Segregated (SG) ‚ç∞ - 1 - Segregated (SG) ‚ç∞ - Palm/Refined Kernel Oil (CSPKO) | AV1: RT.2.4 Total volume of RSPO-certified palm oil, palm kernel oil and related products purchased for use in your company's own-brand products. Third-party brand products containing palm oil should be excluded. - Segregated (SG) ‚ç∞ - 1 - Segregated (SG) ‚ç∞ - Palm Kernel Expeller (CSPKE) | AW1: RT.2.4 Total volume of RSPO-certified palm oil, palm kernel oil and related products purchased for use in your company's own-brand products. Third-party brand products containing palm oil should be excluded. - Segregated (SG) ‚ç∞ - 1 - Segregated (SG) ‚ç∞ - Certified Derivatives and Fractions | AX1: RT.2.4 Total volume of RSPO-certified palm oil, palm kernel oil and related products purchased for use in your company's own-brand products. Third-party brand products containing palm oil should be excluded. - Identity Preserved (IP) ‚ç∞ - 1 - Identity Preserved (IP) ‚ç∞ - Crude/Refined Palm Oil (CSPO) | AY1: RT.2.4 Total volume of RSPO-certified palm oil, palm kernel oil and related products purchased for use in your company's own-brand products. Third-party brand products containing palm oil should be excluded. - Identity Preserved (IP) ‚ç∞ - 1 - Identity Preserved (IP) ‚ç∞ - Palm/Refined Kernel Oil (CSPKO) | AZ1: RT.2.4 Total volume of RSPO-certified palm oil, palm kernel oil and related products purchased for use in your company's own-brand products. Third-party brand products containing palm oil should be excluded. - Identity Preserved (IP) ‚ç∞ - 1 - Identity Preserved (IP) ‚ç∞ - Palm Kernel Expeller (CSPKE) | BA1: RT.2.4 Total volume of RSPO-certified palm oil, palm kernel oil and related products purchased for use in your company's own-brand products. Third-party brand products containing palm oil should be excluded. - Identity Preserved (IP) ‚ç∞ - 1 - Identity Preserved (IP) ‚ç∞ - Certified Derivatives and Fractions | BB1: RT.2.4.1 Please estimate the percentage of RSPO-certified derivatives and fractions (reported in Question RT.2.4) derived from RSPO-certified palm oil or from RSPO-certified palm kernel oil. The default split for volumes is assumed to be 80% palm oil-based derivatives and 20% palm kernel oil-based derivatives. - Certified Palm oil-based derivatives and fractions | BC1: RT.2.4.1 Please estimate the percentage of RSPO-certified derivatives and fractions (reported in Question RT.2.4) derived from RSPO-certified palm oil or from RSPO-certified palm kernel oil. The default split for volumes is assumed to be 80% palm oil-based derivatives and 20% palm kernel oil-based derivatives. - Certified Palm kernel oil-based derivatives and fractions | BD1: 1 - RT.2.5 According to the volume information you have provided in Question 2.2 and Question 2.4, your company's Certified Sustainable Palm Oil uptake is: ‚ç∞ | BE1: 1 - RT.2.5.1 Please provide additional information on your certified palm oil, palm kernel oil and related products uptake. This may include your usage of RSPO Credits to cover gaps in certified uptake, changes due to business environment, variations due to stock positions or efforts to support independent smallholders beyond volume commitments. | BF1: RT.2.6 Please estimate the regional distribution of your company's RSPO certified palm oil and palm oil-products sales (as declared in Question 2.4) in the following countries/regions. In cases where sales distribution data is not available, members may use manufacturing regions as a proxy for regional usage of certified volumes. ‚ç∞ - Europe <span style="font-size:22px;font-weight: bold" title="Albania, Andorra, Austria, Belarus, Belgium, Bosnia and Herzegovina, Bulgaria, Croatia, Cyprus, Czech Republic, Denmark, Estonia, Finland, France, Germany, Gibraltar, Greece, Guernsey, Hungary, Iceland, Ireland, Isle of Man, Italy, Jersey, Kosovo, Latvia, Liechtenstein, Lithuania, Luxembourg, Macedonia, Malta, Moldova, Monaco, Montenegro, Netherlands, North Macedonia, Norway, Poland, Portugal, Romania, Russia, San Marino, Serbia, Slovakia, Slovenia, Spain, Sweden, Switzerland, Ukraine, United Kingdom, Vatican City">‚ç∞</span> | BG1: RT.2.6 Please estimate the regional distribution of your company's RSPO certified palm oil and palm oil-products sales (as declared in Question 2.4) in the following countries/regions. In cases where sales distribution data is not available, members may use manufacturing regions as a proxy for regional usage of certified volumes. ‚ç∞ - North America <span style="font-size:22px;font-weight: bold" title="Canada, USA">‚ç∞</span> | BH1: RT.2.6 Please estimate the regional distribution of your company's RSPO certified palm oil and palm oil-products sales (as declared in Question 2.4) in the following countries/regions. In cases where sales distribution data is not available, members may use manufacturing regions as a proxy for regional usage of certified volumes. ‚ç∞ - Malaysia | BI1: RT.2.6 Please estimate the regional distribution of your company's RSPO certified palm oil and palm oil-products sales (as declared in Question 2.4) in the following countries/regions. In cases where sales distribution data is not available, members may use manufacturing regions as a proxy for regional usage of certified volumes. ‚ç∞ - Indonesia | BJ1: RT.2.6 Please estimate the regional distribution of your company's RSPO certified palm oil and palm oil-products sales (as declared in Question 2.4) in the following countries/regions. In cases where sales distribution data is not available, members may use manufacturing regions as a proxy for regional usage of certified volumes. ‚ç∞ - China | BK1: RT.2.6 Please estimate the regional distribution of your company's RSPO certified palm oil and palm oil-products sales (as declared in Question 2.4) in the following countries/regions. In cases where sales distribution data is not available, members may use manufacturing regions as a proxy for regional usage of certified volumes. ‚ç∞ - India | BL1: RT.2.6 Please estimate the regional distribution of your company's RSPO certified palm oil and palm oil-products sales (as declared in Question 2.4) in the following countries/regions. In cases where sales distribution data is not available, members may use manufacturing regions as a proxy for regional usage of certified volumes. ‚ç∞ - Latin America <span style="font-size:22px;font-weight: bold" title="Anguilla, Antigua and Barbuda, Argentina, Aruba, Bahamas, Barbados, Belize, Bolivia, Brazil, British Virgin Islands, Cayman Islands, Chile, Colombia, Costa Rica, Cuba, Cura√ßao, Dominica, Dominican Republic, Ecuador, El Salvador, Grenada, Guatemala, Guyana, Haiti, Honduras, Jamaica, Mexico, Montserrat, Nicaragua, Panama, Paraguay, Peru, Saint Barth√©lemy, Saint Kitts and Nevis, Saint Lucia, Saint Martin, Saint Vincent and the Grenadines, Sint Maarten, Suriname, Trinidad and Tobago, Turks and Caicos Islands, U.S. Virgin Islands, Uruguay, Venezuela">‚ç∞</span> | BM1: RT.2.6 Please estimate the regional distribution of your company's RSPO certified palm oil and palm oil-products sales (as declared in Question 2.4) in the following countries/regions. In cases where sales distribution data is not available, members may use manufacturing regions as a proxy for regional usage of certified volumes. ‚ç∞ - Africa <span style="font-size:22px;font-weight: bold" title="Algeria, Angola, Benin, Botswana, Burkina Faso, Burundi, Cameroon, Cape Verde, Central African Republic, Chad, Comoros, Democratic Republic of Congo, Republic of Congo, C√¥te d'Ivoire, Djibouti, Egypt, Equatorial Guinea, Eritrea, Eswatini, Ethiopia, Gabon, Gambia, Ghana, Guinea, Guinea-Bissau, Kenya, Lesotho, Liberia, Libya, Madagascar, Malawi, Mali, Mauritania, Mauritius, Morocco, Mozambique, Namibia, Niger, Nigeria, Rwanda, S√£o Tom√© and Pr√≠ncipe, Senegal, Seychelles, Sierra Leone, Somalia, South Africa, South Sudan, Sudan, Swaziland, Tanzania, Togo, Tunisia, Uganda, Zambia, Zimbabwe">‚ç∞</span> | BN1: RT.2.6 Please estimate the regional distribution of your company's RSPO certified palm oil and palm oil-products sales (as declared in Question 2.4) in the following countries/regions. In cases where sales distribution data is not available, members may use manufacturing regions as a proxy for regional usage of certified volumes. ‚ç∞ - Rest of World <span style="font-size:22px;font-weight: bold" title="Bangladesh, Bhutan, Brunei, Cambodia, Hong Kong S.A.R., Japan, Laos, Macao S.A.R., Maldives, Mongolia, Myanmar, Nepal, North Korea, Pakistan, Papua New Guinea, Philippines, Singapore, South Korea, Sri Lanka, Taiwan Region, Thailand, Timor-Leste, Vietnam, Bermuda, Kazakhstan, Kyrgyzstan, Tajikistan, Turkmenistan, Uzbekistan, Afghanistan, Armenia, Azerbaijan, Bahrain, Georgia, Iran, Iraq, Israel, Jordan, Kuwait, Lebanon, Oman, Palestine, Qatar, Saudi Arabia, Syria, Turkey, United Arab Emirates, Yemen, American Samoa, Australia, Cocos (Keeling) Islands, Cook Islands, Fiji, French Polynesia, Guam, Kiribati, Marshall Islands, Micronesia, Nauru, New Caledonia, New Zealand, Niue, Northern Mariana Islands, Palau, Samoa, Solomon Islands, Tonga, Tuvalu, Vanuatu">‚ç∞</span> | BO1: 2 - DL.2.1.1 Please state the name of this subsidiary | BP1: 2 - DL.2.1.2 In which markets does this subsidiary operate? | BQ1: 2 - DL.2.1.3 Please provide additional information of this subsidiary's operations | BR1: RT.2.2 Total volume of uncertified and certified palm oil, palm kernel oil and related products purchased for use in your company's own-brand products. Third-party brand products containing palm oil should be excluded. ‚ç∞ - Total volume of crude palm oil (tonnes) <span style="font-size:22px;font-weight: bold" title="Volume used for January-December during the ACOP reporting period. This volume includes certified and uncertified crude palm oil.">‚ç∞</span> | BS1: RT.2.2 Total volume of uncertified and certified palm oil, palm kernel oil and related products purchased for use in your company's own-brand products. Third-party brand products containing palm oil should be excluded. ‚ç∞ - Total volume of crude palm kernel oil (tonnes) <span style="font-size:22px;font-weight: bold" title="Volume used for January-December during the ACOP reporting period. This volume includes certified and uncertified crude palm kernel oil.">‚ç∞</span> | BT1: RT.2.2 Total volume of uncertified and certified palm oil, palm kernel oil and related products purchased for use in your company's own-brand products. Third-party brand products containing palm oil should be excluded. ‚ç∞ - Total volume of palm kernel expeller (tonnes) <span style="font-size:22px;font-weight: bold" title="Volume used for January-December during the ACOP reporting period. This volume includes certified and uncertified palm kernel expeller.">‚ç∞</span> | BU1: RT.2.2 Total volume of uncertified and certified palm oil, palm kernel oil and related products purchased for use in your company's own-brand products. Third-party brand products containing palm oil should be excluded. ‚ç∞ - Total volume of crude palm oil/palm kernel oil-based derivatives and fractions (tonnes) <span style="font-size:22px;font-weight: bold" title="Volume used for January-December during the ACOP reporting period. This volume includes certified and uncertified crude palm oil and palm kernel oil derivatives and fractions.">‚ç∞</span> | BV1: RT.2.2.1 Please estimate the percentage of derivatives and fractions (reported in Question RT.2.2) derived from palm oil or from palm kernel oil. The default split for volumes is assumed to be 80% palm oil-based derivatives and 20% palm kernel oil-based derivatives. - Palm oil-based derivatives and fractions | BW1: RT.2.2.1 Please estimate the percentage of derivatives and fractions (reported in Question RT.2.2) derived from palm oil or from palm kernel oil. The default split for volumes is assumed to be 80% palm oil-based derivatives and 20% palm kernel oil-based derivatives. - Palm kernel oil-based derivatives and fractions | BX1: RT.2.3 Please estimate the regional distribution of your company's uncertified and certified palm oil, palm kernel oil and related products sales (as declared in Question 2.2) in the following countries/regions. In cases where sales distribution data is not available, members may use manufacturing regions as a proxy for regional usage of certified volumes. ‚ç∞ - Europe <span style="font-size:22px;font-weight: bold" title="Albania, Andorra, Austria, Belarus, Belgium, Bosnia and Herzegovina, Bulgaria, Croatia, Cyprus, Czech Republic, Denmark, Estonia, Finland, France, Germany, Gibraltar, Greece, Guernsey, Hungary, Iceland, Ireland, Isle of Man, Italy, Jersey, Kosovo, Latvia, Liechtenstein, Lithuania, Luxembourg, Macedonia, Malta, Moldova, Monaco, Montenegro, Netherlands, North Macedonia, Norway, Poland, Portugal, Romania, Russia, San Marino, Serbia, Slovakia, Slovenia, Spain, Sweden, Switzerland, Ukraine, United Kingdom, Vatican City">‚ç∞</span> | BY1: RT.2.3 Please estimate the regional distribution of your company's uncertified and certified palm oil, palm kernel oil and related products sales (as declared in Question 2.2) in the following countries/regions. In cases where sales distribution data is not available, members may use manufacturing regions as a proxy for regional usage of certified volumes. ‚ç∞ - North America <span style="font-size:22px;font-weight: bold" title="Canada, USA">‚ç∞</span> | BZ1: RT.2.3 Please estimate the regional distribution of your company's uncertified and certified palm oil, palm kernel oil and related products sales (as declared in Question 2.2) in the following countries/regions. In cases where sales distribution data is not available, members may use manufacturing regions as a proxy for regional usage of certified volumes. ‚ç∞ - Malaysia | CA1: RT.2.3 Please estimate the regional distribution of your company's uncertified and certified palm oil, palm kernel oil and related products sales (as declared in Question 2.2) in the following countries/regions. In cases where sales distribution data is not available, members may use manufacturing regions as a proxy for regional usage of certified volumes. ‚ç∞ - Indonesia | CB1: RT.2.3 Please estimate the regional distribution of your company's uncertified and certified palm oil, palm kernel oil and related products sales (as declared in Question 2.2) in the following countries/regions. In cases where sales distribution data is not available, members may use manufacturing regions as a proxy for regional usage of certified volumes. ‚ç∞ - China | CC1: RT.2.3 Please estimate the regional distribution of your company's uncertified and certified palm oil, palm kernel oil and related products sales (as declared in Question 2.2) in the following countries/regions. In cases where sales distribution data is not available, members may use manufacturing regions as a proxy for regional usage of certified volumes. ‚ç∞ - India | CD1: RT.2.3 Please estimate the regional distribution of your company's uncertified and certified palm oil, palm kernel oil and related products sales (as declared in Question 2.2) in the following countries/regions. In cases where sales distribution data is not available, members may use manufacturing regions as a proxy for regional usage of certified volumes. ‚ç∞ - Latin America <span style="font-size:22px;font-weight: bold" title="Anguilla, Antigua and Barbuda, Argentina, Aruba, Bahamas, Barbados, Belize, Bolivia, Brazil, British Virgin Islands, Cayman Islands, Chile, Colombia, Costa Rica, Cuba, Cura√ßao, Dominica, Dominican Republic, Ecuador, El Salvador, Grenada, Guatemala, Guyana, Haiti, Honduras, Jamaica, Mexico, Montserrat, Nicaragua, Panama, Paraguay, Peru, Saint Barth√©lemy, Saint Kitts and Nevis, Saint Lucia, Saint Martin, Saint Vincent and the Grenadines, Sint Maarten, Suriname, Trinidad and Tobago, Turks and Caicos Islands, U.S. Virgin Islands, Uruguay, Venezuela">‚ç∞</span> | CE1: RT.2.3 Please estimate the regional distribution of your company's uncertified and certified palm oil, palm kernel oil and related products sales (as declared in Question 2.2) in the following countries/regions. In cases where sales distribution data is not available, members may use manufacturing regions as a proxy for regional usage of certified volumes. ‚ç∞ - Africa <span style="font-size:22px;font-weight: bold" title="Algeria, Angola, Benin, Botswana, Burkina Faso, Burundi, Cameroon, Cape Verde, Central African Republic, Chad, Comoros, Democratic Republic of Congo, Republic of Congo, C√¥te d'Ivoire, Djibouti, Egypt, Equatorial Guinea, Eritrea, Eswatini, Ethiopia, Gabon, Gambia, Ghana, Guinea, Guinea-Bissau, Kenya, Lesotho, Liberia, Libya, Madagascar, Malawi, Mali, Mauritania, Mauritius, Morocco, Mozambique, Namibia, Niger, Nigeria, Rwanda, S√£o Tom√© and Pr√≠ncipe, Senegal, Seychelles, Sierra Leone, Somalia, South Africa, South Sudan, Sudan, Swaziland, Tanzania, Togo, Tunisia, Uganda, Zambia, Zimbabwe">‚ç∞</span> | CF1: RT.2.3 Please estimate the regional distribution of your company's uncertified and certified palm oil, palm kernel oil and related products sales (as declared in Question 2.2) in the following countries/regions. In cases where sales distribution data is not available, members may use manufacturing regions as a proxy for regional usage of certified volumes. ‚ç∞ - Rest of World <span style="font-size:22px;font-weight: bold" title="Bangladesh, Bhutan, Brunei, Cambodia, Hong Kong S.A.R., Japan, Laos, Macao S.A.R., Maldives, Mongolia, Myanmar, Nepal, North Korea, Pakistan, Papua New Guinea, Philippines, Singapore, South Korea, Sri Lanka, Taiwan Region, Thailand, Timor-Leste, Vietnam, Bermuda, Kazakhstan, Kyrgyzstan, Tajikistan, Turkmenistan, Uzbekistan, Afghanistan, Armenia, Azerbaijan, Bahrain, Georgia, Iran, Iraq, Israel, Jordan, Kuwait, Lebanon, Oman, Palestine, Qatar, Saudi Arabia, Syria, Turkey, United Arab Emirates, Yemen, American Samoa, Australia, Cocos (Keeling) Islands, Cook Islands, Fiji, French Polynesia, Guam, Kiribati, Marshall Islands, Micronesia, Nauru, New Caledonia, New Zealand, Niue, Northern Mariana Islands, Palau, Samoa, Solomon Islands, Tonga, Tuvalu, Vanuatu">‚ç∞</span> | CG1: RT.2.4 Total volume of RSPO-certified palm oil, palm kernel oil and related products purchased for use in your company's own-brand products. Third-party brand products containing palm oil should be excluded. - RSPO Credits from Mill / Crusher ‚ç∞ - 2 - RSPO Credits from Mill / Crusher ‚ç∞ - Crude/Refined Palm Oil (CSPO) | CH1: RT.2.4 Total volume of RSPO-certified palm oil, palm kernel oil and related products purchased for use in your company's own-brand products. Third-party brand products containing palm oil should be excluded. - RSPO Credits from Mill / Crusher ‚ç∞ - 2 - RSPO Credits from Mill / Crusher ‚ç∞ - Palm/Refined Kernel Oil (CSPKO) | CI1: RT.2.4 Total volume of RSPO-certified palm oil, palm kernel oil and related products purchased for use in your company's own-brand products. Third-party brand products containing palm oil should be excluded. - RSPO Credits from Mill / Crusher ‚ç∞ - 2 - RSPO Credits from Mill / Crusher ‚ç∞ - Palm Kernel Expeller (CSPKE) | CJ1: RT.2.4 Total volume of RSPO-certified palm oil, palm kernel oil and related products purchased for use in your company's own-brand products. Third-party brand products containing palm oil should be excluded. - RSPO Credits from Mill / Crusher ‚ç∞ - 2 - RSPO Credits from Mill / Crusher ‚ç∞ - Certified Derivatives and Fractions | CK1: RT.2.4 Total volume of RSPO-certified palm oil, palm kernel oil and related products purchased for use in your company's own-brand products. Third-party brand products containing palm oil should be excluded. - RSPO Credits from Independent Smallholder ‚ç∞ - 2 - RSPO Credits from Independent Smallholder ‚ç∞ - Crude/Refined Palm Oil (CSPO) | CL1: RT.2.4 Total volume of RSPO-certified palm oil, palm kernel oil and related products purchased for use in your company's own-brand products. Third-party brand products containing palm oil should be excluded. - RSPO Credits from Independent Smallholder ‚ç∞ - 2 - RSPO Credits from Independent Smallholder ‚ç∞ - Palm/Refined Kernel Oil (CSPKO) | CM1: RT.2.4 Total volume of RSPO-certified palm oil, palm kernel oil and related products purchased for use in your company's own-brand products. Third-party brand products containing palm oil should be excluded. - RSPO Credits from Independent Smallholder ‚ç∞ - 2 - RSPO Credits from Independent Smallholder ‚ç∞ - Palm Kernel Expeller (CSPKE) | CN1: RT.2.4 Total volume of RSPO-certified palm oil, palm kernel oil and related products purchased for use in your company's own-brand products. Third-party brand products containing palm oil should be excluded. - RSPO Credits from Independent Smallholder ‚ç∞ - 2 - RSPO Credits from Independent Smallholder ‚ç∞ - Certified Derivatives and Fractions | CO1: RT.2.4 Total volume of RSPO-certified palm oil, palm kernel oil and related products purchased for use in your company's own-brand products. Third-party brand products containing palm oil should be excluded. - Mass Balance (MB) ‚ç∞ - 2 - Mass Balance (MB) ‚ç∞ - Crude/Refined Palm Oil (CSPO) | CP1: RT.2.4 Total volume of RSPO-certified palm oil, palm kernel oil and related products purchased for use in your company's own-brand products. Third-party brand products containing palm oil should be excluded. - Mass Balance (MB) ‚ç∞ - 2 - Mass Balance (MB) ‚ç∞ - Palm/Refined Kernel Oil (CSPKO) | CQ1: RT.2.4 Total volume of RSPO-certified palm oil, palm kernel oil and related products purchased for use in your company's own-brand products. Third-party brand products containing palm oil should be excluded. - Mass Balance (MB) ‚ç∞ - 2 - Mass Balance (MB) ‚ç∞ - Palm Kernel Expeller (CSPKE) | CR1: RT.2.4 Total volume of RSPO-certified palm oil, palm kernel oil and related products purchased for use in your company's own-brand products. Third-party brand products containing palm oil should be excluded. - Mass Balance (MB) ‚ç∞ - 2 - Mass Balance (MB) ‚ç∞ - Certified Derivatives and Fractions | CS1: RT.2.4 Total volume of RSPO-certified palm oil, palm kernel oil and related products purchased for use in your company's own-brand products. Third-party brand products containing palm oil should be excluded. - Segregated (SG) ‚ç∞ - 2 - Segregated (SG) ‚ç∞ - Crude/Refined Palm Oil (CSPO) | CT1: RT.2.4 Total volume of RSPO-certified palm oil, palm kernel oil and related products purchased for use in your company's own-brand products. Third-party brand products containing palm oil should be excluded. - Segregated (SG) ‚ç∞ - 2 - Segregated (SG) ‚ç∞ - Palm/Refined Kernel Oil (CSPKO) | CU1: RT.2.4 Total volume of RSPO-certified palm oil, palm kernel oil and related products purchased for use in your company's own-brand products. Third-party brand products containing palm oil should be excluded. - Segregated (SG) ‚ç∞ - 2 - Segregated (SG) ‚ç∞ - Palm Kernel Expeller (CSPKE) | CV1: RT.2.4 Total volume of RSPO-certified palm oil, palm kernel oil and related products purchased for use in your company's own-brand products. Third-party brand products containing palm oil should be excluded. - Segregated (SG) ‚ç∞ - 2 - Segregated (SG) ‚ç∞ - Certified Derivatives and Fractions | CW1: RT.2.4 Total volume of RSPO-certified palm oil, palm kernel oil and related products purchased for use in your company's own-brand products. Third-party brand products containing palm oil should be excluded. - Identity Preserved (IP) ‚ç∞ - 2 - Identity Preserved (IP) ‚ç∞ - Crude/Refined Palm Oil (CSPO) | CX1: RT.2.4 Total volume of RSPO-certified palm oil, palm kernel oil and related products purchased for use in your company's own-brand products. Third-party brand products containing palm oil should be excluded. - Identity Preserved (IP) ‚ç∞ - 2 - Identity Preserved (IP) ‚ç∞ - Palm/Refined Kernel Oil (CSPKO) | CY1: RT.2.4 Total volume of RSPO-certified palm oil, palm kernel oil and related products purchased for use in your company's own-brand products. Third-party brand products containing palm oil should be excluded. - Identity Preserved (IP) ‚ç∞ - 2 - Identity Preserved (IP) ‚ç∞ - Palm Kernel Expeller (CSPKE) | CZ1: RT.2.4 Total volume of RSPO-certified palm oil, palm kernel oil and related products purchased for use in your company's own-brand products. Third-party brand products containing palm oil should be excluded. - Identity Preserved (IP) ‚ç∞ - 2 - Identity Preserved (IP) ‚ç∞ - Certified Derivatives and Fractions | DA1: RT.2.4.1 Please estimate the percentage of RSPO-certified derivatives and fractions (reported in Question RT.2.4) derived from RSPO-certified palm oil or from RSPO-certified palm kernel oil. The default split for volumes is assumed to be 80% palm oil-based derivatives and 20% palm kernel oil-based derivatives. - Certified Palm oil-based derivatives and fractions | DB1: RT.2.4.1 Please estimate the percentage of RSPO-certified derivatives and fractions (reported in Question RT.2.4) derived from RSPO-certified palm oil or from RSPO-certified palm kernel oil. The default split for volumes is assumed to be 80% palm oil-based derivatives and 20% palm kernel oil-based derivatives. - Certified Palm kernel oil-based derivatives and fractions | DC1: 2 - RT.2.5 According to the volume information you have provided in Question 2.2 and Question 2.4, your company's Certified Sustainable Palm Oil uptake is: ‚ç∞ | DD1: 2 - RT.2.5.1 Please provide additional information on your certified palm oil, palm kernel oil and related products uptake. This may include your usage of RSPO Credits to cover gaps in certified uptake, changes due to business environment, variations due to stock positions or efforts to support independent smallholders beyond volume commitments. | DE1: RT.2.6 Please estimate the regional distribution of your company's RSPO certified palm oil and palm oil-products sales (as declared in Question 2.4) in the following countries/regions. In cases where sales distribution data is not available, members may use manufacturing regions as a proxy for regional usage of certified volumes. ‚ç∞ - Europe <span style="font-size:22px;font-weight: bold" title="Albania, Andorra, Austria, Belarus, Belgium, Bosnia and Herzegovina, Bulgaria, Croatia, Cyprus, Czech Republic, Denmark, Estonia, Finland, France, Germany, Gibraltar, Greece, Guernsey, Hungary, Iceland, Ireland, Isle of Man, Italy, Jersey, Kosovo, Latvia, Liechtenstein, Lithuania, Luxembourg, Macedonia, Malta, Moldova, Monaco, Montenegro, Netherlands, North Macedonia, Norway, Poland, Portugal, Romania, Russia, San Marino, Serbia, Slovakia, Slovenia, Spain, Sweden, Switzerland, Ukraine, United Kingdom, Vatican City">‚ç∞</span> | DF1: RT.2.6 Please estimate the regional distribution of your company's RSPO certified palm oil and palm oil-products sales (as declared in Question 2.4) in the following countries/regions. In cases where sales distribution data is not available, members may use manufacturing regions as a proxy for regional usage of certified volumes. ‚ç∞ - North America <span style="font-size:22px;font-weight: bold" title="Canada, USA">‚ç∞</span> | DG1: RT.2.6 Please estimate the regional distribution of your company's RSPO certified palm oil and palm oil-products sales (as declared in Question 2.4) in the following countries/regions. In cases where sales distribution data is not available, members may use manufacturing regions as a proxy for regional usage of certified volumes. ‚ç∞ - Malaysia | DH1: RT.2.6 Please estimate the regional distribution of your company's RSPO certified palm oil and palm oil-products sales (as declared in Question 2.4) in the following countries/regions. In cases where sales distribution data is not available, members may use manufacturing regions as a proxy for regional usage of certified volumes. ‚ç∞ - Indonesia | DI1: RT.2.6 Please estimate the regional distribution of your company's RSPO certified palm oil and palm oil-products sales (as declared in Question 2.4) in the following countries/regions. In cases where sales distribution data is not available, members may use manufacturing regions as a proxy for regional usage of certified volumes. ‚ç∞ - China | DJ1: RT.2.6 Please estimate the regional distribution of your company's RSPO certified palm oil and palm oil-products sales (as declared in Question 2.4) in the following countries/regions. In cases where sales distribution data is not available, members may use manufacturing regions as a proxy for regional usage of certified volumes. ‚ç∞ - India | DK1: RT.2.6 Please estimate the regional distribution of your company's RSPO certified palm oil and palm oil-products sales (as declared in Question 2.4) in the following countries/regions. In cases where sales distribution data is not available, members may use manufacturing regions as a proxy for regional usage of certified volumes. ‚ç∞ - Latin America <span style="font-size:22px;font-weight: bold" title="Anguilla, Antigua and Barbuda, Argentina, Aruba, Bahamas, Barbados, Belize, Bolivia, Brazil, British Virgin Islands, Cayman Islands, Chile, Colombia, Costa Rica, Cuba, Cura√ßao, Dominica, Dominican Republic, Ecuador, El Salvador, Grenada, Guatemala, Guyana, Haiti, Honduras, Jamaica, Mexico, Montserrat, Nicaragua, Panama, Paraguay, Peru, Saint Barth√©lemy, Saint Kitts and Nevis, Saint Lucia, Saint Martin, Saint Vincent and the Grenadines, Sint Maarten, Suriname, Trinidad and Tobago, Turks and Caicos Islands, U.S. Virgin Islands, Uruguay, Venezuela">‚ç∞</span> | DL1: RT.2.6 Please estimate the regional distribution of your company's RSPO certified palm oil and palm oil-products sales (as declared in Question 2.4) in the following countries/regions. In cases where sales distribution data is not available, members may use manufacturing regions as a proxy for regional usage of certified volumes. ‚ç∞ - Africa <span style="font-size:22px;font-weight: bold" title="Algeria, Angola, Benin, Botswana, Burkina Faso, Burundi, Cameroon, Cape Verde, Central African Republic, Chad, Comoros, Democratic Republic of Congo, Republic of Congo, C√¥te d'Ivoire, Djibouti, Egypt, Equatorial Guinea, Eritrea, Eswatini, Ethiopia, Gabon, Gambia, Ghana, Guinea, Guinea-Bissau, Kenya, Lesotho, Liberia, Libya, Madagascar, Malawi, Mali, Mauritania, Mauritius, Morocco, Mozambique, Namibia, Niger, Nigeria, Rwanda, S√£o Tom√© and Pr√≠ncipe, Senegal, Seychelles, Sierra Leone, Somalia, South Africa, South Sudan, Sudan, Swaziland, Tanzania, Togo, Tunisia, Uganda, Zambia, Zimbabwe">‚ç∞</span> | DM1: RT.2.6 Please estimate the regional distribution of your company's RSPO certified palm oil and palm oil-products sales (as declared in Question 2.4) in the following countries/regions. In cases where sales distribution data is not available, members may use manufacturing regions as a proxy for regional usage of certified volumes. ‚ç∞ - Rest of World <span style="font-size:22px;font-weight: bold" title="Bangladesh, Bhutan, Brunei, Cambodia, Hong Kong S.A.R., Japan, Laos, Macao S.A.R., Maldives, Mongolia, Myanmar, Nepal, North Korea, Pakistan, Papua New Guinea, Philippines, Singapore, South Korea, Sri Lanka, Taiwan Region, Thailand, Timor-Leste, Vietnam, Bermuda, Kazakhstan, Kyrgyzstan, Tajikistan, Turkmenistan, Uzbekistan, Afghanistan, Armenia, Azerbaijan, Bahrain, Georgia, Iran, Iraq, Israel, Jordan, Kuwait, Lebanon, Oman, Palestine, Qatar, Saudi Arabia, Syria, Turkey, United Arab Emirates, Yemen, American Samoa, Australia, Cocos (Keeling) Islands, Cook Islands, Fiji, French Polynesia, Guam, Kiribati, Marshall Islands, Micronesia, Nauru, New Caledonia, New Zealand, Niue, Northern Mariana Islands, Palau, Samoa, Solomon Islands, Tonga, Tuvalu, Vanuatu">‚ç∞</span> | DN1: 3 - DL.2.1.1 Please state the name of this subsidiary | DO1: 3 - DL.2.1.2 In which markets does this subsidiary operate? | DP1: 3 - DL.2.1.3 Please provide additional information of this subsidiary's operations | DQ1: RT.2.2 Total volume of uncertified and certified palm oil, palm kernel oil and related products purchased for use in your company's own-brand products. Third-party brand products containing palm oil should be excluded. ‚ç∞ - Total volume of crude palm oil (tonnes) <span style="font-size:22px;font-weight: bold" title="Volume used for January-December during the ACOP reporting period. This volume includes certified and uncertified crude palm oil.">‚ç∞</span> | DR1: RT.2.2 Total volume of uncertified and certified palm oil, palm kernel oil and related products purchased for use in your company's own-brand products. Third-party brand products containing palm oil should be excluded. ‚ç∞ - Total volume of crude palm kernel oil (tonnes) <span style="font-size:22px;font-weight: bold" title="Volume used for January-December during the ACOP reporting period. This volume includes certified and uncertified crude palm kernel oil.">‚ç∞</span> | DS1: RT.2.2 Total volume of uncertified and certified palm oil, palm kernel oil and related products purchased for use in your company's own-brand products. Third-party brand products containing palm oil should be excluded. ‚ç∞ - Total volume of palm kernel expeller (tonnes) <span style="font-size:22px;font-weight: bold" title="Volume used for January-December during the ACOP reporting period. This volume includes certified and uncertified palm kernel expeller.">‚ç∞</span> | DT1: RT.2.2 Total volume of uncertified and certified palm oil, palm kernel oil and related products purchased for use in your company's own-brand products. Third-party brand products containing palm oil should be excluded. ‚ç∞ - Total volume of crude palm oil/palm kernel oil-based derivatives and fractions (tonnes) <span style="font-size:22px;font-weight: bold" title="Volume used for January-December during the ACOP reporting period. This volume includes certified and uncertified crude palm oil and palm kernel oil derivatives and fractions.">‚ç∞</span> | DU1: RT.2.2.1 Please estimate the percentage of derivatives and fractions (reported in Question RT.2.2) derived from palm oil or from palm kernel oil. The default split for volumes is assumed to be 80% palm oil-based derivatives and 20% palm kernel oil-based derivatives. - Palm oil-based derivatives and fractions | DV1: RT.2.2.1 Please estimate the percentage of derivatives and fractions (reported in Question RT.2.2) derived from palm oil or from palm kernel oil. The default split for volumes is assumed to be 80% palm oil-based derivatives and 20% palm kernel oil-based derivatives. - Palm kernel oil-based derivatives and fractions | DW1: RT.2.3 Please estimate the regional distribution of your company's uncertified and certified palm oil, palm kernel oil and related products sales (as declared in Question 2.2) in the following countries/regions. In cases where sales distribution data is not available, members may use manufacturing regions as a proxy for regional usage of certified volumes. ‚ç∞ - Europe <span style="font-size:22px;font-weight: bold" title="Albania, Andorra, Austria, Belarus, Belgium, Bosnia and Herzegovina, Bulgaria, Croatia, Cyprus, Czech Republic, Denmark, Estonia, Finland, France, Germany, Gibraltar, Greece, Guernsey, Hungary, Iceland, Ireland, Isle of Man, Italy, Jersey, Kosovo, Latvia, Liechtenstein, Lithuania, Luxembourg, Macedonia, Malta, Moldova, Monaco, Montenegro, Netherlands, North Macedonia, Norway, Poland, Portugal, Romania, Russia, San Marino, Serbia, Slovakia, Slovenia, Spain, Sweden, Switzerland, Ukraine, United Kingdom, Vatican City">‚ç∞</span> | DX1: RT.2.3 Please estimate the regional distribution of your company's uncertified and certified palm oil, palm kernel oil and related products sales (as declared in Question 2.2) in the following countries/regions. In cases where sales distribution data is not available, members may use manufacturing regions as a proxy for regional usage of certified volumes. ‚ç∞ - North America <span style="font-size:22px;font-weight: bold" title="Canada, USA">‚ç∞</span> | DY1: RT.2.3 Please estimate the regional distribution of your company's uncertified and certified palm oil, palm kernel oil and related products sales (as declared in Question 2.2) in the following countries/regions. In cases where sales distribution data is not available, members may use manufacturing regions as a proxy for regional usage of certified volumes. ‚ç∞ - Malaysia | DZ1: RT.2.3 Please estimate the regional distribution of your company's uncertified and certified palm oil, palm kernel oil and related products sales (as declared in Question 2.2) in the following countries/regions. In cases where sales distribution data is not available, members may use manufacturing regions as a proxy for regional usage of certified volumes. ‚ç∞ - Indonesia | EA1: RT.2.3 Please estimate the regional distribution of your company's uncertified and certified palm oil, palm kernel oil and related products sales (as declared in Question 2.2) in the following countries/regions. In cases where sales distribution data is not available, members may use manufacturing regions as a proxy for regional usage of certified volumes. ‚ç∞ - China | EB1: RT.2.3 Please estimate the regional distribution of your company's uncertified and certified palm oil, palm kernel oil and related products sales (as declared in Question 2.2) in the following countries/regions. In cases where sales distribution data is not available, members may use manufacturing regions as a proxy for regional usage of certified volumes. ‚ç∞ - India | EC1: RT.2.3 Please estimate the regional distribution of your company's uncertified and certified palm oil, palm kernel oil and related products sales (as declared in Question 2.2) in the following countries/regions. In cases where sales distribution data is not available, members may use manufacturing regions as a proxy for regional usage of certified volumes. ‚ç∞ - Latin America <span style="font-size:22px;font-weight: bold" title="Anguilla, Antigua and Barbuda, Argentina, Aruba, Bahamas, Barbados, Belize, Bolivia, Brazil, British Virgin Islands, Cayman Islands, Chile, Colombia, Costa Rica, Cuba, Cura√ßao, Dominica, Dominican Republic, Ecuador, El Salvador, Grenada, Guatemala, Guyana, Haiti, Honduras, Jamaica, Mexico, Montserrat, Nicaragua, Panama, Paraguay, Peru, Saint Barth√©lemy, Saint Kitts and Nevis, Saint Lucia, Saint Martin, Saint Vincent and the Grenadines, Sint Maarten, Suriname, Trinidad and Tobago, Turks and Caicos Islands, U.S. Virgin Islands, Uruguay, Venezuela">‚ç∞</span> | ED1: RT.2.3 Please estimate the regional distribution of your company's uncertified and certified palm oil, palm kernel oil and related products sales (as declared in Question 2.2) in the following countries/regions. In cases where sales distribution data is not available, members may use manufacturing regions as a proxy for regional usage of certified volumes. ‚ç∞ - Africa <span style="font-size:22px;font-weight: bold" title="Algeria, Angola, Benin, Botswana, Burkina Faso, Burundi, Cameroon, Cape Verde, Central African Republic, Chad, Comoros, Democratic Republic of Congo, Republic of Congo, C√¥te d'Ivoire, Djibouti, Egypt, Equatorial Guinea, Eritrea, Eswatini, Ethiopia, Gabon, Gambia, Ghana, Guinea, Guinea-Bissau, Kenya, Lesotho, Liberia, Libya, Madagascar, Malawi, Mali, Mauritania, Mauritius, Morocco, Mozambique, Namibia, Niger, Nigeria, Rwanda, S√£o Tom√© and Pr√≠ncipe, Senegal, Seychelles, Sierra Leone, Somalia, South Africa, South Sudan, Sudan, Swaziland, Tanzania, Togo, Tunisia, Uganda, Zambia, Zimbabwe">‚ç∞</span> | EE1: RT.2.3 Please estimate the regional distribution of your company's uncertified and certified palm oil, palm kernel oil and related products sales (as declared in Question 2.2) in the following countries/regions. In cases where sales distribution data is not available, members may use manufacturing regions as a proxy for regional usage of certified volumes. ‚ç∞ - Rest of World <span style="font-size:22px;font-weight: bold" title="Bangladesh, Bhutan, Brunei, Cambodia, Hong Kong S.A.R., Japan, Laos, Macao S.A.R., Maldives, Mongolia, Myanmar, Nepal, North Korea, Pakistan, Papua New Guinea, Philippines, Singapore, South Korea, Sri Lanka, Taiwan Region, Thailand, Timor-Leste, Vietnam, Bermuda, Kazakhstan, Kyrgyzstan, Tajikistan, Turkmenistan, Uzbekistan, Afghanistan, Armenia, Azerbaijan, Bahrain, Georgia, Iran, Iraq, Israel, Jordan, Kuwait, Lebanon, Oman, Palestine, Qatar, Saudi Arabia, Syria, Turkey, United Arab Emirates, Yemen, American Samoa, Australia, Cocos (Keeling) Islands, Cook Islands, Fiji, French Polynesia, Guam, Kiribati, Marshall Islands, Micronesia, Nauru, New Caledonia, New Zealand, Niue, Northern Mariana Islands, Palau, Samoa, Solomon Islands, Tonga, Tuvalu, Vanuatu">‚ç∞</span> | EF1: RT.2.4 Total volume of RSPO-certified palm oil, palm kernel oil and related products purchased for use in your company's own-brand products. Third-party brand products containing palm oil should be excluded. - RSPO Credits from Mill / Crusher ‚ç∞ - 3 - RSPO Credits from Mill / Crusher ‚ç∞ - Crude/Refined Palm Oil (CSPO) | EG1: RT.2.4 Total volume of RSPO-certified palm oil, palm kernel oil and related products purchased for use in your company's own-brand products. Third-party brand products containing palm oil should be excluded. - RSPO Credits from Mill / Crusher ‚ç∞ - 3 - RSPO Credits from Mill / Crusher ‚ç∞ - Palm/Refined Kernel Oil (CSPKO) | EH1: RT.2.4 Total volume of RSPO-certified palm oil, palm kernel oil and related products purchased for use in your company's own-brand products. Third-party brand products containing palm oil should be excluded. - RSPO Credits from Mill / Crusher ‚ç∞ - 3 - RSPO Credits from Mill / Crusher ‚ç∞ - Palm Kernel Expeller (CSPKE) | EI1: RT.2.4 Total volume of RSPO-certified palm oil, palm kernel oil and related products purchased for use in your company's own-brand products. Third-party brand products containing palm oil should be excluded. - RSPO Credits from Mill / Crusher ‚ç∞ - 3 - RSPO Credits from Mill / Crusher ‚ç∞ - Certified Derivatives and Fractions | EJ1: RT.2.4 Total volume of RSPO-certified palm oil, palm kernel oil and related products purchased for use in your company's own-brand products. Third-party brand products containing palm oil should be excluded. - RSPO Credits from Independent Smallholder ‚ç∞ - 3 - RSPO Credits from Independent Smallholder ‚ç∞ - Crude/Refined Palm Oil (CSPO) | EK1: RT.2.4 Total volume of RSPO-certified palm oil, palm kernel oil and related products purchased for use in your company's own-brand products. Third-party brand products containing palm oil should be excluded. - RSPO Credits from Independent Smallholder ‚ç∞ - 3 - RSPO Credits from Independent Smallholder ‚ç∞ - Palm/Refined Kernel Oil (CSPKO) | EL1: RT.2.4 Total volume of RSPO-certified palm oil, palm kernel oil and related products purchased for use in your company's own-brand products. Third-party brand products containing palm oil should be excluded. - RSPO Credits from Independent Smallholder ‚ç∞ - 3 - RSPO Credits from Independent Smallholder ‚ç∞ - Palm Kernel Expeller (CSPKE) | EM1: RT.2.4 Total volume of RSPO-certified palm oil, palm kernel oil and related products purchased for use in your company's own-brand products. Third-party brand products containing palm oil should be excluded. - RSPO Credits from Independent Smallholder ‚ç∞ - 3 - RSPO Credits from Independent Smallholder ‚ç∞ - Certified Derivatives and Fractions | EN1: RT.2.4 Total volume of RSPO-certified palm oil, palm kernel oil and related products purchased for use in your company's own-brand products. Third-party brand products containing palm oil should be excluded. - Mass Balance (MB) ‚ç∞ - 3 - Mass Balance (MB) ‚ç∞ - Crude/Refined Palm Oil (CSPO) | EO1: RT.2.4 Total volume of RSPO-certified palm oil, palm kernel oil and related products purchased for use in your company's own-brand products. Third-party brand products containing palm oil should be excluded. - Mass Balance (MB) ‚ç∞ - 3 - Mass Balance (MB) ‚ç∞ - Palm/Refined Kernel Oil (CSPKO) | EP1: RT.2.4 Total volume of RSPO-certified palm oil, palm kernel oil and related products purchased for use in your company's own-brand products. Third-party brand products containing palm oil should be excluded. - Mass Balance (MB) ‚ç∞ - 3 - Mass Balance (MB) ‚ç∞ - Palm Kernel Expeller (CSPKE) | EQ1: RT.2.4 Total volume of RSPO-certified palm oil, palm kernel oil and related products purchased for use in your company's own-brand products. Third-party brand products containing palm oil should be excluded. - Mass Balance (MB) ‚ç∞ - 3 - Mass Balance (MB) ‚ç∞ - Certified Derivatives and Fractions | ER1: RT.2.4 Total volume of RSPO-certified palm oil, palm kernel oil and related products purchased for use in your company's own-brand products. Third-party brand products containing palm oil should be excluded. - Segregated (SG) ‚ç∞ - 3 - Segregated (SG) ‚ç∞ - Crude/Refined Palm Oil (CSPO) | ES1: RT.2.4 Total volume of RSPO-certified palm oil, palm kernel oil and related products purchased for use in your company's own-brand products. Third-party brand products containing palm oil should be excluded. - Segregated (SG) ‚ç∞ - 3 - Segregated (SG) ‚ç∞ - Palm/Refined Kernel Oil (CSPKO) | ET1: RT.2.4 Total volume of RSPO-certified palm oil, palm kernel oil and related products purchased for use in your company's own-brand products. Third-party brand products containing palm oil should be excluded. - Segregated (SG) ‚ç∞ - 3 - Segregated (SG) ‚ç∞ - Palm Kernel Expeller (CSPKE) | EU1: RT.2.4 Total volume of RSPO-certified palm oil, palm kernel oil and related products purchased for use in your company's own-brand products. Third-party brand products containing palm oil should be excluded. - Segregated (SG) ‚ç∞ - 3 - Segregated (SG) ‚ç∞ - Certified Derivatives and Fractions | EV1: RT.2.4 Total volume of RSPO-certified palm oil, palm kernel oil and related products purchased for use in your company's own-brand products. Third-party brand products containing palm oil should be excluded. - Identity Preserved (IP) ‚ç∞ - 3 - Identity Preserved (IP) ‚ç∞ - Crude/Refined Palm Oil (CSPO) | EW1: RT.2.4 Total volume of RSPO-certified palm oil, palm kernel oil and related products purchased for use in your company's own-brand products. Third-party brand products containing palm oil should be excluded. - Identity Preserved (IP) ‚ç∞ - 3 - Identity Preserved (IP) ‚ç∞ - Palm/Refined Kernel Oil (CSPKO) | EX1: RT.2.4 Total volume of RSPO-certified palm oil, palm kernel oil and related products purchased for use in your company's own-brand products. Third-party brand products containing palm oil should be excluded. - Identity Preserved (IP) ‚ç∞ - 3 - Identity Preserved (IP) ‚ç∞ - Palm Kernel Expeller (CSPKE) | EY1: RT.2.4 Total volume of RSPO-certified palm oil, palm kernel oil and related products purchased for use in your company's own-brand products. Third-party brand products containing palm oil should be excluded. - Identity Preserved (IP) ‚ç∞ - 3 - Identity Preserved (IP) ‚ç∞ - Certified Derivatives and Fractions | EZ1: RT.2.4.1 Please estimate the percentage of RSPO-certified derivatives and fractions (reported in Question RT.2.4) derived from RSPO-certified palm oil or from RSPO-certified palm kernel oil. The default split for volumes is assumed to be 80% palm oil-based derivatives and 20% palm kernel oil-based derivatives. - Certified Palm oil-based derivatives and fractions | FA1: RT.2.4.1 Please estimate the percentage of RSPO-certified derivatives and fractions (reported in Question RT.2.4) derived from RSPO-certified palm oil or from RSPO-certified palm kernel oil. The default split for volumes is assumed to be 80% palm oil-based derivatives and 20% palm kernel oil-based derivatives. - Certified Palm kernel oil-based derivatives and fractions | FB1: 3 - RT.2.5 According to the volume information you have provided in Question 2.2 and Question 2.4, your company's Certified Sustainable Palm Oil uptake is: ‚ç∞ | FC1: 3 - RT.2.5.1 Please provide additional information on your certified palm oil, palm kernel oil and related products uptake. This may include your usage of RSPO Credits to cover gaps in certified uptake, changes due to business environment, variations due to stock positions or efforts to support independent smallholders beyond volume commitments. | FD1: RT.2.6 Please estimate the regional distribution of your company's RSPO certified palm oil and palm oil-products sales (as declared in Question 2.4) in the following countries/regions. In cases where sales distribution data is not available, members may use manufacturing regions as a proxy for regional usage of certified volumes. ‚ç∞ - Europe <span style="font-size:22px;font-weight: bold" title="Albania, Andorra, Austria, Belarus, Belgium, Bosnia and Herzegovina, Bulgaria, Croatia, Cyprus, Czech Republic, Denmark, Estonia, Finland, France, Germany, Gibraltar, Greece, Guernsey, Hungary, Iceland, Ireland, Isle of Man, Italy, Jersey, Kosovo, Latvia, Liechtenstein, Lithuania, Luxembourg, Macedonia, Malta, Moldova, Monaco, Montenegro, Netherlands, North Macedonia, Norway, Poland, Portugal, Romania, Russia, San Marino, Serbia, Slovakia, Slovenia, Spain, Sweden, Switzerland, Ukraine, United Kingdom, Vatican City">‚ç∞</span> | FE1: RT.2.6 Please estimate the regional distribution of your company's RSPO certified palm oil and palm oil-products sales (as declared in Question 2.4) in the following countries/regions. In cases where sales distribution data is not available, members may use manufacturing regions as a proxy for regional usage of certified volumes. ‚ç∞ - North America <span style="font-size:22px;font-weight: bold" title="Canada, USA">‚ç∞</span> | FF1: RT.2.6 Please estimate the regional distribution of your company's RSPO certified palm oil and palm oil-products sales (as declared in Question 2.4) in the following countries/regions. In cases where sales distribution data is not available, members may use manufacturing regions as a proxy for regional usage of certified volumes. ‚ç∞ - Malaysia | FG1: RT.2.6 Please estimate the regional distribution of your company's RSPO certified palm oil and palm oil-products sales (as declared in Question 2.4) in the following countries/regions. In cases where sales distribution data is not available, members may use manufacturing regions as a proxy for regional usage of certified volumes. ‚ç∞ - Indonesia | FH1: RT.2.6 Please estimate the regional distribution of your company's RSPO certified palm oil and palm oil-products sales (as declared in Question 2.4) in the following countries/regions. In cases where sales distribution data is not available, members may use manufacturing regions as a proxy for regional usage of certified volumes. ‚ç∞ - China | FI1: RT.2.6 Please estimate the regional distribution of your company's RSPO certified palm oil and palm oil-products sales (as declared in Question 2.4) in the following countries/regions. In cases where sales distribution data is not available, members may use manufacturing regions as a proxy for regional usage of certified volumes. ‚ç∞ - India | FJ1: RT.2.6 Please estimate the regional distribution of your company's RSPO certified palm oil and palm oil-products sales (as declared in Question 2.4) in the following countries/regions. In cases where sales distribution data is not available, members may use manufacturing regions as a proxy for regional usage of certified volumes. ‚ç∞ - Latin America <span style="font-size:22px;font-weight: bold" title="Anguilla, Antigua and Barbuda, Argentina, Aruba, Bahamas, Barbados, Belize, Bolivia, Brazil, British Virgin Islands, Cayman Islands, Chile, Colombia, Costa Rica, Cuba, Cura√ßao, Dominica, Dominican Republic, Ecuador, El Salvador, Grenada, Guatemala, Guyana, Haiti, Honduras, Jamaica, Mexico, Montserrat, Nicaragua, Panama, Paraguay, Peru, Saint Barth√©lemy, Saint Kitts and Nevis, Saint Lucia, Saint Martin, Saint Vincent and the Grenadines, Sint Maarten, Suriname, Trinidad and Tobago, Turks and Caicos Islands, U.S. Virgin Islands, Uruguay, Venezuela">‚ç∞</span> | FK1: RT.2.6 Please estimate the regional distribution of your company's RSPO certified palm oil and palm oil-products sales (as declared in Question 2.4) in the following countries/regions. In cases where sales distribution data is not available, members may use manufacturing regions as a proxy for regional usage of certified volumes. ‚ç∞ - Africa <span style="font-size:22px;font-weight: bold" title="Algeria, Angola, Benin, Botswana, Burkina Faso, Burundi, Cameroon, Cape Verde, Central African Republic, Chad, Comoros, Democratic Republic of Congo, Republic of Congo, C√¥te d'Ivoire, Djibouti, Egypt, Equatorial Guinea, Eritrea, Eswatini, Ethiopia, Gabon, Gambia, Ghana, Guinea, Guinea-Bissau, Kenya, Lesotho, Liberia, Libya, Madagascar, Malawi, Mali, Mauritania, Mauritius, Morocco, Mozambique, Namibia, Niger, Nigeria, Rwanda, S√£o Tom√© and Pr√≠ncipe, Senegal, Seychelles, Sierra Leone, Somalia, South Africa, South Sudan, Sudan, Swaziland, Tanzania, Togo, Tunisia, Uganda, Zambia, Zimbabwe">‚ç∞</span> | FL1: RT.2.6 Please estimate the regional distribution of your company's RSPO certified palm oil and palm oil-products sales (as declared in Question 2.4) in the following countries/regions. In cases where sales distribution data is not available, members may use manufacturing regions as a proxy for regional usage of certified volumes. ‚ç∞ - Rest of World <span style="font-size:22px;font-weight: bold" title="Bangladesh, Bhutan, Brunei, Cambodia, Hong Kong S.A.R., Japan, Laos, Macao S.A.R., Maldives, Mongolia, Myanmar, Nepal, North Korea, Pakistan, Papua New Guinea, Philippines, Singapore, South Korea, Sri Lanka, Taiwan Region, Thailand, Timor-Leste, Vietnam, Bermuda, Kazakhstan, Kyrgyzstan, Tajikistan, Turkmenistan, Uzbekistan, Afghanistan, Armenia, Azerbaijan, Bahrain, Georgia, Iran, Iraq, Israel, Jordan, Kuwait, Lebanon, Oman, Palestine, Qatar, Saudi Arabia, Syria, Turkey, United Arab Emirates, Yemen, American Samoa, Australia, Cocos (Keeling) Islands, Cook Islands, Fiji, French Polynesia, Guam, Kiribati, Marshall Islands, Micronesia, Nauru, New Caledonia, New Zealand, Niue, Northern Mariana Islands, Palau, Samoa, Solomon Islands, Tonga, Tuvalu, Vanuatu">‚ç∞</span> | FM1: 4 - DL.2.1.1 Please state the name of this subsidiary | FN1: 4 - DL.2.1.2 In which markets does this subsidiary operate? | FO1: 4 - DL.2.1.3 Please provide additional information of this subsidiary's operations | FP1: RT.2.2 Total volume of uncertified and certified palm oil, palm kernel oil and related products purchased for use in your company's own-brand products. Third-party brand products containing palm oil should be excluded. ‚ç∞ - Total volume of crude palm oil (tonnes) <span style="font-size:22px;font-weight: bold" title="Volume used for January-December during the ACOP reporting period. This volume includes certified and uncertified crude palm oil.">‚ç∞</span> | FQ1: RT.2.2 Total volume of uncertified and certified palm oil, palm kernel oil and related products purchased for use in your company's own-brand products. Third-party brand products containing palm oil should be excluded. ‚ç∞ - Total volume of crude palm kernel oil (tonnes) <span style="font-size:22px;font-weight: bold" title="Volume used for January-December during the ACOP reporting period. This volume includes certified and uncertified crude palm kernel oil.">‚ç∞</span> | FR1: RT.2.2 Total volume of uncertified and certified palm oil, palm kernel oil and related products purchased for use in your company's own-brand products. Third-party brand products containing palm oil should be excluded. ‚ç∞ - Total volume of palm kernel expeller (tonnes) <span style="font-size:22px;font-weight: bold" title="Volume used for January-December during the ACOP reporting period. This volume includes certified and uncertified palm kernel expeller.">‚ç∞</span> | FS1: RT.2.2 Total volume of uncertified and certified palm oil, palm kernel oil and related products purchased for use in your company's own-brand products. Third-party brand products containing palm oil should be excluded. ‚ç∞ - Total volume of crude palm oil/palm kernel oil-based derivatives and fractions (tonnes) <span style="font-size:22px;font-weight: bold" title="Volume used for January-December during the ACOP reporting period. This volume includes certified and uncertified crude palm oil and palm kernel oil derivatives and fractions.">‚ç∞</span> | FT1: RT.2.2.1 Please estimate the percentage of derivatives and fractions (reported in Question RT.2.2) derived from palm oil or from palm kernel oil. The default split for volumes is assumed to be 80% palm oil-based derivatives and 20% palm kernel oil-based derivatives. - Palm oil-based derivatives and fractions | FU1: RT.2.2.1 Please estimate the percentage of derivatives and fractions (reported in Question RT.2.2) derived from palm oil or from palm kernel oil. The default split for volumes is assumed to be 80% palm oil-based derivatives and 20% palm kernel oil-based derivatives. - Palm kernel oil-based derivatives and fractions | FV1: RT.2.3 Please estimate the regional distribution of your company's uncertified and certified palm oil, palm kernel oil and related products sales (as declared in Question 2.2) in the following countries/regions. In cases where sales distribution data is not available, members may use manufacturing regions as a proxy for regional usage of certified volumes. ‚ç∞ - Europe <span style="font-size:22px;font-weight: bold" title="Albania, Andorra, Austria, Belarus, Belgium, Bosnia and Herzegovina, Bulgaria, Croatia, Cyprus, Czech Republic, Denmark, Estonia, Finland, France, Germany, Gibraltar, Greece, Guernsey, Hungary, Iceland, Ireland, Isle of Man, Italy, Jersey, Kosovo, Latvia, Liechtenstein, Lithuania, Luxembourg, Macedonia, Malta, Moldova, Monaco, Montenegro, Netherlands, North Macedonia, Norway, Poland, Portugal, Romania, Russia, San Marino, Serbia, Slovakia, Slovenia, Spain, Sweden, Switzerland, Ukraine, United Kingdom, Vatican City">‚ç∞</span> | FW1: RT.2.3 Please estimate the regional distribution of your company's uncertified and certified palm oil, palm kernel oil and related products sales (as declared in Question 2.2) in the following countries/regions. In cases where sales distribution data is not available, members may use manufacturing regions as a proxy for regional usage of certified volumes. ‚ç∞ - North America <span style="font-size:22px;font-weight: bold" title="Canada, USA">‚ç∞</span> | FX1: RT.2.3 Please estimate the regional distribution of your company's uncertified and certified palm oil, palm kernel oil and related products sales (as declared in Question 2.2) in the following countries/regions. In cases where sales distribution data is not available, members may use manufacturing regions as a proxy for regional usage of certified volumes. ‚ç∞ - Malaysia | FY1: RT.2.3 Please estimate the regional distribution of your company's uncertified and certified palm oil, palm kernel oil and related products sales (as declared in Question 2.2) in the following countries/regions. In cases where sales distribution data is not available, members may use manufacturing regions as a proxy for regional usage of certified volumes. ‚ç∞ - Indonesia | FZ1: RT.2.3 Please estimate the regional distribution of your company's uncertified and certified palm oil, palm kernel oil and related products sales (as declared in Question 2.2) in the following countries/regions. In cases where sales distribution data is not available, members may use manufacturing regions as a proxy for regional usage of certified volumes. ‚ç∞ - China | GA1: RT.2.3 Please estimate the regional distribution of your company's uncertified and certified palm oil, palm kernel oil and related products sales (as declared in Question 2.2) in the following countries/regions. In cases where sales distribution data is not available, members may use manufacturing regions as a proxy for regional usage of certified volumes. ‚ç∞ - India | GB1: RT.2.3 Please estimate the regional distribution of your company's uncertified and certified palm oil, palm kernel oil and related products sales (as declared in Question 2.2) in the following countries/regions. In cases where sales distribution data is not available, members may use manufacturing regions as a proxy for regional usage of certified volumes. ‚ç∞ - Latin America <span style="font-size:22px;font-weight: bold" title="Anguilla, Antigua and Barbuda, Argentina, Aruba, Bahamas, Barbados, Belize, Bolivia, Brazil, British Virgin Islands, Cayman Islands, Chile, Colombia, Costa Rica, Cuba, Cura√ßao, Dominica, Dominican Republic, Ecuador, El Salvador, Grenada, Guatemala, Guyana, Haiti, Honduras, Jamaica, Mexico, Montserrat, Nicaragua, Panama, Paraguay, Peru, Saint Barth√©lemy, Saint Kitts and Nevis, Saint Lucia, Saint Martin, Saint Vincent and the Grenadines, Sint Maarten, Suriname, Trinidad and Tobago, Turks and Caicos Islands, U.S. Virgin Islands, Uruguay, Venezuela">‚ç∞</span> | GC1: RT.2.3 Please estimate the regional distribution of your company's uncertified and certified palm oil, palm kernel oil and related products sales (as declared in Question 2.2) in the following countries/regions. In cases where sales distribution data is not available, members may use manufacturing regions as a proxy for regional usage of certified volumes. ‚ç∞ - Africa <span style="font-size:22px;font-weight: bold" title="Algeria, Angola, Benin, Botswana, Burkina Faso, Burundi, Cameroon, Cape Verde, Central African Republic, Chad, Comoros, Democratic Republic of Congo, Republic of Congo, C√¥te d'Ivoire, Djibouti, Egypt, Equatorial Guinea, Eritrea, Eswatini, Ethiopia, Gabon, Gambia, Ghana, Guinea, Guinea-Bissau, Kenya, Lesotho, Liberia, Libya, Madagascar, Malawi, Mali, Mauritania, Mauritius, Morocco, Mozambique, Namibia, Niger, Nigeria, Rwanda, S√£o Tom√© and Pr√≠ncipe, Senegal, Seychelles, Sierra Leone, Somalia, South Africa, South Sudan, Sudan, Swaziland, Tanzania, Togo, Tunisia, Uganda, Zambia, Zimbabwe">‚ç∞</span> | GD1: RT.2.3 Please estimate the regional distribution of your company's uncertified and certified palm oil, palm kernel oil and related products sales (as declared in Question 2.2) in the following countries/regions. In cases where sales distribution data is not available, members may use manufacturing regions as a proxy for regional usage of certified volumes. ‚ç∞ - Rest of World <span style="font-size:22px;font-weight: bold" title="Bangladesh, Bhutan, Brunei, Cambodia, Hong Kong S.A.R., Japan, Laos, Macao S.A.R., Maldives, Mongolia, Myanmar, Nepal, North Korea, Pakistan, Papua New Guinea, Philippines, Singapore, South Korea, Sri Lanka, Taiwan Region, Thailand, Timor-Leste, Vietnam, Bermuda, Kazakhstan, Kyrgyzstan, Tajikistan, Turkmenistan, Uzbekistan, Afghanistan, Armenia, Azerbaijan, Bahrain, Georgia, Iran, Iraq, Israel, Jordan, Kuwait, Lebanon, Oman, Palestine, Qatar, Saudi Arabia, Syria, Turkey, United Arab Emirates, Yemen, American Samoa, Australia, Cocos (Keeling) Islands, Cook Islands, Fiji, French Polynesia, Guam, Kiribati, Marshall Islands, Micronesia, Nauru, New Caledonia, New Zealand, Niue, Northern Mariana Islands, Palau, Samoa, Solomon Islands, Tonga, Tuvalu, Vanuatu">‚ç∞</span> | GE1: RT.2.4 Total volume of RSPO-certified palm oil, palm kernel oil and related products purchased for use in your company's own-brand products. Third-party brand products containing palm oil should be excluded. - RSPO Credits from Mill / Crusher ‚ç∞ - 4 - RSPO Credits from Mill / Crusher ‚ç∞ - Crude/Refined Palm Oil (CSPO) | GF1: RT.2.4 Total volume of RSPO-certified palm oil, palm kernel oil and related products purchased for use in your company's own-brand products. Third-party brand products containing palm oil should be excluded. - RSPO Credits from Mill / Crusher ‚ç∞ - 4 - RSPO Credits from Mill / Crusher ‚ç∞ - Palm/Refined Kernel Oil (CSPKO) | GG1: RT.2.4 Total volume of RSPO-certified palm oil, palm kernel oil and related products purchased for use in your company's own-brand products. Third-party brand products containing palm oil should be excluded. - RSPO Credits from Mill / Crusher ‚ç∞ - 4 - RSPO Credits from Mill / Crusher ‚ç∞ - Palm Kernel Expeller (CSPKE) | GH1: RT.2.4 Total volume of RSPO-certified palm oil, palm kernel oil and related products purchased for use in your company's own-brand products. Third-party brand products containing palm oil should be excluded. - RSPO Credits from Mill / Crusher ‚ç∞ - 4 - RSPO Credits from Mill / Crusher ‚ç∞ - Certified Derivatives and Fractions | GI1: RT.2.4 Total volume of RSPO-certified palm oil, palm kernel oil and related products purchased for use in your company's own-brand products. Third-party brand products containing palm oil should be excluded. - RSPO Credits from Independent Smallholder ‚ç∞ - 4 - RSPO Credits from Independent Smallholder ‚ç∞ - Crude/Refined Palm Oil (CSPO) | GJ1: RT.2.4 Total volume of RSPO-certified palm oil, palm kernel oil and related products purchased for use in your company's own-brand products. Third-party brand products containing palm oil should be excluded. - RSPO Credits from Independent Smallholder ‚ç∞ - 4 - RSPO Credits from Independent Smallholder ‚ç∞ - Palm/Refined Kernel Oil (CSPKO) | GK1: RT.2.4 Total volume of RSPO-certified palm oil, palm kernel oil and related products purchased for use in your company's own-brand products. Third-party brand products containing palm oil should be excluded. - RSPO Credits from Independent Smallholder ‚ç∞ - 4 - RSPO Credits from Independent Smallholder ‚ç∞ - Palm Kernel Expeller (CSPKE) | GL1: RT.2.4 Total volume of RSPO-certified palm oil, palm kernel oil and related products purchased for use in your company's own-brand products. Third-party brand products containing palm oil should be excluded. - RSPO Credits from Independent Smallholder ‚ç∞ - 4 - RSPO Credits from Independent Smallholder ‚ç∞ - Certified Derivatives and Fractions | GM1: RT.2.4 Total volume of RSPO-certified palm oil, palm kernel oil and related products purchased for use in your company's own-brand products. Third-party brand products containing palm oil should be excluded. - Mass Balance (MB) ‚ç∞ - 4 - Mass Balance (MB) ‚ç∞ - Crude/Refined Palm Oil (CSPO) | GN1: RT.2.4 Total volume of RSPO-certified palm oil, palm kernel oil and related products purchased for use in your company's own-brand products. Third-party brand products containing palm oil should be excluded. - Mass Balance (MB) ‚ç∞ - 4 - Mass Balance (MB) ‚ç∞ - Palm/Refined Kernel Oil (CSPKO) | GO1: RT.2.4 Total volume of RSPO-certified palm oil, palm kernel oil and related products purchased for use in your company's own-brand products. Third-party brand products containing palm oil should be excluded. - Mass Balance (MB) ‚ç∞ - 4 - Mass Balance (MB) ‚ç∞ - Palm Kernel Expeller (CSPKE) | GP1: RT.2.4 Total volume of RSPO-certified palm oil, palm kernel oil and related products purchased for use in your company's own-brand products. Third-party brand products containing palm oil should be excluded. - Mass Balance (MB) ‚ç∞ - 4 - Mass Balance (MB) ‚ç∞ - Certified Derivatives and Fractions | GQ1: RT.2.4 Total volume of RSPO-certified palm oil, palm kernel oil and related products purchased for use in your company's own-brand products. Third-party brand products containing palm oil should be excluded. - Segregated (SG) ‚ç∞ - 4 - Segregated (SG) ‚ç∞ - Crude/Refined Palm Oil (CSPO) | GR1: RT.2.4 Total volume of RSPO-certified palm oil, palm kernel oil and related products purchased for use in your company's own-brand products. Third-party brand products containing palm oil should be excluded. - Segregated (SG) ‚ç∞ - 4 - Segregated (SG) ‚ç∞ - Palm/Refined Kernel Oil (CSPKO) | GS1: RT.2.4 Total volume of RSPO-certified palm oil, palm kernel oil and related products purchased for use in your company's own-brand products. Third-party brand products containing palm oil should be excluded. - Segregated (SG) ‚ç∞ - 4 - Segregated (SG) ‚ç∞ - Palm Kernel Expeller (CSPKE) | GT1: RT.2.4 Total volume of RSPO-certified palm oil, palm kernel oil and related products purchased for use in your company's own-brand products. Third-party brand products containing palm oil should be excluded. - Segregated (SG) ‚ç∞ - 4 - Segregated (SG) ‚ç∞ - Certified Derivatives and Fractions | GU1: RT.2.4 Total volume of RSPO-certified palm oil, palm kernel oil and related products purchased for use in your company's own-brand products. Third-party brand products containing palm oil should be excluded. - Identity Preserved (IP) ‚ç∞ - 4 - Identity Preserved (IP) ‚ç∞ - Crude/Refined Palm Oil (CSPO) | GV1: RT.2.4 Total volume of RSPO-certified palm oil, palm kernel oil and related products purchased for use in your company's own-brand products. Third-party brand products containing palm oil should be excluded. - Identity Preserved (IP) ‚ç∞ - 4 - Identity Preserved (IP) ‚ç∞ - Palm/Refined Kernel Oil (CSPKO) | GW1: RT.2.4 Total volume of RSPO-certified palm oil, palm kernel oil and related products purchased for use in your company's own-brand products. Third-party brand products containing palm oil should be excluded. - Identity Preserved (IP) ‚ç∞ - 4 - Identity Preserved (IP) ‚ç∞ - Palm Kernel Expeller (CSPKE) | GX1: RT.2.4 Total volume of RSPO-certified palm oil, palm kernel oil and related products purchased for use in your company's own-brand products. Third-party brand products containing palm oil should be excluded. - Identity Preserved (IP) ‚ç∞ - 4 - Identity Preserved (IP) ‚ç∞ - Certified Derivatives and Fractions | GY1: RT.2.4.1 Please estimate the percentage of RSPO-certified derivatives and fractions (reported in Question RT.2.4) derived from RSPO-certified palm oil or from RSPO-certified palm kernel oil. The default split for volumes is assumed to be 80% palm oil-based derivatives and 20% palm kernel oil-based derivatives. - Certified Palm oil-based derivatives and fractions | GZ1: RT.2.4.1 Please estimate the percentage of RSPO-certified derivatives and fractions (reported in Question RT.2.4) derived from RSPO-certified palm oil or from RSPO-certified palm kernel oil. The default split for volumes is assumed to be 80% palm oil-based derivatives and 20% palm kernel oil-based derivatives. - Certified Palm kernel oil-based derivatives and fractions | HA1: 4 - RT.2.5 According to the volume information you have provided in Question 2.2 and Question 2.4, your company's Certified Sustainable Palm Oil uptake is: ‚ç∞ | HB1: 4 - RT.2.5.1 Please provide additional information on your certified palm oil, palm kernel oil and related products uptake. This may include your usage of RSPO Credits to cover gaps in certified uptake, changes due to business environment, variations due to stock positions or efforts to support independent smallholders beyond volume commitments. | HC1: RT.2.6 Please estimate the regional distribution of your company's RSPO certified palm oil and palm oil-products sales (as declared in Question 2.4) in the following countries/regions. In cases where sales distribution data is not available, members may use manufacturing regions as a proxy for regional usage of certified volumes. ‚ç∞ - Europe <span style="font-size:22px;font-weight: bold" title="Albania, Andorra, Austria, Belarus, Belgium, Bosnia and Herzegovina, Bulgaria, Croatia, Cyprus, Czech Republic, Denmark, Estonia, Finland, France, Germany, Gibraltar, Greece, Guernsey, Hungary, Iceland, Ireland, Isle of Man, Italy, Jersey, Kosovo, Latvia, Liechtenstein, Lithuania, Luxembourg, Macedonia, Malta, Moldova, Monaco, Montenegro, Netherlands, North Macedonia, Norway, Poland, Portugal, Romania, Russia, San Marino, Serbia, Slovakia, Slovenia, Spain, Sweden, Switzerland, Ukraine, United Kingdom, Vatican City">‚ç∞</span> | HD1: RT.2.6 Please estimate the regional distribution of your company's RSPO certified palm oil and palm oil-products sales (as declared in Question 2.4) in the following countries/regions. In cases where sales distribution data is not available, members may use manufacturing regions as a proxy for regional usage of certified volumes. ‚ç∞ - North America <span style="font-size:22px;font-weight: bold" title="Canada, USA">‚ç∞</span> | HE1: RT.2.6 Please estimate the regional distribution of your company's RSPO certified palm oil and palm oil-products sales (as declared in Question 2.4) in the following countries/regions. In cases where sales distribution data is not available, members may use manufacturing regions as a proxy for regional usage of certified volumes. ‚ç∞ - Malaysia | HF1: RT.2.6 Please estimate the regional distribution of your company's RSPO certified palm oil and palm oil-products sales (as declared in Question 2.4) in the following countries/regions. In cases where sales distribution data is not available, members may use manufacturing regions as a proxy for regional usage of certified volumes. ‚ç∞ - Indonesia | HG1: RT.2.6 Please estimate the regional distribution of your company's RSPO certified palm oil and palm oil-products sales (as declared in Question 2.4) in the following countries/regions. In cases where sales distribution data is not available, members may use manufacturing regions as a proxy for regional usage of certified volumes. ‚ç∞ - China | HH1: RT.2.6 Please estimate the regional distribution of your company's RSPO certified palm oil and palm oil-products sales (as declared in Question 2.4) in the following countries/regions. In cases where sales distribution data is not available, members may use manufacturing regions as a proxy for regional usage of certified volumes. ‚ç∞ - India | HI1: RT.2.6 Please estimate the regional distribution of your company's RSPO certified palm oil and palm oil-products sales (as declared in Question 2.4) in the following countries/regions. In cases where sales distribution data is not available, members may use manufacturing regions as a proxy for regional usage of certified volumes. ‚ç∞ - Latin America <span style="font-size:22px;font-weight: bold" title="Anguilla, Antigua and Barbuda, Argentina, Aruba, Bahamas, Barbados, Belize, Bolivia, Brazil, British Virgin Islands, Cayman Islands, Chile, Colombia, Costa Rica, Cuba, Cura√ßao, Dominica, Dominican Republic, Ecuador, El Salvador, Grenada, Guatemala, Guyana, Haiti, Honduras, Jamaica, Mexico, Montserrat, Nicaragua, Panama, Paraguay, Peru, Saint Barth√©lemy, Saint Kitts and Nevis, Saint Lucia, Saint Martin, Saint Vincent and the Grenadines, Sint Maarten, Suriname, Trinidad and Tobago, Turks and Caicos Islands, U.S. Virgin Islands, Uruguay, Venezuela">‚ç∞</span> | HJ1: RT.2.6 Please estimate the regional distribution of your company's RSPO certified palm oil and palm oil-products sales (as declared in Question 2.4) in the following countries/regions. In cases where sales distribution data is not available, members may use manufacturing regions as a proxy for regional usage of certified volumes. ‚ç∞ - Africa <span style="font-size:22px;font-weight: bold" title="Algeria, Angola, Benin, Botswana, Burkina Faso, Burundi, Cameroon, Cape Verde, Central African Republic, Chad, Comoros, Democratic Republic of Congo, Republic of Congo, C√¥te d'Ivoire, Djibouti, Egypt, Equatorial Guinea, Eritrea, Eswatini, Ethiopia, Gabon, Gambia, Ghana, Guinea, Guinea-Bissau, Kenya, Lesotho, Liberia, Libya, Madagascar, Malawi, Mali, Mauritania, Mauritius, Morocco, Mozambique, Namibia, Niger, Nigeria, Rwanda, S√£o Tom√© and Pr√≠ncipe, Senegal, Seychelles, Sierra Leone, Somalia, South Africa, South Sudan, Sudan, Swaziland, Tanzania, Togo, Tunisia, Uganda, Zambia, Zimbabwe">‚ç∞</span> | HK1: RT.2.6 Please estimate the regional distribution of your company's RSPO certified palm oil and palm oil-products sales (as declared in Question 2.4) in the following countries/regions. In cases where sales distribution data is not available, members may use manufacturing regions as a proxy for regional usage of certified volumes. ‚ç∞ - Rest of World <span style="font-size:22px;font-weight: bold" title="Bangladesh, Bhutan, Brunei, Cambodia, Hong Kong S.A.R., Japan, Laos, Macao S.A.R., Maldives, Mongolia, Myanmar, Nepal, North Korea, Pakistan, Papua New Guinea, Philippines, Singapore, South Korea, Sri Lanka, Taiwan Region, Thailand, Timor-Leste, Vietnam, Bermuda, Kazakhstan, Kyrgyzstan, Tajikistan, Turkmenistan, Uzbekistan, Afghanistan, Armenia, Azerbaijan, Bahrain, Georgia, Iran, Iraq, Israel, Jordan, Kuwait, Lebanon, Oman, Palestine, Qatar, Saudi Arabia, Syria, Turkey, United Arab Emirates, Yemen, American Samoa, Australia, Cocos (Keeling) Islands, Cook Islands, Fiji, French Polynesia, Guam, Kiribati, Marshall Islands, Micronesia, Nauru, New Caledonia, New Zealand, Niue, Northern Mariana Islands, Palau, Samoa, Solomon Islands, Tonga, Tuvalu, Vanuatu">‚ç∞</span> | HL1: 5 - DL.2.1.1 Please state the name of this subsidiary | HM1: 5 - DL.2.1.2 In which markets does this subsidiary operate? | HN1: 5 - DL.2.1.3 Please provide additional information of this subsidiary's operations | HO1: RT.2.2 Total volume of uncertified and certified palm oil, palm kernel oil and related products purchased for use in your company's own-brand products. Third-party brand products containing palm oil should be excluded. ‚ç∞ - Total volume of crude palm oil (tonnes) <span style="font-size:22px;font-weight: bold" title="Volume used for January-December during the ACOP reporting period. This volume includes certified and uncertified crude palm oil.">‚ç∞</span> | HP1: RT.2.2 Total volume of uncertified and certified palm oil, palm kernel oil and related products purchased for use in your company's own-brand products. Third-party brand products containing palm oil should be excluded. ‚ç∞ - Total volume of crude palm kernel oil (tonnes) <span style="font-size:22px;font-weight: bold" title="Volume used for January-December during the ACOP reporting period. This volume includes certified and uncertified crude palm kernel oil.">‚ç∞</span> | HQ1: RT.2.2 Total volume of uncertified and certified palm oil, palm kernel oil and related products purchased for use in your company's own-brand products. Third-party brand products containing palm oil should be excluded. ‚ç∞ - Total volume of palm kernel expeller (tonnes) <span style="font-size:22px;font-weight: bold" title="Volume used for January-December during the ACOP reporting period. This volume includes certified and uncertified palm kernel expeller.">‚ç∞</span> | HR1: RT.2.2 Total volume of uncertified and certified palm oil, palm kernel oil and related products purchased for use in your company's own-brand products. Third-party brand products containing palm oil should be excluded. ‚ç∞ - Total volume of crude palm oil/palm kernel oil-based derivatives and fractions (tonnes) <span style="font-size:22px;font-weight: bold" title="Volume used for January-December during the ACOP reporting period. This volume includes certified and uncertified crude palm oil and palm kernel oil derivatives and fractions.">‚ç∞</span> | HS1: RT.2.2.1 Please estimate the percentage of derivatives and fractions (reported in Question RT.2.2) derived from palm oil or from palm kernel oil. The default split for volumes is assumed to be 80% palm oil-based derivatives and 20% palm kernel oil-based derivatives. - Palm oil-based derivatives and fractions | HT1: RT.2.2.1 Please estimate the percentage of derivatives and fractions (reported in Question RT.2.2) derived from palm oil or from palm kernel oil. The default split for volumes is assumed to be 80% palm oil-based derivatives and 20% palm kernel oil-based derivatives. - Palm kernel oil-based derivatives and fractions | HU1: RT.2.3 Please estimate the regional distribution of your company's uncertified and certified palm oil, palm kernel oil and related products sales (as declared in Question 2.2) in the following countries/regions. In cases where sales distribution data is not available, members may use manufacturing regions as a proxy for regional usage of certified volumes. ‚ç∞ - Europe <span style="font-size:22px;font-weight: bold" title="Albania, Andorra, Austria, Belarus, Belgium, Bosnia and Herzegovina, Bulgaria, Croatia, Cyprus, Czech Republic, Denmark, Estonia, Finland, France, Germany, Gibraltar, Greece, Guernsey, Hungary, Iceland, Ireland, Isle of Man, Italy, Jersey, Kosovo, Latvia, Liechtenstein, Lithuania, Luxembourg, Macedonia, Malta, Moldova, Monaco, Montenegro, Netherlands, North Macedonia, Norway, Poland, Portugal, Romania, Russia, San Marino, Serbia, Slovakia, Slovenia, Spain, Sweden, Switzerland, Ukraine, United Kingdom, Vatican City">‚ç∞</span> | HV1: RT.2.3 Please estimate the regional distribution of your company's uncertified and certified palm oil, palm kernel oil and related products sales (as declared in Question 2.2) in the following countries/regions. In cases where sales distribution data is not available, members may use manufacturing regions as a proxy for regional usage of certified volumes. ‚ç∞ - North America <span style="font-size:22px;font-weight: bold" title="Canada, USA">‚ç∞</span> | HW1: RT.2.3 Please estimate the regional distribution of your company's uncertified and certified palm oil, palm kernel oil and related products sales (as declared in Question 2.2) in the following countries/regions. In cases where sales distribution data is not available, members may use manufacturing regions as a proxy for regional usage of certified volumes. ‚ç∞ - Malaysia | HX1: RT.2.3 Please estimate the regional distribution of your company's uncertified and certified palm oil, palm kernel oil and related products sales (as declared in Question 2.2) in the following countries/regions. In cases where sales distribution data is not available, members may use manufacturing regions as a proxy for regional usage of certified volumes. ‚ç∞ - Indonesia | HY1: RT.2.3 Please estimate the regional distribution of your company's uncertified and certified palm oil, palm kernel oil and related products sales (as declared in Question 2.2) in the following countries/regions. In cases where sales distribution data is not available, members may use manufacturing regions as a proxy for regional usage of certified volumes. ‚ç∞ - China | HZ1: RT.2.3 Please estimate the regional distribution of your company's uncertified and certified palm oil, palm kernel oil and related products sales (as declared in Question 2.2) in the following countries/regions. In cases where sales distribution data is not available, members may use manufacturing regions as a proxy for regional usage of certified volumes. ‚ç∞ - India | IA1: RT.2.3 Please estimate the regional distribution of your company's uncertified and certified palm oil, palm kernel oil and related products sales (as declared in Question 2.2) in the following countries/regions. In cases where sales distribution data is not available, members may use manufacturing regions as a proxy for regional usage of certified volumes. ‚ç∞ - Latin America <span style="font-size:22px;font-weight: bold" title="Anguilla, Antigua and Barbuda, Argentina, Aruba, Bahamas, Barbados, Belize, Bolivia, Brazil, British Virgin Islands, Cayman Islands, Chile, Colombia, Costa Rica, Cuba, Cura√ßao, Dominica, Dominican Republic, Ecuador, El Salvador, Grenada, Guatemala, Guyana, Haiti, Honduras, Jamaica, Mexico, Montserrat, Nicaragua, Panama, Paraguay, Peru, Saint Barth√©lemy, Saint Kitts and Nevis, Saint Lucia, Saint Martin, Saint Vincent and the Grenadines, Sint Maarten, Suriname, Trinidad and Tobago, Turks and Caicos Islands, U.S. Virgin Islands, Uruguay, Venezuela">‚ç∞</span> | IB1: RT.2.3 Please estimate the regional distribution of your company's uncertified and certified palm oil, palm kernel oil and related products sales (as declared in Question 2.2) in the following countries/regions. In cases where sales distribution data is not available, members may use manufacturing regions as a proxy for regional usage of certified volumes. ‚ç∞ - Africa <span style="font-size:22px;font-weight: bold" title="Algeria, Angola, Benin, Botswana, Burkina Faso, Burundi, Cameroon, Cape Verde, Central African Republic, Chad, Comoros, Democratic Republic of Congo, Republic of Congo, C√¥te d'Ivoire, Djibouti, Egypt, Equatorial Guinea, Eritrea, Eswatini, Ethiopia, Gabon, Gambia, Ghana, Guinea, Guinea-Bissau, Kenya, Lesotho, Liberia, Libya, Madagascar, Malawi, Mali, Mauritania, Mauritius, Morocco, Mozambique, Namibia, Niger, Nigeria, Rwanda, S√£o Tom√© and Pr√≠ncipe, Senegal, Seychelles, Sierra Leone, Somalia, South Africa, South Sudan, Sudan, Swaziland, Tanzania, Togo, Tunisia, Uganda, Zambia, Zimbabwe">‚ç∞</span> | IC1: RT.2.3 Please estimate the regional distribution of your company's uncertified and certified palm oil, palm kernel oil and related products sales (as declared in Question 2.2) in the following countries/regions. In cases where sales distribution data is not available, members may use manufacturing regions as a proxy for regional usage of certified volumes. ‚ç∞ - Rest of World <span style="font-size:22px;font-weight: bold" title="Bangladesh, Bhutan, Brunei, Cambodia, Hong Kong S.A.R., Japan, Laos, Macao S.A.R., Maldives, Mongolia, Myanmar, Nepal, North Korea, Pakistan, Papua New Guinea, Philippines, Singapore, South Korea, Sri Lanka, Taiwan Region, Thailand, Timor-Leste, Vietnam, Bermuda, Kazakhstan, Kyrgyzstan, Tajikistan, Turkmenistan, Uzbekistan, Afghanistan, Armenia, Azerbaijan, Bahrain, Georgia, Iran, Iraq, Israel, Jordan, Kuwait, Lebanon, Oman, Palestine, Qatar, Saudi Arabia, Syria, Turkey, United Arab Emirates, Yemen, American Samoa, Australia, Cocos (Keeling) Islands, Cook Islands, Fiji, French Polynesia, Guam, Kiribati, Marshall Islands, Micronesia, Nauru, New Caledonia, New Zealand, Niue, Northern Mariana Islands, Palau, Samoa, Solomon Islands, Tonga, Tuvalu, Vanuatu">‚ç∞</span> | ID1: RT.2.4 Total volume of RSPO-certified palm oil, palm kernel oil and related products purchased for use in your company's own-brand products. Third-party brand products containing palm oil should be excluded. - RSPO Credits from Mill / Crusher ‚ç∞ - 5 - RSPO Credits from Mill / Crusher ‚ç∞ - Crude/Refined Palm Oil (CSPO) | IE1: RT.2.4 Total volume of RSPO-certified palm oil, palm kernel oil and related products purchased for use in your company's own-brand products. Third-party brand products containing palm oil should be excluded. - RSPO Credits from Mill / Crusher ‚ç∞ - 5 - RSPO Credits from Mill / Crusher ‚ç∞ - Palm/Refined Kernel Oil (CSPKO) | IF1: RT.2.4 Total volume of RSPO-certified palm oil, palm kernel oil and related products purchased for use in your company's own-brand products. Third-party brand products containing palm oil should be excluded. - RSPO Credits from Mill / Crusher ‚ç∞ - 5 - RSPO Credits from Mill / Crusher ‚ç∞ - Palm Kernel Expeller (CSPKE) | IG1: RT.2.4 Total volume of RSPO-certified palm oil, palm kernel oil and related products purchased for use in your company's own-brand products. Third-party brand products containing palm oil should be excluded. - RSPO Credits from Mill / Crusher ‚ç∞ - 5 - RSPO Credits from Mill / Crusher ‚ç∞ - Certified Derivatives and Fractions | IH1: RT.2.4 Total volume of RSPO-certified palm oil, palm kernel oil and related products purchased for use in your company's own-brand products. Third-party brand products containing palm oil should be excluded. - RSPO Credits from Independent Smallholder ‚ç∞ - 5 - RSPO Credits from Independent Smallholder ‚ç∞ - Crude/Refined Palm Oil (CSPO) | II1: RT.2.4 Total volume of RSPO-certified palm oil, palm kernel oil and related products purchased for use in your company's own-brand products. Third-party brand products containing palm oil should be excluded. - RSPO Credits from Independent Smallholder ‚ç∞ - 5 - RSPO Credits from Independent Smallholder ‚ç∞ - Palm/Refined Kernel Oil (CSPKO) | IJ1: RT.2.4 Total volume of RSPO-certified palm oil, palm kernel oil and related products purchased for use in your company's own-brand products. Third-party brand products containing palm oil should be excluded. - RSPO Credits from Independent Smallholder ‚ç∞ - 5 - RSPO Credits from Independent Smallholder ‚ç∞ - Palm Kernel Expeller (CSPKE) | IK1: RT.2.4 Total volume of RSPO-certified palm oil, palm kernel oil and related products purchased for use in your company's own-brand products. Third-party brand products containing palm oil should be excluded. - RSPO Credits from Independent Smallholder ‚ç∞ - 5 - RSPO Credits from Independent Smallholder ‚ç∞ - Certified Derivatives and Fractions | IL1: RT.2.4 Total volume of RSPO-certified palm oil, palm kernel oil and related products purchased for use in your company's own-brand products. Third-party brand products containing palm oil should be excluded. - Mass Balance (MB) ‚ç∞ - 5 - Mass Balance (MB) ‚ç∞ - Crude/Refined Palm Oil (CSPO) | IM1: RT.2.4 Total volume of RSPO-certified palm oil, palm kernel oil and related products purchased for use in your company's own-brand products. Third-party brand products containing palm oil should be excluded. - Mass Balance (MB) ‚ç∞ - 5 - Mass Balance (MB) ‚ç∞ - Palm/Refined Kernel Oil (CSPKO) | IN1: RT.2.4 Total volume of RSPO-certified palm oil, palm kernel oil and related products purchased for use in your company's own-brand products. Third-party brand products containing palm oil should be excluded. - Mass Balance (MB) ‚ç∞ - 5 - Mass Balance (MB) ‚ç∞ - Palm Kernel Expeller (CSPKE) | IO1: RT.2.4 Total volume of RSPO-certified palm oil, palm kernel oil and related products purchased for use in your company's own-brand products. Third-party brand products containing palm oil should be excluded. - Mass Balance (MB) ‚ç∞ - 5 - Mass Balance (MB) ‚ç∞ - Certified Derivatives and Fractions | IP1: RT.2.4 Total volume of RSPO-certified palm oil, palm kernel oil and related products purchased for use in your company's own-brand products. Third-party brand products containing palm oil should be excluded. - Segregated (SG) ‚ç∞ - 5 - Segregated (SG) ‚ç∞ - Crude/Refined Palm Oil (CSPO) | IQ1: RT.2.4 Total volume of RSPO-certified palm oil, palm kernel oil and related products purchased for use in your company's own-brand products. Third-party brand products containing palm oil should be excluded. - Segregated (SG) ‚ç∞ - 5 - Segregated (SG) ‚ç∞ - Palm/Refined Kernel Oil (CSPKO) | IR1: RT.2.4 Total volume of RSPO-certified palm oil, palm kernel oil and related products purchased for use in your company's own-brand products. Third-party brand products containing palm oil should be excluded. - Segregated (SG) ‚ç∞ - 5 - Segregated (SG) ‚ç∞ - Palm Kernel Expeller (CSPKE) | IS1: RT.2.4 Total volume of RSPO-certified palm oil, palm kernel oil and related products purchased for use in your company's own-brand products. Third-party brand products containing palm oil should be excluded. - Segregated (SG) ‚ç∞ - 5 - Segregated (SG) ‚ç∞ - Certified Derivatives and Fractions | IT1: RT.2.4 Total volume of RSPO-certified palm oil, palm kernel oil and related products purchased for use in your company's own-brand products. Third-party brand products containing palm oil should be excluded. - Identity Preserved (IP) ‚ç∞ - 5 - Identity Preserved (IP) ‚ç∞ - Crude/Refined Palm Oil (CSPO) | IU1: RT.2.4 Total volume of RSPO-certified palm oil, palm kernel oil and related products purchased for use in your company's own-brand products. Third-party brand products containing palm oil should be excluded. - Identity Preserved (IP) ‚ç∞ - 5 - Identity Preserved (IP) ‚ç∞ - Palm/Refined Kernel Oil (CSPKO) | IV1: RT.2.4 Total volume of RSPO-certified palm oil, palm kernel oil and related products purchased for use in your company's own-brand products. Third-party brand products containing palm oil should be excluded. - Identity Preserved (IP) ‚ç∞ - 5 - Identity Preserved (IP) ‚ç∞ - Palm Kernel Expeller (CSPKE) | IW1: RT.2.4 Total volume of RSPO-certified palm oil, palm kernel oil and related products purchased for use in your company's own-brand products. Third-party brand products containing palm oil should be excluded. - Identity Preserved (IP) ‚ç∞ - 5 - Identity Preserved (IP) ‚ç∞ - Certified Derivatives and Fractions | IX1: RT.2.4.1 Please estimate the percentage of RSPO-certified derivatives and fractions (reported in Question RT.2.4) derived from RSPO-certified palm oil or from RSPO-certified palm kernel oil. The default split for volumes is assumed to be 80% palm oil-based derivatives and 20% palm kernel oil-based derivatives. - Certified Palm oil-based derivatives and fractions | IY1: RT.2.4.1 Please estimate the percentage of RSPO-certified derivatives and fractions (reported in Question RT.2.4) derived from RSPO-certified palm oil or from RSPO-certified palm kernel oil. The default split for volumes is assumed to be 80% palm oil-based derivatives and 20% palm kernel oil-based derivatives. - Certified Palm kernel oil-based derivatives and fractions | IZ1: 5 - RT.2.5 According to the volume information you have provided in Question 2.2 and Question 2.4, your company's Certified Sustainable Palm Oil uptake is: ‚ç∞ | JA1: 5 - RT.2.5.1 Please provide additional information on your certified palm oil, palm kernel oil and related products uptake. This may include your usage of RSPO Credits to cover gaps in certified uptake, changes due to business environment, variations due to stock positions or efforts to support independent smallholders beyond volume commitments. | JB1: RT.2.6 Please estimate the regional distribution of your company's RSPO certified palm oil and palm oil-products sales (as declared in Question 2.4) in the following countries/regions. In cases where sales distribution data is not available, members may use manufacturing regions as a proxy for regional usage of certified volumes. ‚ç∞ - Europe <span style="font-size:22px;font-weight: bold" title="Albania, Andorra, Austria, Belarus, Belgium, Bosnia and Herzegovina, Bulgaria, Croatia, Cyprus, Czech Republic, Denmark, Estonia, Finland, France, Germany, Gibraltar, Greece, Guernsey, Hungary, Iceland, Ireland, Isle of Man, Italy, Jersey, Kosovo, Latvia, Liechtenstein, Lithuania, Luxembourg, Macedonia, Malta, Moldova, Monaco, Montenegro, Netherlands, North Macedonia, Norway, Poland, Portugal, Romania, Russia, San Marino, Serbia, Slovakia, Slovenia, Spain, Sweden, Switzerland, Ukraine, United Kingdom, Vatican City">‚ç∞</span> | JC1: RT.2.6 Please estimate the regional distribution of your company's RSPO certified palm oil and palm oil-products sales (as declared in Question 2.4) in the following countries/regions. In cases where sales distribution data is not available, members may use manufacturing regions as a proxy for regional usage of certified volumes. ‚ç∞ - North America <span style="font-size:22px;font-weight: bold" title="Canada, USA">‚ç∞</span> | JD1: RT.2.6 Please estimate the regional distribution of your company's RSPO certified palm oil and palm oil-products sales (as declared in Question 2.4) in the following countries/regions. In cases where sales distribution data is not available, members may use manufacturing regions as a proxy for regional usage of certified volumes. ‚ç∞ - Malaysia | JE1: RT.2.6 Please estimate the regional distribution of your company's RSPO certified palm oil and palm oil-products sales (as declared in Question 2.4) in the following countries/regions. In cases where sales distribution data is not available, members may use manufacturing regions as a proxy for regional usage of certified volumes. ‚ç∞ - Indonesia | JF1: RT.2.6 Please estimate the regional distribution of your company's RSPO certified palm oil and palm oil-products sales (as declared in Question 2.4) in the following countries/regions. In cases where sales distribution data is not available, members may use manufacturing regions as a proxy for regional usage of certified volumes. ‚ç∞ - China | JG1: RT.2.6 Please estimate the regional distribution of your company's RSPO certified palm oil and palm oil-products sales (as declared in Question 2.4) in the following countries/regions. In cases where sales distribution data is not available, members may use manufacturing regions as a proxy for regional usage of certified volumes. ‚ç∞ - India | JH1: RT.2.6 Please estimate the regional distribution of your company's RSPO certified palm oil and palm oil-products sales (as declared in Question 2.4) in the following countries/regions. In cases where sales distribution data is not available, members may use manufacturing regions as a proxy for regional usage of certified volumes. ‚ç∞ - Latin America <span style="font-size:22px;font-weight: bold" title="Anguilla, Antigua and Barbuda, Argentina, Aruba, Bahamas, Barbados, Belize, Bolivia, Brazil, British Virgin Islands, Cayman Islands, Chile, Colombia, Costa Rica, Cuba, Cura√ßao, Dominica, Dominican Republic, Ecuador, El Salvador, Grenada, Guatemala, Guyana, Haiti, Honduras, Jamaica, Mexico, Montserrat, Nicaragua, Panama, Paraguay, Peru, Saint Barth√©lemy, Saint Kitts and Nevis, Saint Lucia, Saint Martin, Saint Vincent and the Grenadines, Sint Maarten, Suriname, Trinidad and Tobago, Turks and Caicos Islands, U.S. Virgin Islands, Uruguay, Venezuela">‚ç∞</span> | JI1: RT.2.6 Please estimate the regional distribution of your company's RSPO certified palm oil and palm oil-products sales (as declared in Question 2.4) in the following countries/regions. In cases where sales distribution data is not available, members may use manufacturing regions as a proxy for regional usage of certified volumes. ‚ç∞ - Africa <span style="font-size:22px;font-weight: bold" title="Algeria, Angola, Benin, Botswana, Burkina Faso, Burundi, Cameroon, Cape Verde, Central African Republic, Chad, Comoros, Democratic Republic of Congo, Republic of Congo, C√¥te d'Ivoire, Djibouti, Egypt, Equatorial Guinea, Eritrea, Eswatini, Ethiopia, Gabon, Gambia, Ghana, Guinea, Guinea-Bissau, Kenya, Lesotho, Liberia, Libya, Madagascar, Malawi, Mali, Mauritania, Mauritius, Morocco, Mozambique, Namibia, Niger, Nigeria, Rwanda, S√£o Tom√© and Pr√≠ncipe, Senegal, Seychelles, Sierra Leone, Somalia, South Africa, South Sudan, Sudan, Swaziland, Tanzania, Togo, Tunisia, Uganda, Zambia, Zimbabwe">‚ç∞</span> | JJ1: RT.2.6 Please estimate the regional distribution of your company's RSPO certified palm oil and palm oil-products sales (as declared in Question 2.4) in the following countries/regions. In cases where sales distribution data is not available, members may use manufacturing regions as a proxy for regional usage of certified volumes. ‚ç∞ - Rest of World <span style="font-size:22px;font-weight: bold" title="Bangladesh, Bhutan, Brunei, Cambodia, Hong Kong S.A.R., Japan, Laos, Macao S.A.R., Maldives, Mongolia, Myanmar, Nepal, North Korea, Pakistan, Papua New Guinea, Philippines, Singapore, South Korea, Sri Lanka, Taiwan Region, Thailand, Timor-Leste, Vietnam, Bermuda, Kazakhstan, Kyrgyzstan, Tajikistan, Turkmenistan, Uzbekistan, Afghanistan, Armenia, Azerbaijan, Bahrain, Georgia, Iran, Iraq, Israel, Jordan, Kuwait, Lebanon, Oman, Palestine, Qatar, Saudi Arabia, Syria, Turkey, United Arab Emirates, Yemen, American Samoa, Australia, Cocos (Keeling) Islands, Cook Islands, Fiji, French Polynesia, Guam, Kiribati, Marshall Islands, Micronesia, Nauru, New Caledonia, New Zealand, Niue, Northern Mariana Islands, Palau, Samoa, Solomon Islands, Tonga, Tuvalu, Vanuatu">‚ç∞</span> | JK1: RT.2.2 Total volume of uncertified and certified palm oil, palm kernel oil and related products purchased for use in your company's own-brand products. Third-party brand products containing palm oil should be excluded. ‚ç∞ - Total volume of crude palm oil (tonnes) <span style="font-size:22px;font-weight: bold" title="Volume used for January-December during the ACOP reporting period. This volume includes certified and uncertified crude palm oil.">‚ç∞</span> | JL1: RT.2.2 Total volume of uncertified and certified palm oil, palm kernel oil and related products purchased for use in your company's own-brand products. Third-party brand products containing palm oil should be excluded. ‚ç∞ - Total volume of crude palm kernel oil (tonnes) <span style="font-size:22px;font-weight: bold" title="Volume used for January-December during the ACOP reporting period. This volume includes certified and uncertified crude palm kernel oil.">‚ç∞</span> | JM1: RT.2.2 Total volume of uncertified and certified palm oil, palm kernel oil and related products purchased for use in your company's own-brand products. Third-party brand products containing palm oil should be excluded. ‚ç∞ - Total volume of palm kernel expeller (tonnes) <span style="font-size:22px;font-weight: bold" title="Volume used for January-December during the ACOP reporting period. This volume includes certified and uncertified palm kernel expeller.">‚ç∞</span> | JN1: RT.2.2 Total volume of uncertified and certified palm oil, palm kernel oil and related products purchased for use in your company's own-brand products. Third-party brand products containing palm oil should be excluded. ‚ç∞ - Total volume of crude palm oil/palm kernel oil-based derivatives and fractions (tonnes) <span style="font-size:22px;font-weight: bold" title="Volume used for January-December during the ACOP reporting period. This volume includes certified and uncertified crude palm oil and palm kernel oil derivatives and fractions.">‚ç∞</span> | JO1: RT.2.4 Total volume of RSPO-certified palm oil, palm kernel oil and related products purchased for use in your company's own-brand products. Third-party brand products containing palm oil should be excluded. - RSPO Credits from Mill / Crusher ‚ç∞ - Crude/Refined Palm Oil (CSPO) | JP1: RT.2.4 Total volume of RSPO-certified palm oil, palm kernel oil and related products purchased for use in your company's own-brand products. Third-party brand products containing palm oil should be excluded. - RSPO Credits from Mill / Crusher ‚ç∞ - Palm/Refined Kernel Oil (CSPKO) | JQ1: RT.2.4 Total volume of RSPO-certified palm oil, palm kernel oil and related products purchased for use in your company's own-brand products. Third-party brand products containing palm oil should be excluded. - RSPO Credits from Mill / Crusher ‚ç∞ - Palm Kernel Expeller (CSPKE) | JR1: RT.2.4 Total volume of RSPO-certified palm oil, palm kernel oil and related products purchased for use in your company's own-brand products. Third-party brand products containing palm oil should be excluded. - RSPO Credits from Mill / Crusher ‚ç∞ - Certified Derivatives and Fractions | JS1: RT.2.4 Total volume of RSPO-certified palm oil, palm kernel oil and related products purchased for use in your company's own-brand products. Third-party brand products containing palm oil should be excluded. - RSPO Credits from Independent Smallholder ‚ç∞ - Crude/Refined Palm Oil (CSPO) | JT1: RT.2.4 Total volume of RSPO-certified palm oil, palm kernel oil and related products purchased for use in your company's own-brand products. Third-party brand products containing palm oil should be excluded. - RSPO Credits from Independent Smallholder ‚ç∞ - Palm/Refined Kernel Oil (CSPKO) | JU1: RT.2.4 Total volume of RSPO-certified palm oil, palm kernel oil and related products purchased for use in your company's own-brand products. Third-party brand products containing palm oil should be excluded. - RSPO Credits from Independent Smallholder ‚ç∞ - Palm Kernel Expeller (CSPKE) | JV1: RT.2.4 Total volume of RSPO-certified palm oil, palm kernel oil and related products purchased for use in your company's own-brand products. Third-party brand products containing palm oil should be excluded. - RSPO Credits from Independent Smallholder ‚ç∞ - Certified Derivatives and Fractions | JW1: RT.2.4 Total volume of RSPO-certified palm oil, palm kernel oil and related products purchased for use in your company's own-brand products. Third-party brand products containing palm oil should be excluded. - Mass Balance (MB) ‚ç∞ - Crude/Refined Palm Oil (CSPO) | JX1: RT.2.4 Total volume of RSPO-certified palm oil, palm kernel oil and related products purchased for use in your company's own-brand products. Third-party brand products containing palm oil should be excluded. - Mass Balance (MB) ‚ç∞ - Palm/Refined Kernel Oil (CSPKO) | JY1: RT.2.4 Total volume of RSPO-certified palm oil, palm kernel oil and related products purchased for use in your company's own-brand products. Third-party brand products containing palm oil should be excluded. - Mass Balance (MB) ‚ç∞ - Palm Kernel Expeller (CSPKE) | JZ1: RT.2.4 Total volume of RSPO-certified palm oil, palm kernel oil and related products purchased for use in your company's own-brand products. Third-party brand products containing palm oil should be excluded. - Mass Balance (MB) ‚ç∞ - Certified Derivatives and Fractions | KA1: RT.2.4 Total volume of RSPO-certified palm oil, palm kernel oil and related products purchased for use in your company's own-brand products. Third-party brand products containing palm oil should be excluded. - Segregated (SG) ‚ç∞ - Crude/Refined Palm Oil (CSPO) | KB1: RT.2.4 Total volume of RSPO-certified palm oil, palm kernel oil and related products purchased for use in your company's own-brand products. Third-party brand products containing palm oil should be excluded. - Segregated (SG) ‚ç∞ - Palm/Refined Kernel Oil (CSPKO) | KC1: RT.2.4 Total volume of RSPO-certified palm oil, palm kernel oil and related products purchased for use in your company's own-brand products. Third-party brand products containing palm oil should be excluded. - Segregated (SG) ‚ç∞ - Palm Kernel Expeller (CSPKE) | KD1: RT.2.4 Total volume of RSPO-certified palm oil, palm kernel oil and related products purchased for use in your company's own-brand products. Third-party brand products containing palm oil should be excluded. - Segregated (SG) ‚ç∞ - Certified Derivatives and Fractions | KE1: RT.2.4 Total volume of RSPO-certified palm oil, palm kernel oil and related products purchased for use in your company's own-brand products. Third-party brand products containing palm oil should be excluded. - Identity Preserved (IP) ‚ç∞ - Crude/Refined Palm Oil (CSPO) | KF1: RT.2.4 Total volume of RSPO-certified palm oil, palm kernel oil and related products purchased for use in your company's own-brand products. Third-party brand products containing palm oil should be excluded. - Identity Preserved (IP) ‚ç∞ - Palm/Refined Kernel Oil (CSPKO) | KG1: RT.2.4 Total volume of RSPO-certified palm oil, palm kernel oil and related products purchased for use in your company's own-brand products. Third-party brand products containing palm oil should be excluded. - Identity Preserved (IP) ‚ç∞ - Palm Kernel Expeller (CSPKE) | KH1: RT.2.4 Total volume of RSPO-certified palm oil, palm kernel oil and related products purchased for use in your company's own-brand products. Third-party brand products containing palm oil should be excluded. - Identity Preserved (IP) ‚ç∞ - Certified Derivatives and Fractions | KI1: RT.2.5 According to the volume information you have provided in Question 2.2 and Question 2.4, your company's Certified Sustainable Palm Oil uptake is: ‚ç∞ | KJ1: RT.2.2 Total volume of uncertified and certified palm oil, palm kernel oil and related products purchased for use in your company's own-brand products. Third-party brand products containing palm oil should be excluded. ‚ç∞ - Total volume of crude palm oil (tonnes) <span style="font-size:22px;font-weight: bold" title="Volume used for January-December during the ACOP reporting period. This volume includes certified and uncertified crude palm oil.">‚ç∞</span> | KK1: RT.2.2 Total volume of uncertified and certified palm oil, palm kernel oil and related products purchased for use in your company's own-brand products. Third-party brand products containing palm oil should be excluded. ‚ç∞ - Total volume of crude palm kernel oil (tonnes) <span style="font-size:22px;font-weight: bold" title="Volume used for January-December during the ACOP reporting period. This volume includes certified and uncertified crude palm kernel oil.">‚ç∞</span> | KL1: RT.2.2 Total volume of uncertified and certified palm oil, palm kernel oil and related products purchased for use in your company's own-brand products. Third-party brand products containing palm oil should be excluded. ‚ç∞ - Total volume of palm kernel expeller (tonnes) <span style="font-size:22px;font-weight: bold" title="Volume used for January-December during the ACOP reporting period. This volume includes certified and uncertified palm kernel expeller.">‚ç∞</span> | KM1: RT.2.2 Total volume of uncertified and certified palm oil, palm kernel oil and related products purchased for use in your company's own-brand products. Third-party brand products containing palm oil should be excluded. ‚ç∞ - Total volume of crude palm oil/palm kernel oil-based derivatives and fractions (tonnes) <span style="font-size:22px;font-weight: bold" title="Volume used for January-December during the ACOP reporting period. This volume includes certified and uncertified crude palm oil and palm kernel oil derivatives and fractions.">‚ç∞</span> | KN1: RT.2.2.1 Please estimate the percentage of derivatives and fractions (reported in Question RT.2.2) derived from palm oil or from palm kernel oil. The default split for volumes is assumed to be 80% palm oil-based derivatives and 20% palm kernel oil-based derivatives. - Palm oil-based derivatives and fractions | KO1: RT.2.2.1 Please estimate the percentage of derivatives and fractions (reported in Question RT.2.2) derived from palm oil or from palm kernel oil. The default split for volumes is assumed to be 80% palm oil-based derivatives and 20% palm kernel oil-based derivatives. - Palm kernel oil-based derivatives and fractions | KP1: RT.2.3 Please estimate the regional distribution of your company's uncertified and certified palm oil, palm kernel oil and related products sales (as declared in Question 2.2) in the following countries/regions. In cases where sales distribution data is not available, members may use manufacturing regions as a proxy for regional usage of certified volumes. ‚ç∞ - Europe <span style="font-size:22px;font-weight: bold" title="Albania, Andorra, Austria, Belarus, Belgium, Bosnia and Herzegovina, Bulgaria, Croatia, Cyprus, Czech Republic, Denmark, Estonia, Finland, France, Germany, Gibraltar, Greece, Guernsey, Hungary, Iceland, Ireland, Isle of Man, Italy, Jersey, Kosovo, Latvia, Liechtenstein, Lithuania, Luxembourg, Macedonia, Malta, Moldova, Monaco, Montenegro, Netherlands, North Macedonia, Norway, Poland, Portugal, Romania, Russia, San Marino, Serbia, Slovakia, Slovenia, Spain, Sweden, Switzerland, Ukraine, United Kingdom, Vatican City">‚ç∞</span> | KQ1: RT.2.3 Please estimate the regional distribution of your company's uncertified and certified palm oil, palm kernel oil and related products sales (as declared in Question 2.2) in the following countries/regions. In cases where sales distribution data is not available, members may use manufacturing regions as a proxy for regional usage of certified volumes. ‚ç∞ - North America <span style="font-size:22px;font-weight: bold" title="Canada, USA">‚ç∞</span> | KR1: RT.2.3 Please estimate the regional distribution of your company's uncertified and certified palm oil, palm kernel oil and related products sales (as declared in Question 2.2) in the following countries/regions. In cases where sales distribution data is not available, members may use manufacturing regions as a proxy for regional usage of certified volumes. ‚ç∞ - Malaysia | KS1: RT.2.3 Please estimate the regional distribution of your company's uncertified and certified palm oil, palm kernel oil and related products sales (as declared in Question 2.2) in the following countries/regions. In cases where sales distribution data is not available, members may use manufacturing regions as a proxy for regional usage of certified volumes. ‚ç∞ - Indonesia | KT1: RT.2.3 Please estimate the regional distribution of your company's uncertified and certified palm oil, palm kernel oil and related products sales (as declared in Question 2.2) in the following countries/regions. In cases where sales distribution data is not available, members may use manufacturing regions as a proxy for regional usage of certified volumes. ‚ç∞ - China | KU1: RT.2.3 Please estimate the regional distribution of your company's uncertified and certified palm oil, palm kernel oil and related products sales (as declared in Question 2.2) in the following countries/regions. In cases where sales distribution data is not available, members may use manufacturing regions as a proxy for regional usage of certified volumes. ‚ç∞ - India | KV1: RT.2.3 Please estimate the regional distribution of your company's uncertified and certified palm oil, palm kernel oil and related products sales (as declared in Question 2.2) in the following countries/regions. In cases where sales distribution data is not available, members may use manufacturing regions as a proxy for regional usage of certified volumes. ‚ç∞ - Latin America <span style="font-size:22px;font-weight: bold" title="Anguilla, Antigua and Barbuda, Argentina, Aruba, Bahamas, Barbados, Belize, Bolivia, Brazil, British Virgin Islands, Cayman Islands, Chile, Colombia, Costa Rica, Cuba, Cura√ßao, Dominica, Dominican Republic, Ecuador, El Salvador, Grenada, Guatemala, Guyana, Haiti, Honduras, Jamaica, Mexico, Montserrat, Nicaragua, Panama, Paraguay, Peru, Saint Barth√©lemy, Saint Kitts and Nevis, Saint Lucia, Saint Martin, Saint Vincent and the Grenadines, Sint Maarten, Suriname, Trinidad and Tobago, Turks and Caicos Islands, U.S. Virgin Islands, Uruguay, Venezuela">‚ç∞</span> | KW1: RT.2.3 Please estimate the regional distribution of your company's uncertified and certified palm oil, palm kernel oil and related products sales (as declared in Question 2.2) in the following countries/regions. In cases where sales distribution data is not available, members may use manufacturing regions as a proxy for regional usage of certified volumes. ‚ç∞ - Africa <span style="font-size:22px;font-weight: bold" title="Algeria, Angola, Benin, Botswana, Burkina Faso, Burundi, Cameroon, Cape Verde, Central African Republic, Chad, Comoros, Democratic Republic of Congo, Republic of Congo, C√¥te d'Ivoire, Djibouti, Egypt, Equatorial Guinea, Eritrea, Eswatini, Ethiopia, Gabon, Gambia, Ghana, Guinea, Guinea-Bissau, Kenya, Lesotho, Liberia, Libya, Madagascar, Malawi, Mali, Mauritania, Mauritius, Morocco, Mozambique, Namibia, Niger, Nigeria, Rwanda, S√£o Tom√© and Pr√≠ncipe, Senegal, Seychelles, Sierra Leone, Somalia, South Africa, South Sudan, Sudan, Swaziland, Tanzania, Togo, Tunisia, Uganda, Zambia, Zimbabwe">‚ç∞</span> | KX1: RT.2.3 Please estimate the regional distribution of your company's uncertified and certified palm oil, palm kernel oil and related products sales (as declared in Question 2.2) in the following countries/regions. In cases where sales distribution data is not available, members may use manufacturing regions as a proxy for regional usage of certified volumes. ‚ç∞ - Rest of World <span style="font-size:22px;font-weight: bold" title="Bangladesh, Bhutan, Brunei, Cambodia, Hong Kong S.A.R., Japan, Laos, Macao S.A.R., Maldives, Mongolia, Myanmar, Nepal, North Korea, Pakistan, Papua New Guinea, Philippines, Singapore, South Korea, Sri Lanka, Taiwan Region, Thailand, Timor-Leste, Vietnam, Bermuda, Kazakhstan, Kyrgyzstan, Tajikistan, Turkmenistan, Uzbekistan, Afghanistan, Armenia, Azerbaijan, Bahrain, Georgia, Iran, Iraq, Israel, Jordan, Kuwait, Lebanon, Oman, Palestine, Qatar, Saudi Arabia, Syria, Turkey, United Arab Emirates, Yemen, American Samoa, Australia, Cocos (Keeling) Islands, Cook Islands, Fiji, French Polynesia, Guam, Kiribati, Marshall Islands, Micronesia, Nauru, New Caledonia, New Zealand, Niue, Northern Mariana Islands, Palau, Samoa, Solomon Islands, Tonga, Tuvalu, Vanuatu">‚ç∞</span> | KY1: RT.2.4 Total volume of RSPO-certified palm oil, palm kernel oil and related products purchased for use in your company's own-brand products. Third-party brand products containing palm oil should be excluded. - RSPO Credits from Mill / Crusher ‚ç∞ - Crude/Refined Palm Oil (CSPO) | KZ1: RT.2.4 Total volume of RSPO-certified palm oil, palm kernel oil and related products purchased for use in your company's own-brand products. Third-party brand products containing palm oil should be excluded. - RSPO Credits from Mill / Crusher ‚ç∞ - Palm/Refined Kernel Oil (CSPKO) | LA1: RT.2.4 Total volume of RSPO-certified palm oil, palm kernel oil and related products purchased for use in your company's own-brand products. Third-party brand products containing palm oil should be excluded. - RSPO Credits from Mill / Crusher ‚ç∞ - Palm Kernel Expeller (CSPKE) | LB1: RT.2.4 Total volume of RSPO-certified palm oil, palm kernel oil and related products purchased for use in your company's own-brand products. Third-party brand products containing palm oil should be excluded. - RSPO Credits from Mill / Crusher ‚ç∞ - Certified Derivatives and Fractions | LC1: RT.2.4 Total volume of RSPO-certified palm oil, palm kernel oil and related products purchased for use in your company's own-brand products. Third-party brand products containing palm oil should be excluded. - RSPO Credits from Independent Smallholder ‚ç∞ - Crude/Refined Palm Oil (CSPO) | LD1: RT.2.4 Total volume of RSPO-certified palm oil, palm kernel oil and related products purchased for use in your company's own-brand products. Third-party brand products containing palm oil should be excluded. - RSPO Credits from Independent Smallholder ‚ç∞ - Palm/Refined Kernel Oil (CSPKO) | LE1: RT.2.4 Total volume of RSPO-certified palm oil, palm kernel oil and related products purchased for use in your company's own-brand products. Third-party brand products containing palm oil should be excluded. - RSPO Credits from Independent Smallholder ‚ç∞ - Palm Kernel Expeller (CSPKE) | LF1: RT.2.4 Total volume of RSPO-certified palm oil, palm kernel oil and related products purchased for use in your company's own-brand products. Third-party brand products containing palm oil should be excluded. - RSPO Credits from Independent Smallholder ‚ç∞ - Certified Derivatives and Fractions | LG1: RT.2.4 Total volume of RSPO-certified palm oil, palm kernel oil and related products purchased for use in your company's own-brand products. Third-party brand products containing palm oil should be excluded. - Mass Balance (MB) ‚ç∞ - Crude/Refined Palm Oil (CSPO) | LH1: RT.2.4 Total volume of RSPO-certified palm oil, palm kernel oil and related products purchased for use in your company's own-brand products. Third-party brand products containing palm oil should be excluded. - Mass Balance (MB) ‚ç∞ - Palm/Refined Kernel Oil (CSPKO) | LI1: RT.2.4 Total volume of RSPO-certified palm oil, palm kernel oil and related products purchased for use in your company's own-brand products. Third-party brand products containing palm oil should be excluded. - Mass Balance (MB) ‚ç∞ - Palm Kernel Expeller (CSPKE) | LJ1: RT.2.4 Total volume of RSPO-certified palm oil, palm kernel oil and related products purchased for use in your company's own-brand products. Third-party brand products containing palm oil should be excluded. - Mass Balance (MB) ‚ç∞ - Certified Derivatives and Fractions | LK1: RT.2.4 Total volume of RSPO-certified palm oil, palm kernel oil and related products purchased for use in your company's own-brand products. Third-party brand products containing palm oil should be excluded. - Segregated (SG) ‚ç∞ - Crude/Refined Palm Oil (CSPO) | LL1: RT.2.4 Total volume of RSPO-certified palm oil, palm kernel oil and related products purchased for use in your company's own-brand products. Third-party brand products containing palm oil should be excluded. - Segregated (SG) ‚ç∞ - Palm/Refined Kernel Oil (CSPKO) | LM1: RT.2.4 Total volume of RSPO-certified palm oil, palm kernel oil and related products purchased for use in your company's own-brand products. Third-party brand products containing palm oil should be excluded. - Segregated (SG) ‚ç∞ - Palm Kernel Expeller (CSPKE) | LN1: RT.2.4 Total volume of RSPO-certified palm oil, palm kernel oil and related products purchased for use in your company's own-brand products. Third-party brand products containing palm oil should be excluded. - Segregated (SG) ‚ç∞ - Certified Derivatives and Fractions | LO1: RT.2.4 Total volume of RSPO-certified palm oil, palm kernel oil and related products purchased for use in your company's own-brand products. Third-party brand products containing palm oil should be excluded. - Identity Preserved (IP) ‚ç∞ - Crude/Refined Palm Oil (CSPO) | LP1: RT.2.4 Total volume of RSPO-certified palm oil, palm kernel oil and related products purchased for use in your company's own-brand products. Third-party brand products containing palm oil should be excluded. - Identity Preserved (IP) ‚ç∞ - Palm/Refined Kernel Oil (CSPKO) | LQ1: RT.2.4 Total volume of RSPO-certified palm oil, palm kernel oil and related products purchased for use in your company's own-brand products. Third-party brand products containing palm oil should be excluded. - Identity Preserved (IP) ‚ç∞ - Palm Kernel Expeller (CSPKE) | LR1: RT.2.4 Total volume of RSPO-certified palm oil, palm kernel oil and related products purchased for use in your company's own-brand products. Third-party brand products containing palm oil should be excluded. - Identity Preserved (IP) ‚ç∞ - Certified Derivatives and Fractions | LS1: RT.2.4.1 Please estimate the percentage of RSPO-certified derivatives and fractions (reported in Question RT.2.4) derived from RSPO-certified palm oil or from RSPO-certified palm kernel oil. The default split for volumes is assumed to be 80% palm oil-based derivatives and 20% palm kernel oil-based derivatives. - Certified Palm oil-based derivatives and fractions | LT1: RT.2.4.1 Please estimate the percentage of RSPO-certified derivatives and fractions (reported in Question RT.2.4) derived from RSPO-certified palm oil or from RSPO-certified palm kernel oil. The default split for volumes is assumed to be 80% palm oil-based derivatives and 20% palm kernel oil-based derivatives. - Certified Palm kernel oil-based derivatives and fractions | LU1: RT.2.5 According to the volume information you have provided in Question 2.2 and Question 2.4, your company's Certified Sustainable Palm Oil uptake is: ‚ç∞ | LV1: RT.2.5.1 Please provide additional information on your certified palm oil, palm kernel oil and related products uptake. This may include your usage of RSPO Credits to cover gaps in certified uptake, changes due to business environment, variations due to stock positions or efforts to support independent smallholders beyond volume commitments. | LW1: RT.2.6 Please estimate the regional distribution of your company's RSPO certified palm oil and palm oil-products sales (as declared in Question 2.4) in the following countries/regions. In cases where sales distribution data is not available, members may use manufacturing regions as a proxy for regional usage of certified volumes. ‚ç∞ - Europe <span style="font-size:22px;font-weight: bold" title="Albania, Andorra, Austria, Belarus, Belgium, Bosnia and Herzegovina, Bulgaria, Croatia, Cyprus, Czech Republic, Denmark, Estonia, Finland, France, Germany, Gibraltar, Greece, Guernsey, Hungary, Iceland, Ireland, Isle of Man, Italy, Jersey, Kosovo, Latvia, Liechtenstein, Lithuania, Luxembourg, Macedonia, Malta, Moldova, Monaco, Montenegro, Netherlands, North Macedonia, Norway, Poland, Portugal, Romania, Russia, San Marino, Serbia, Slovakia, Slovenia, Spain, Sweden, Switzerland, Ukraine, United Kingdom, Vatican City">‚ç∞</span> | LX1: RT.2.6 Please estimate the regional distribution of your company's RSPO certified palm oil and palm oil-products sales (as declared in Question 2.4) in the following countries/regions. In cases where sales distribution data is not available, members may use manufacturing regions as a proxy for regional usage of certified volumes. ‚ç∞ - North America <span style="font-size:22px;font-weight: bold" title="Canada, USA">‚ç∞</span> | LY1: RT.2.6 Please estimate the regional distribution of your company's RSPO certified palm oil and palm oil-products sales (as declared in Question 2.4) in the following countries/regions. In cases where sales distribution data is not available, members may use manufacturing regions as a proxy for regional usage of certified volumes. ‚ç∞ - Malaysia | LZ1: RT.2.6 Please estimate the regional distribution of your company's RSPO certified palm oil and palm oil-products sales (as declared in Question 2.4) in the following countries/regions. In cases where sales distribution data is not available, members may use manufacturing regions as a proxy for regional usage of certified volumes. ‚ç∞ - Indonesia | MA1: RT.2.6 Please estimate the regional distribution of your company's RSPO certified palm oil and palm oil-products sales (as declared in Question 2.4) in the following countries/regions. In cases where sales distribution data is not available, members may use manufacturing regions as a proxy for regional usage of certified volumes. ‚ç∞ - China | MB1: RT.2.6 Please estimate the regional distribution of your company's RSPO certified palm oil and palm oil-products sales (as declared in Question 2.4) in the following countries/regions. In cases where sales distribution data is not available, members may use manufacturing regions as a proxy for regional usage of certified volumes. ‚ç∞ - India | MC1: RT.2.6 Please estimate the regional distribution of your company's RSPO certified palm oil and palm oil-products sales (as declared in Question 2.4) in the following countries/regions. In cases where sales distribution data is not available, members may use manufacturing regions as a proxy for regional usage of certified volumes. ‚ç∞ - Latin America <span style="font-size:22px;font-weight: bold" title="Anguilla, Antigua and Barbuda, Argentina, Aruba, Bahamas, Barbados, Belize, Bolivia, Brazil, British Virgin Islands, Cayman Islands, Chile, Colombia, Costa Rica, Cuba, Cura√ßao, Dominica, Dominican Republic, Ecuador, El Salvador, Grenada, Guatemala, Guyana, Haiti, Honduras, Jamaica, Mexico, Montserrat, Nicaragua, Panama, Paraguay, Peru, Saint Barth√©lemy, Saint Kitts and Nevis, Saint Lucia, Saint Martin, Saint Vincent and the Grenadines, Sint Maarten, Suriname, Trinidad and Tobago, Turks and Caicos Islands, U.S. Virgin Islands, Uruguay, Venezuela">‚ç∞</span> | MD1: RT.2.6 Please estimate the regional distribution of your company's RSPO certified palm oil and palm oil-products sales (as declared in Question 2.4) in the following countries/regions. In cases where sales distribution data is not available, members may use manufacturing regions as a proxy for regional usage of certified volumes. ‚ç∞ - Africa <span style="font-size:22px;font-weight: bold" title="Algeria, Angola, Benin, Botswana, Burkina Faso, Burundi, Cameroon, Cape Verde, Central African Republic, Chad, Comoros, Democratic Republic of Congo, Republic of Congo, C√¥te d'Ivoire, Djibouti, Egypt, Equatorial Guinea, Eritrea, Eswatini, Ethiopia, Gabon, Gambia, Ghana, Guinea, Guinea-Bissau, Kenya, Lesotho, Liberia, Libya, Madagascar, Malawi, Mali, Mauritania, Mauritius, Morocco, Mozambique, Namibia, Niger, Nigeria, Rwanda, S√£o Tom√© and Pr√≠ncipe, Senegal, Seychelles, Sierra Leone, Somalia, South Africa, South Sudan, Sudan, Swaziland, Tanzania, Togo, Tunisia, Uganda, Zambia, Zimbabwe">‚ç∞</span> | ME1: RT.2.6 Please estimate the regional distribution of your company's RSPO certified palm oil and palm oil-products sales (as declared in Question 2.4) in the following countries/regions. In cases where sales distribution data is not available, members may use manufacturing regions as a proxy for regional usage of certified volumes. ‚ç∞ - Rest of World <span style="font-size:22px;font-weight: bold" title="Bangladesh, Bhutan, Brunei, Cambodia, Hong Kong S.A.R., Japan, Laos, Macao S.A.R., Maldives, Mongolia, Myanmar, Nepal, North Korea, Pakistan, Papua New Guinea, Philippines, Singapore, South Korea, Sri Lanka, Taiwan Region, Thailand, Timor-Leste, Vietnam, Bermuda, Kazakhstan, Kyrgyzstan, Tajikistan, Turkmenistan, Uzbekistan, Afghanistan, Armenia, Azerbaijan, Bahrain, Georgia, Iran, Iraq, Israel, Jordan, Kuwait, Lebanon, Oman, Palestine, Qatar, Saudi Arabia, Syria, Turkey, United Arab Emirates, Yemen, American Samoa, Australia, Cocos (Keeling) Islands, Cook Islands, Fiji, French Polynesia, Guam, Kiribati, Marshall Islands, Micronesia, Nauru, New Caledonia, New Zealand, Niue, Northern Mariana Islands, Palau, Samoa, Solomon Islands, Tonga, Tuvalu, Vanuatu">‚ç∞</span> | MF1: RT.3.1 Which year did your company begin (or expects to begin) using RSPO-certified sustainable palm oil and palm oil products in own-brand products ‚ç∞ | MG1: RT.3.1.1 If the previous target year has not been met, please explain why. | MH1: RT.3.2 Which year did your company begin (or expects to begin) using 100% RSPO-certified sustainable palm oil, palm kernel oil and related products from any supply chain option in own-brand products. ‚ç∞ | MI1: RT.3.2.1 If the previous target year has not been met, please explain why. | MJ1: RT.3.3 Which year did your company begin (or expects to begin) using 100% RSPO-certified sustainable palm oil and palm oil products from physical supply chain options (Identity Preserved, Segregated and/or Mass Balance) in own-brand products. ‚ç∞ | MK1: RT.3.3.1 If the previous target year has not been met, please explain why. | ML1: RT.3.4 If the TimeBound Plan commitments declared above do not cover all countries in which the member operates, please explain why | MM1: RT.4.1 Does your company use or plan to use the RSPO Trademark in own-brand products? ‚ç∞ | MN1: RT.4.2 Please select the countries where your company uses or intends to use the Trademark Press and hold Ctrl or Command on your keyboard to select or deselect multiple countries. | MO1: RT.4.2.1 Which year did your company begin (or expects to begin) using the RSPO Trademark | MP1: RT.4.3 Please explain why your company does not plan to use the RSPO Trademark in own-brand products - Selected Choice | MQ1: RT.4.3 Please explain why your company does not plan to use the RSPO Trademark in own-brand products - Others - Text | MR1: RT.5.1 Please outline activities that your company will take in the coming year to promote the production or consumption of certified sustainable palm oil (CSPO) ‚ç∞ | MS1: SR.1.1 Acknowledgement | MT1: SR.1.1 Does your company have a publicly-available policy covering Labour & Labour Rights? ‚ç∞ | MU1: SR.1.1.1 Does the policy cover: | MV1: SR.1.2 Does your company have a publicly-available Policy covering Ethical Conduct & Human Rights? ‚ç∞ | MW1: SR.1.2.1 Does the policy cover: | MX1: SR.1.3 Does your company have a publicly-available Policy covering Land Use? ‚ç∞ | MY1: SR.1.3.1 Does the policy cover: | MZ1: SR.1.4 Does your company have a publicly-available Policy covering Occupational Health & Safety? ‚ç∞ | NA1: SR.1.5 Does your company have a publicly-available policy covering Climate Change & Greenhouse Gas (GHG)? ‚ç∞ | NB1: SR.1.5.1 Does the policy cover: | NC1: SR.1.6 Does your company have a Complaints & Grievances Mechanism? ‚ç∞ | ND1: SR.1.6.1 Is your Complaints & Grievance mechanism in line with the principles of the RSPO's grievance mechanism, which are the elements of fairness, transparency, and impartiality? ‚ç∞ | NE1: SR.1.7 Does your company support oil palm independent smallholder groups? ‚ç∞ | NF1: SR.1.7.1 Does this support cover: | NG1: SR.1.7.2 How is your company supporting them? | NH1: SR.1.7.3 Do you have any future plans to support oil palm Independent Smallholders? | NI1: SR.1.7.4 Please explain why you are not planning to support oil palm independent smallholders | NJ1: SR.1.8 Does your company have a publicly-available Policy covering the implementation of RSPO Shared Responsibility principles? ‚ç∞ | NK1: SR.1.9 Does your company have a waste management plan? ‚ç∞ | NL1: SR.1.10 Does your company have a water management plan? ‚ç∞ | NM1: SR.1.11 Does your company have an energy use plan covering fossil fuels and renewable energy? ‚ç∞ | NN1: SR.1.12 Does your company provide services and support to the RSPO, eg. participation in RSPO Working Groups and Task Forces ‚ç∞ | NO1: SR.1.13 Does your company have a plan to commit resources to ensure effective implementation of RSPO Shared Responsibility principles? ‚ç∞ | NP1: CS.1.1 What significant obstacles or challenges has your company encountered in the promotion of certified sustainable palm oil (CSPO)? What efforts has your company taken to address these obstacles or challenges? - Selected Choice | NQ1: CS.1.1 What significant obstacles or challenges has your company encountered in the promotion of certified sustainable palm oil (CSPO)? What efforts has your company taken to address these obstacles or challenges? - Others - Text | NR1: CS.1.2 In addition to the actions already reported in this ACOP report, what other ways has your company supported the vision of the RSPO to transform markets to make sustainable palm oil the norm? ‚ç∞ - Selected Choice | NS1: CS.1.2 In addition to the actions already reported in this ACOP report, what other ways has your company supported the vision of the RSPO to transform markets to make sustainable palm oil the norm? ‚ç∞ - Others - Text | NT1: CS.1.3 If your company has any other publicly-available reports or information regarding its palm oil-related policies and activities, please provide the links here ‚ç∞
B2: Industrias Ales C.A. | C2: 2-0303-12-000-00 | D2: Palm Oil Processors and/or Traders | E2: Ordinary | F2: Ecuador | G2: Yes | H2: I own and operate oil palm estate(s) and/or palm oil mill(s),I am a refiner of palm oil or palm kernel oil,I manufacture consumer (B2C) products containing palm oil, palm kernel oil or related products. This includes products manufactured by 3rd party contractors.,I operate food retail outlets that use palm oil, palm kernel oil or related products | J2: Food service providers ‚ç∞ | L2: Industrias Ales as a member of RSPO in its supply chain manages what is the palm oil refinery in Manta. | M2: Latin America ‚ç∞ | N2: an aggregate level (as in previous ACOP reporting cycles) | KJ2: 37035.94 | KK2: 686.68 | KL2: 9.77 | KM2: 62630.84 | KN2: 97 | KO2: 3 | KP2: 0 | KQ2: 0 | KR2: 0 | KS2: 0 | KT2: 0 | KU2: 0 | KV2: 100 | KW2: 0 | KX2: 0 | KY2: 0 | KZ2: 0 | LA2: 0 | LB2: 0 | LC2: 0 | LD2: 0 | LE2: 0 | LF2: 0 | LG2: 0 | LH2: 0 | LI2: 0 | LJ2: 0 | LK2: 0 | LL2: 0 | LM2: 0 | LN2: 0 | LO2: 0 | LP2: 0 | LQ2: 0 | LR2: 0 | LU2: 0 | LV2: Currently we do not use, but we must work to use the RSPO trademark, understanding that the purpose of membership is to contribute to sustainability by using only RSPO oil in our processes and products. | MF2: 2027 | MG2: Because the part of plantation and oil extraction is in the process of membership and certification, as a different certification unit. | MH2: 2027 | MI2: Because the part of plantation and oil extraction is in the process of membership and certification, as a different certification unit. | MJ2: 2027 | MK2: Because the part of plantation and oil extraction is in the process of membership and certification, as a different certification unit. | ML2: Because the part of plantation and oil extraction is in the process of membership and certification, as a different certification unit. | MM2: Yes | MN2: Ecuador | MO2: 2027 | MR2: We are part of the national committee that is going to work on the jurisdictional approach to promote the RSPO certification and in the sustainable palm oil production in Ecuador. We are participating in the national interpretation of the RSPO and we will maintain efforts to first continue with the certification of the part of the plantations and extractors that cooperate with ALES industries. | MS2: Please acknowledge that you have read and understood the Shared Responsibility requirements for policy submissions. | MT2: Yes | MU2: No discrimination ‚ç∞,Wage and working conditions ‚ç∞,Freedom of association ‚ç∞,No harassment ‚ç∞,No forced or trafficked labour ‚ç∞ | MV2: Yes | MW2: Recruitment ‚ç∞,Contractors ‚ç∞ | MX2: Yes | MY2: Free Prior and Informed Consent (FPIC) ‚ç∞ | MZ2: Yes | NA2: Yes | NB2: Identification and assessment of GHG ‚ç∞ | NC2: Yes | ND2: Yes | NE2: No | NH2: Yes | NJ2: Yes | NK2: Yes | NL2: Yes | NM2: Yes | NN2: Yes | NO2: Yes | NP2: Difficulties in the certification process,Competition with non-RSPO members,High costs in achieving or adhering to certification,Insufficient demand for RSPO-certified palm oil | NR2: Stakeholder engagement | NT2: http://www.ales.com.ec/index.html
B3: DENDE DO TAUA S/A - DENTAUA | C3: 2-0818-17-000-00 | D3: Palm Oil Processors and/or Traders | E3: Ordinary | F3: Brazil | G3: Yes | H3: I own and operate independent palm oil mills,I own and operate independent palm kernel crushing plants,I am a refiner of palm oil or palm kernel oil,I am a processor of intermediate (B2B) palm oil, palm kenel oil or related ingredients,I retail consumer (B2C) products containing palm oil, palm kernel oil or related products | J3: Retail - with own brand products ‚ç∞,Food service providers ‚ç∞ | L3: Process refined blanched deodorized palm oil into fat for food service and retail. | M3: Latin America ‚ç∞ | N3: an aggregate level (as in previous ACOP reporting cycles) | KJ3: 18634 | KK3: 0 | KL3: 0 | KM3: 0 | KP3: 0 | KQ3: 0 | KR3: 0 | KS3: 0 | KT3: 0 | KU3: 0 | KV3: 100 | KW3: 0 | KX3: 0 | KY3: 0 | KZ3: 0 | LA3: 0 | LB3: 0 | LC3: 0 | LD3: 0 | LE3: 0 | LF3: 0 | LG3: 0 | LH3: 0 | LI3: 0 | LJ3: 0 | LK3: 0 | LL3: 0 | LM3: 0 | LN3: 0 | LO3: 0 | LP3: 0 | LQ3: 0 | LR3: 0 | LU3: 0 | LV3: There was no use of certified products in 2020. | MF3: 2022 | MG3: There was no previous target. | MH3: 2025 | MI3: There was no previous target. | MJ3: 2025 | MK3: There was no previous target. | ML3: It covers all the countries in which the company operates, | MM3: Yes | MN3: Brazil | MO3: 2022 | MR3: Use CSPO in the productions lines and advertise that use to the market. | MS3: Please acknowledge that you have read and understood the Shared Responsibility requirements for policy submissions. | MT3: No | MV3: No | MX3: No | MZ3: No | NA3: No | NC3: No | NE3: No | NH3: Yes | NJ3: No | NK3: No | NL3: No | NM3: No | NN3: No | NO3: No | NP3: Awareness of RSPO in the market,Competition with non-RSPO members,High costs in achieving or adhering to certification,Insufficient demand for RSPO-certified palm oil | NR3: Engagement with business partners or consumers on the use of CSPO,Promotion of physical CSPO
B4: Federation of Migros Cooperatives | C4: 3-0001-04-000-00 | D4: Retailers | E4: Ordinary | F4: Switzerland | G4: Yes | H4: I manufacture consumer (B2C) products containing palm oil, palm kernel oil or related products. This includes products manufactured by 3rd party contractors.,I retail consumer (B2C) products containing palm oil, palm kernel oil or related products | J4: Retail wholesalers ‚ç∞ | L4: M-Industries (Delica Ag, Estavayer Lait SA, Mibelle Group, Bischofszell Nahrungsmittel AG) | M4: Europe ‚ç∞ | N4: an aggregate level (as in previous ACOP reporting cycles) | KJ4: 4792 | KK4: 1054 | KL4: 0 | KM4: 4160 | KN4: 80 | KO4: 20 | KP4: 30 | KQ4: 0 | KR4: 0 | KS4: 0 | KT4: 0 | KU4: 0 | KV4: 20 | KW4: 0 | KX4: 50 | KY4: 8 | KZ4: 0 | LA4: 0 | LB4: 292 | LC4: 0 | LD4: 0 | LE4: 0 | LF4: 0 | LG4: 9 | LH4: 275 | LI4: 0 | LJ4: 3868 | LK4: 4769 | LL4: 567 | LM4: 0 | LN4: 0 | LO4: 0 | LP4: 0 | LQ4: 0 | LR4: 0 | LS4: 80 | LT4: 20 | LU4: 0.9782 | LW4: 30 | LX4: 0 | LY4: 0 | LZ4: 0 | MA4: 0 | MB4: 0 | MC4: 20 | MD4: 0 | ME4: 50 | MF4: 2007 | MH4: 2015 | MJ4: 2015 | MK4: target met except for a small quantity highly processed | ML4: cover all countries | MM4: Yes | MN4: Switzerland | MO4: 2007 | MR4: '- engagement within the palm oil network switzerland aiming to source 100% certified sustainable palm oil and initiate improvement projects in origin countries - supplier engagement: on the ground investment in supply chain of the largest direct supplier - promote the use of certified sustainable palm oil of all thrid party brand suppliers | MS4: Please acknowledge that you have read and understood the Shared Responsibility requirements for policy submissions. | MT4: Yes | MU4: No discrimination ‚ç∞,Wage and working conditions ‚ç∞,Freedom of association ‚ç∞,No child labour ‚ç∞,No harassment ‚ç∞,No forced or trafficked labour ‚ç∞ | MV4: Yes | MW4: Recruitment ‚ç∞,Contractors ‚ç∞,Sub-Contractors & Third-Party Contractors ‚ç∞ | MX4: No | MZ4: Yes | NA4: Yes | NB4: Identification and assessment of GHG ‚ç∞,Monitored implementation plan to reduce or minimise GHG emissions ‚ç∞ | NC4: Yes | ND4: Yes | NE4: No | NH4: Yes | NJ4: No | NK4: Yes | NL4: Yes | NM4: Yes | NN4: Yes | NO4: No | NP4: Awareness of RSPO in the market,Reputation of palm oil in the market,Traceability issues | NR4: Engagement with business partners or consumers on the use of CSPO,Engagement with government agencies,Promotion of CSPO outside of RSPO venues such as trade workshops or industry associations,Promotion of physical CSPO,Providing funding or support for CSPO development efforts,Research & Development support,Stakeholder engagement
B5: Coop Switzerland | C5: 3-0003-04-000-00 | D5: Retailers | E5: Ordinary | F5: Switzerland | G5: Yes | H5: I retail consumer (B2C) products containing palm oil, palm kernel oil or related products | J5: Retail - with own brand products ‚ç∞ | L5: Coop Switzerland - Member Further information on Coop Switzerland is available at: https://www.coop.ch/en/about-us/company.html Group Members (Subsidiaries): HALBA, Coop Fachstelle B√§ckereien | M5: Europe ‚ç∞ | N5: an aggregate level (as in previous ACOP reporting cycles) | KJ5: 1818 | KK5: 0 | KL5: 0 | KM5: 215 | KN5: 7 | KO5: 93 | KP5: 100 | KQ5: 0 | KR5: 0 | KS5: 0 | KT5: 0 | KU5: 0 | KV5: 0 | KW5: 0 | KX5: 0 | KY5: 0 | KZ5: 0 | LA5: 0 | LB5: 0 | LC5: 15 | LD5: 0 | LE5: 0 | LF5: 60 | LG5: 34 | LH5: 0 | LI5: 0 | LJ5: 155 | LK5: 1767 | LL5: 0 | LM5: 0 | LN5: 0 | LO5: 2 | LP5: 0 | LQ5: 0 | LR5: 0 | LS5: 7 | LT5: 93 | LU5: 1 | LV5: All the Book&Claim Credits bought are from independent smallholders. Our products contained in 2020 208 tons of organic BioSuisse palmoil (which is reported as RSPO SG -> as RSPO is a prerequisite for the organic BioSuisse certification.) Actually, it could even be classified as IP. Additionally, 161 tons are officially registered as double certified RSPO and BioSuisse and therefore reported as RSPO SG within this ACOP too. | LW5: 100 | LX5: 0 | LY5: 0 | LZ5: 0 | MA5: 0 | MB5: 0 | MC5: 0 | MD5: 0 | ME5: 0 | MF5: 2009 | MH5: 2009 | MJ5: 2017 | MK5: For own brand Food products we set following targets: Palm oil and oil palm products according to the standards RSPO Identity Preserved or RSPO Segregated. 2017: 100% 2018: 100% 2019: 100% 2020: 100% Thus, we go further than most retailers as we do not accept RSPO Mass Balance. In 2020 we have achieved 99.9%, which means we have practically reached our target. For own brand Non Food products we set following targets: Palm oil and oil palm products according to the standards RSPO Identity Preserved, RSPO Segregated or RSPO Mass Balance. 2017: 73% 2018: 75% 2019: 78% 2020: 80% In 2019 we have achieved 71.7%. That means we narrowly missed our target. The conversion to physical supply chain options is a challenge in the Non Food sector, as certain raw materials are simply not available RSPO certified. | MM5: No | MP5: Challenging reputation of palm oil,Confusion among end-consumers,Lack of customer demand,Limited label space,Low usage of palm oil | MR5: We will promote the use of RSPO mass balance and if possible even SG in non food products. therefore a supplier of such certified derivates is needed. In cooperation with the swiss palm oil network, we will try to push sustainability in the non food market of Palm oil and to push traceability of imported palm oil and palm oil derivates. | MS5: Please acknowledge that you have read and understood the Shared Responsibility requirements for policy submissions. | MT5: Yes | MU5: No discrimination ‚ç∞,Wage and working conditions ‚ç∞,Freedom of association ‚ç∞,No child labour ‚ç∞,No harassment ‚ç∞,No forced or trafficked labour ‚ç∞ | MV5: Yes | MW5: Recruitment ‚ç∞,Contractors ‚ç∞,Sub-Contractors & Third-Party Contractors ‚ç∞ | MX5: Yes | MY5: Free Prior and Informed Consent (FPIC) ‚ç∞,Compensation ‚ç∞ | MZ5: Yes | NA5: Yes | NB5: Identification and assessment of GHG ‚ç∞,Monitored implementation plan to reduce or minimise GHG emissions ‚ç∞ | NC5: Yes | ND5: Yes | NE5: Yes | NF5: Fair and transparent dealings with Smallholders ‚ç∞,Improved Smallholder livelihoods ‚ç∞ | NG5: Development of a supply chain for RSPO and Bio Suisse certified palm oil from smallholders in C√¥te d'Ivoire. Making sure the smallholders get a fair share of the price paid for the palm oil. | NJ5: Yes | NK5: Yes | NL5: Yes | NM5: Yes | NN5: Yes | NO5: Yes | NP5: Certification of smallholders,Reputation of palm oil in the market,Reputation of RSPO in the market,Others | NQ5: Development of a supply chain for RSPO and Bio Suisse certified palm oil from smallholders in C√¥te d'Ivoire. Investment in Capacity Building for smallholders planned. | NR5: Engagement with business partners or consumers on the use of CSPO,Engagement with government agencies,Promotion of physical CSPO,Providing funding or support for CSPO development efforts,Stakeholder engagement | NT5: Coop palm oil guideline: https://www.actions-notwords. ch/content/dam/act/TatenstattWorte_Relaunch/Nachhaltigkeitsthemen/Landwirtschaft-und- Verarbeitung/Rohstoffe/Palmoel/richtlinie_palmoel_en.pdf
B6: The Co-operative Group | C6: 3-0004-05-000-00 | D6: Retailers | E6: Ordinary | F6: United Kingdom | G6: Yes | H6: I retail consumer (B2C) products containing palm oil, palm kernel oil or related products | J6: Retail - with own brand products ‚ç∞,Retail wholesalers ‚ç∞ | L6: The Co-operative Group The Co-operative Group Nisa Wholesale Ltd | M6: Europe ‚ç∞ | N6: an aggregate level (as in previous ACOP reporting cycles) | KJ6: 5230 | KK6: 1424 | KL6: 0 | KM6: 777 | KN6: 58 | KO6: 42 | KP6: 100 | KQ6: 0 | KR6: 0 | KS6: 0 | KT6: 0 | KU6: 0 | KV6: 0 | KW6: 0 | KX6: 0 | KY6: 27.7 | KZ6: 72 | LA6: 0 | LB6: 0 | LC6: 1 | LD6: 0 | LE6: 0 | LF6: 0 | LG6: 609.8 | LH6: 796 | LJ6: 124.8 | LK6: 4574.8 | LL6: 555.8 | LM6: 0 | LN6: 651.6 | LO6: 18.1 | LP6: 0 | LQ6: 0 | LR6: 0 | LS6: 58 | LT6: 42 | LU6: 1.0001 | LV6: Note 1 IS credit purchased to cover volume of less than 0.06 tonnes, causing RT2.5 to calculate over 100% | LW6: 100 | LX6: 0 | LY6: 0 | LZ6: 0 | MA6: 0 | MB6: 0 | MC6: 0 | MD6: 0 | ME6: 0 | MF6: 2009 | MH6: 2014 | MJ6: 2020 | MK6: During 2020 we used 99% physically sustianble - 78% segregated, 21% mass balance. Despite this we have not met our previous target of 100% segregated by the end of 2020. The coronavirus pandemic has affected supply in some cases, so certain products will switch to segregated during 2021. However, even outside of these factors, challenges in certain product types mean segregated solutions haven't yet been possible. We continue to work towards 100% segregated and will report annually on our progress | MM6: Yes | MN6: United Kingdom | MO6: 2016 | MR6: We will continue to work collaboratively in RPOG and POTC, as well as supporting reforestation of former plantations in partnership with Chester Zoo. As well as continuing to work towards 100% segregated palm oil in our own products, we are working to engage with our suppliers, traders and brands outside our own products. Please see our webpage for more details: https://www.coop.co.uk/sustainability/responsible-sourcing/palm-oil | MS6: Please acknowledge that you have read and understood the Shared Responsibility requirements for policy submissions. | MT6: Yes | MU6: No discrimination ‚ç∞,Wage and working conditions ‚ç∞,Freedom of association ‚ç∞,No child labour ‚ç∞,No harassment ‚ç∞,No forced or trafficked labour ‚ç∞ | MV6: Yes | MX6: No | MZ6: Yes | NA6: Yes | NB6: Identification and assessment of GHG ‚ç∞,Monitored implementation plan to reduce or minimise GHG emissions ‚ç∞ | NC6: Yes | ND6: Yes | NE6: Yes | NG6: We purchase smallholder credits (very small volume) and encourage suppliers that still use credits to purchase IS credits (again small volumes). Conscious that we are increasingly reducing our dependence on credits (1% of 2020 footprint) so in the next year we will look to identify smallholder projects we can support | NJ6: Yes | NK6: Yes | NL6: No | NM6: Yes | NN6: No | NO6: Yes | NP6: Awareness of RSPO in the market,Reputation of palm oil in the market,Reputation of RSPO in the market,Traceability issues | NR6: Engagement with business partners or consumers on the use of CSPO,Stakeholder engagement,Others | NS6: Updating comms and blogs around palm oil, participation with Retailers' Palm Oil Group | NT6: https://www.coop.co.uk/sustainability/responsible-sourcing/palm-oil https://www.co-operative.coop/ethics/sustainability-reporting https://www.coop.co.uk/climate
B7: Boots UK Limited | C7: 3-0005-06-000-00 | D7: Retailers | E7: Ordinary | F7: United Kingdom | G7: Yes | H7: I retail consumer (B2C) products containing palm oil, palm kernel oil or related products | J7: Retail - with own brand products ‚ç∞ | L7: Boots UK Liz Earle Beauty Products Brands: Soap & Glory Botanics No7 Your Good Skin Sleek | M7: Europe ‚ç∞,North America ‚ç∞,Rest of the World ‚ç∞ | N7: an aggregate level (as in previous ACOP reporting cycles) | KJ7: 68 | KK7: 29 | KL7: 0 | KM7: 1279 | KN7: 82 | KO7: 18 | KP7: 91 | KQ7: 7 | KR7: 0 | KS7: 0 | KT7: 0 | KU7: 0 | KV7: 0 | KW7: 0 | KX7: 2 | KY7: 1 | KZ7: 4 | LA7: 0 | LB7: 826 | LC7: 0 | LD7: 0 | LE7: 0 | LF7: 0 | LG7: 57 | LH7: 25 | LI7: 0 | LJ7: 446 | LK7: 10 | LL7: 0 | LM7: 0 | LN7: 7 | LO7: 0 | LP7: 0 | LQ7: 0 | LR7: 0 | LS7: 82 | LT7: 18 | LU7: 1 | LV7: Overall volumes are approximately 30% lower than 2019 due to reduced retail sales during the Covid 19 pandemic. RSPO Credits data includes our own purchase of credits plus credits bought on our behalf by suppliers. | LW7: 91 | LX7: 7 | LY7: 0 | LZ7: 0 | MA7: 0 | MB7: 0 | MC7: 0 | MD7: 0 | ME7: 2 | MF7: 2010 | MG7: Target met | MH7: 2014 | MI7: Target met | MJ7: 2025 | MK7: Our current interim target is to reach 75% physically certified by end 2020. This should be achieved this calendar year | ML7: Targets cover all countries listed | MM7: No | MP7: Confusion among end-consumers,Low usage of palm oil,Others | MQ7: Palm oil is often in our products at low levels or in the form of derivatives. Therefore relevance of trademark in these cases uncertain | MR7: 1) We have also identified and addressed the highest volume materials and have agreed an implementation plan with major suppliers to convert the largest volume materials to RSPO physically certified sources in the next 12 months 2) We continue to work with the Retailer Palm Oil Group to collectively improve the availability and credibility of RSPO physically certified palm oil. 3) As members of the Palm Oil Transparency Coalition we are working with palm oil first importers to improve supply chain verification and standards for certified palm oil. 4) In the next month we will be issuing revised Minimum Sustainability Requirements to suppliers including strengthening our requirement for Physically certified palm oil and derivitives. We are also launching an upgraded supplier portal to capture palm oil data more efficiently and including a Knowledge Hub for suppliers giving guidance on our palm oil requirements | MS7: Please acknowledge that you have read and understood the Shared Responsibility requirements for policy submissions. | MT7: Yes | MU7: No discrimination ‚ç∞,Wage and working conditions ‚ç∞,Freedom of association ‚ç∞,No child labour ‚ç∞,No harassment ‚ç∞,No forced or trafficked labour ‚ç∞ | MV7: Yes | MW7: Recruitment ‚ç∞,Contractors ‚ç∞,Sub-Contractors & Third-Party Contractors ‚ç∞ | MX7: No | MZ7: Yes | NA7: Yes | NB7: Identification and assessment of GHG ‚ç∞,Monitored implementation plan to reduce or minimise GHG emissions ‚ç∞ | NC7: Yes | ND7: Yes | NE7: No | NH7: Yes | NJ7: Yes | NK7: Yes | NL7: No | NM7: Yes | NN7: No | NO7: Yes | NP7: High costs in achieving or adhering to certification,Low usage of palm oil,Reputation of palm oil in the market,Traceability issues | NR7: Engagement with business partners or consumers on the use of CSPO,Promotion of CSPO outside of RSPO venues such as trade workshops or industry associations,Promotion of physical CSPO,Stakeholder engagement | NT7: https://www.walgreensbootsalliance.com/sites/www/files/asset/Walgreens-Boots-Alliance-2020-Corporate-Social-Responsibility-Report.pdf
B8: Marks and Spencer plc | C8: 3-0009-06-000-00 | D8: Retailers | E8: Ordinary | F8: United Kingdom | G8: Yes | H8: I retail consumer (B2C) products containing palm oil, palm kernel oil or related products,I operate food retail outlets that use palm oil, palm kernel oil or related products | J8: Retail - with own brand products ‚ç∞ | L8: We buy own label products - food, beauty and some home products from suppliers around the world that use palm oil as an ingredient | M8: Europe ‚ç∞,China,India | N8: an aggregate level (as in previous ACOP reporting cycles) | KJ8: 4694 | KK8: 344 | KM8: 431 | KN8: 62 | KO8: 38 | KP8: 90 | KQ8: 0 | KR8: 0 | KS8: 0 | KT8: 5 | KU8: 5 | KV8: 0 | KW8: 0 | KX8: 0 | KY8: 18 | KZ8: 0 | LA8: 0 | LB8: 0 | LC8: 2 | LD8: 0 | LE8: 0 | LF8: 20 | LG8: 1024 | LH8: 107 | LI8: 0 | LJ8: 223 | LK8: 3650 | LL8: 237 | LM8: 0 | LN8: 188 | LO8: 0 | LP8: 0 | LQ8: 0 | LR8: 0 | LS8: 62 | LT8: 38 | LU8: 1 | LV8: The majority of the palm oil we use is now physical - either mass balance or segregated. We have increased the amount of segregated palm to 75% from 69% from last year and expect this to increase this year. We are purchasing small holder credits via ACT to cover the remaining uncertified volume. | LW8: 90 | LX8: 0 | LY8: 0 | LZ8: 0 | MA8: 5 | MB8: 5 | MC8: 0 | MD8: 0 | ME8: 0 | MF8: 2009 | MG8: We met our target | MH8: 2009 | MI8: We met this target | MJ8: 2019 | MK8: We have now achieved 99.9% physical palm oil purchase so would assess this as 100% | ML8: They do cover all countries | MM8: No | MP8: Limited label space,Low usage of palm oil | MR8: We have also introduced a new short web page that simply communicates our position on palm oil https://corporate.marksandspencer.com/sustainability/quick-reads/our-stance-on-palm-oil and are looking at other ways we can communicate to customers. | MS8: Please acknowledge that you have read and understood the Shared Responsibility requirements for policy submissions. | MT8: Yes | MU8: No discrimination ‚ç∞,Wage and working conditions ‚ç∞,Freedom of association ‚ç∞,No child labour ‚ç∞,No harassment ‚ç∞,No forced or trafficked labour ‚ç∞ | MV8: Yes | MW8: Contractors ‚ç∞,Sub-Contractors & Third-Party Contractors ‚ç∞ | MX8: No | MZ8: Yes | NA8: Yes | NB8: Identification and assessment of GHG ‚ç∞ | NC8: Yes | ND8: Yes | NE8: Yes | NF8: Improved Smallholder livelihoods ‚ç∞ | NG8: We buy small holder credits and are supporting a programme with Forever Sabah | NJ8: No | NK8: Yes | NL8: Yes | NM8: Yes | NN8: No | NO8: No | NP8: Reputation of palm oil in the market,Reputation of RSPO in the market | NR8: Stakeholder engagement,Others | NS8: We have actively worked with the Retailer Palm Oil Group and have supported Julian Walker Palin as a Board member | NT8: n/a
B9: Sainsbury's Supermarket Ltd. | C9: 3-0010-06-000-00 | D9: Retailers | E9: Ordinary | F9: United Kingdom | G9: Yes | H9: I retail consumer (B2C) products containing palm oil, palm kernel oil or related products | J9: Retail - with own brand products ‚ç∞ | L9: J Sainsbury plc | M9: Europe ‚ç∞ | N9: an aggregate level (as in previous ACOP reporting cycles) | KJ9: 7968 | KK9: 975 | KL9: 0.3 | KM9: 2933 | KN9: 77 | KO9: 23 | KP9: 0 | KQ9: 0 | KR9: 50 | KS9: 50 | KT9: 0 | KU9: 0 | KV9: 0 | KW9: 0 | KX9: 0 | KY9: 26.6 | KZ9: 0 | LA9: 0 | LB9: 0.1 | LC9: 0 | LD9: 0 | LE9: 0 | LF9: 0 | LG9: 1743.6 | LH9: 649.51 | LI9: 0 | LJ9: 1040.3 | LK9: 6146.6 | LL9: 325.2 | LM9: 0.3 | LN9: 1873 | LO9: 7.3 | LP9: 0 | LQ9: 0 | LR9: 5.1 | LS9: 77 | LT9: 23 | LU9: 0.9951 | LV9: We purchase credits to cover the remaining % that isn't certified by our suppliers. | LW9: 100 | LX9: 0 | LY9: 0 | LZ9: 0 | MA9: 0 | MB9: 0 | MC9: 0 | MD9: 0 | ME9: 0 | MF9: 2009 | MH9: 2015 | MJ9: 2015 | MK9: In 2020, 99.3% of the palm oil in our footprint was physically certified (Identity Preserved, Segregated and/or Mass Balance). | MM9: No | MP9: Confusion among end-consumers,Lack of customer demand,Limited label space,Low consumer awareness | MR9: Actions as part of the Palm Oil Transparency Coalition and the Palm Oil Roadmap of the CGF Forest Positive Coalition of Action. Continue the support of RSPO and 100% physical RSPO supply. | MS9: Please acknowledge that you have read and understood the Shared Responsibility requirements for policy submissions. | MT9: Yes | MU9: No discrimination ‚ç∞,Wage and working conditions ‚ç∞,Freedom of association ‚ç∞,No child labour ‚ç∞,No harassment ‚ç∞,No forced or trafficked labour ‚ç∞ | MV9: Yes | MW9: Recruitment ‚ç∞,Contractors ‚ç∞,Sub-Contractors & Third-Party Contractors ‚ç∞ | MX9: No | MZ9: Yes | NA9: Yes | NB9: Identification and assessment of GHG ‚ç∞,Monitored implementation plan to reduce or minimise GHG emissions ‚ç∞ | NC9: Yes | ND9: Yes | NE9: Yes | NF9: Improved Smallholder livelihoods ‚ç∞ | NG9: We purchase smallholder credits to cover any uncertified volumes | NJ9: Yes | NK9: Yes | NL9: Yes | NM9: Yes | NN9: Yes | NO9: Yes | NP9: No challenges faced | NR9: Engagement with business partners or consumers on the use of CSPO,Promotion of physical CSPO,Stakeholder engagement,Others | NS9: We are founding members of the Palm Oil Transparency Coalition, a pre-competitive group of palm oil buyers who together assess the sustainability performance of palm oil importers and traders. In 2021 we will be sharing the results of this assessment with key own-brand suppliers to help them make more sustainable commercial decisions. We will also be publishing the list of traders in our supply chain. In 2020, the CGF launched the Forest Positive Coalition of Action, comprised of 18 member companies committed to moving efficiently and quickly toward a forest positive future. With a collective market value of USD 1.8 trillion (GBP 1.3 trillion), these member companies are in a leading position to leverage collective action and accelerate systemic efforts to remove deforestation, forest degradation and conversion from key commodity supply chains. In 2020, the focus was on developing and committing to the Coalition‚Äôs Charter and driving stakeholder engagement through Commodity Working Groups. The Group also released a Version 1.1 Palm Oil Roadmap of the CGF Forest Positive Coalition of Action. Our aim in participating in the implementation of these roadmaps is to drive collaborative efforts to accelerate the removal of commodity-driven deforestation and human rights abuses from individual supply chains and drive transformational change in key commodity landscapes. | NT9: https://www.about.sainsburys.co.uk/making-a-difference/corporate-responsibility/our-stories/2019/04-2019-palm-oil
B10: WM Morrison Supermarkets PLC | C10: 3-0013-06-000-00 | D10: Retailers | E10: Ordinary | F10: United Kingdom | G10: Yes | H10: I retail consumer (B2C) products containing palm oil, palm kernel oil or related products | J10: Retail - with own brand products ‚ç∞,Retail - without own brand products ‚ç∞ | L10: Farmer's Boy is the only subsidiary company - part of Wm Morrison Supermarkets plc group, which uses palm oil in the manufacture of consumer goods. Otherwise our products are retailed and manufactured in circa 490 Morrisons stores throughout the UK. | M10: Europe ‚ç∞ | N10: an aggregate level (as in previous ACOP reporting cycles) | KJ10: 11895 | KK10: 917 | KL10: 0 | KM10: 1049 | KN10: 90 | KO10: 10 | KP10: 100 | KQ10: 0 | KR10: 0 | KS10: 0 | KT10: 0 | KU10: 0 | KV10: 0 | KW10: 0 | KX10: 0 | KY10: 28 | KZ10: 428 | LA10: 0 | LB10: 0 | LC10: 0 | LD10: 0 | LE10: 0 | LF10: 0 | LG10: 3845 | LH10: 319 | LI10: 0 | LJ10: 268 | LK10: 8007 | LL10: 169 | LM10: 0 | LN10: 756 | LO10: 15 | LP10: 0 | LQ10: 0 | LR10: 0 | LS10: 90 | LT10: 10 | LU10: 0.9981 | LV10: Our current priority is transitioning volumes of certified oil from RSPO mass balance to RSPO segregated | LW10: 100 | LX10: 0 | LY10: 0 | LZ10: 0 | MA10: 0 | MB10: 0 | MC10: 0 | MD10: 0 | ME10: 0 | MF10: 2010 | MG10: Our target has been met | MH10: 2013 | MI10: Our target has been met | MJ10: 2016 | MK10: less than 0.25% of our palm footprint is covered by RSPO credits and does not meet this commitment in part due to challenges related to low volume procurement and raw material specification. We are not prioritising transitioning such a low volume, but focusing on increasing the proportion of segregated oil used in our business. | ML10: n/a | MM10: No | MP10: Confusion among end-consumers,Lack of customer demand,Limited label space,Low consumer awareness | MR10: We will be engaging with all our suppliers on sustainable sourcing of palm oil as we implement a new sustainability management system, working with suppliers to get better oversight of supply chains and progress towards our 2025 zero deforestation target. We are also participating in the Palm Oil Transparency Coalition, engaging key traders and processors on standards, expectation and performance relating to RSPO certification and more. Having implemented a 2021 target for 100% RSPO Segregated palm oil for food products we will be also engaging all food suppliers further on transition plans in this area. | MS10: Please acknowledge that you have read and understood the Shared Responsibility requirements for policy submissions. | MT10: Yes | MU10: No discrimination ‚ç∞,Wage and working conditions ‚ç∞,Freedom of association ‚ç∞,No child labour ‚ç∞,No harassment ‚ç∞,No forced or trafficked labour ‚ç∞ | MV10: Yes | MX10: Yes | MY10: Free Prior and Informed Consent (FPIC) ‚ç∞ | MZ10: Yes | NA10: Yes | NB10: Identification and assessment of GHG ‚ç∞,Monitored implementation plan to reduce or minimise GHG emissions ‚ç∞ | NC10: Yes | ND10: No | NE10: No | NH10: No | NI10: We are open to supporting independent smallholders, we just do not yet have any confirmed plans to do so. | NJ10: No | NK10: Yes | NL10: Yes | NM10: Yes | NN10: Yes | NO10: No | NP10: Awareness of RSPO in the market,Low usage of palm oil,Reputation of palm oil in the market,Supply issues,Traceability issues | NR10: Engagement with business partners or consumers on the use of CSPO,Stakeholder engagement | NT10: Each year we produce an annual sustainability report which can be found here - https://www.morrisons-corporate.com/cr/corporate-responsibility/ Our public policies can be found here - https://www.morrisons-corporate.com/cr/policy/
B11: IKEA | C11: 3-0015-06-000-00 | D11: Retailers | E11: Ordinary | F11: Sweden | G11: Yes | H11: I retail consumer (B2C) products containing palm oil, palm kernel oil or related products | J11: Retail - with own brand products ‚ç∞ | L11: IKEA retail operations in several countries | M11: Europe ‚ç∞,North America ‚ç∞,China,India,Malaysia,Indonesia,Latin America ‚ç∞,Rest of the World ‚ç∞ | N11: an aggregate level (as in previous ACOP reporting cycles) | KJ11: 29000 | KK11: 0 | KL11: 0 | KM11: 0 | KP11: 60 | KQ11: 15 | KR11: 0 | KS11: 0 | KT11: 10 | KU11: 1 | KV11: 1 | KW11: 0 | KX11: 13 | KY11: 3000 | KZ11: 0 | LA11: 0 | LB11: 0 | LC11: 0 | LD11: 0 | LE11: 0 | LF11: 0 | LG11: 0 | LH11: 0 | LI11: 0 | LJ11: 0 | LK11: 26000 | LL11: 0 | LM11: 0 | LN11: 0 | LO11: 0 | LP11: 0 | LQ11: 0 | LR11: 0 | LU11: 1 | LV11: Using credits for palm oil used in local food supply in our retail operations | LW11: 60 | LX11: 15 | LY11: 0 | LZ11: 0 | MA11: 10 | MB11: 1 | MC11: 1 | MD11: 0 | ME11: 13 | MF11: 2015 | MG11: We still have a smallamount for food products to be concluded, locally sourced by our retail countries. | MH11: 2015 | MI11: Not applicable | MJ11: 2015 | MK11: We still have a smallamount for food products to be concluded. locally sourced by our retailcountries. | ML11: Not applicable | MM11: No | MP11: Others | MQ11: We do not use sub-branding | MR11: We continue to close the gap for our food suppliers to purchase segregated palm oil and until then buying credits. | MS11: Please acknowledge that you have read and understood the Shared Responsibility requirements for policy submissions. | MT11: Yes | MU11: No discrimination ‚ç∞,Wage and working conditions ‚ç∞,Freedom of association ‚ç∞,No child labour ‚ç∞,No harassment ‚ç∞,No forced or trafficked labour ‚ç∞ | MV11: Yes | MW11: Recruitment ‚ç∞,Contractors ‚ç∞,Sub-Contractors & Third-Party Contractors ‚ç∞ | MX11: Yes | MY11: Free Prior and Informed Consent (FPIC) ‚ç∞ | MZ11: Yes | NA11: Yes | NB11: Identification and assessment of GHG ‚ç∞,Monitored implementation plan to reduce or minimise GHG emissions ‚ç∞ | NC11: Yes | ND11: Yes | NE11: Yes | NF11: Fair and transparent dealings with Smallholders ‚ç∞,Improved Smallholder livelihoods ‚ç∞ | NG11: Project with UNDP Implementation and reporting framework working group - IRF | NJ11: No | NK11: Yes | NL11: Yes | NM11: Yes | NN11: No | NO11: Yes | NP11: Certification of smallholders,Reputation of palm oil in the market,Traceability issues | NR11: Research & Development support,Stakeholder engagement | NT11: https://newsroom.inter.ikea.com/About-Us/palm-oil/s/71210404-3d99-46d5-83cf-211010c4e0f2
B12: Royal Ahold Delhaize N.V | C12: 3-0020-07-000-00 | D12: Retailers | E12: Ordinary | F12: Netherlands | G12: Yes | H12: I retail consumer (B2C) products containing palm oil, palm kernel oil or related products | J12: Retail - with own brand products ‚ç∞ | L12: Stop & Shop Food Lion Giant Company Giant Food Hannaford Retail Business Services Peapod Digital Labs Albert Heijn Bol.com Etos Delhaize Albert Alfa Beta Mega Image Delhaize Serbia Super Indo (Joint venture) For more information please see the 2020 annual report page 11 https://media.aholddelhaize.com/media/emmkj0we/annual_report_2020_full_links-1.pdf?t=637526943268000000 | M12: Europe ‚ç∞,North America ‚ç∞,Indonesia | N12: an aggregate level (as in previous ACOP reporting cycles) | KJ12: 12977 | KK12: 627 | KL12: 0 | KM12: 0 | KP12: 63 | KQ12: 15 | KR12: 0 | KS12: 22 | KT12: 0 | KU12: 0 | KV12: 0 | KW12: 0 | KX12: 0 | KY12: 4994 | KZ12: 198 | LA12: 0 | LB12: 0 | LC12: 100 | LD12: 0 | LE12: 0 | LF12: 0 | LG12: 3547 | LH12: 372 | LI12: 0 | LJ12: 0 | LK12: 4336 | LL12: 57 | LM12: 0 | LN12: 0 | LO12: 0 | LP12: 0 | LQ12: 0 | LR12: 0 | LU12: 1 | LV12: During 2020, palm oil certifications expired for several suppliers. Due to COVID-19, these suppliers had difficulties extending their certifications, since audits could not always be performed in time. As a result, the suppliers‚Äô palm oil consumption could not be reported as certified, so we covered this with Book & Claim credits instead. Our brands continue working with these suppliers during 2021 to make sure their certifications are extended again. | LW12: 63 | LX12: 15 | LY12: 0 | LZ12: 22 | MA12: 0 | MB12: 0 | MC12: 0 | MD12: 0 | ME12: 0 | MF12: 2010 | MG12: Our target is to have 100% of palm oil volume in own brand products certified to an acceptable standard or to RSPO book & claim | MH12: 2010 | MI12: Our target is to have 100% of palm oil volume in own brand products certified to an acceptable standard or to RSPO book & claim | MJ12: 2010 | MK12: We are working to set a target year for this specific topic | ML12: All countries where we operate are covered. | MM12: Yes | MN12: Belgium | MO12: 2018 | MR12: Ahold Delhaize Brands require that all suppliers who use PO/PKO in our own brand products use RSPO MB or SG certified palm oil, and are RSPO Chain of Custody Certified themselves. In general, AD is working towards increasing the amount of physically certified RSPO palm oil in its supply chains, while reducing the use of Book&Claim. We engage proactively with the RSPO to strengthen its Principles and Criteria, and to reduce risk inits assurance protocols. We are part of the Retailers Palm Oil Group, which engages on these topics pre-competitively, and is represented on the RSPO Board of Governors. Ahold Delhaize is a member of the Palm Oil Transparency Coalition (POTC) which identifies and engages with major palm oil companies to gain greater transparency of the sustainability performance of our global palm oil supply chains. As a group of leading retailers, the POTC collaborates to obtain greater transparency of information relating to the sustainability performance of our global supply chains in order to incentivize faster progress towards a sustainable palm oil industry. | MS12: Please acknowledge that you have read and understood the Shared Responsibility requirements for policy submissions. | MT12: Yes | MU12: No discrimination ‚ç∞,Wage and working conditions ‚ç∞,Freedom of association ‚ç∞,No child labour ‚ç∞,No harassment ‚ç∞,No forced or trafficked labour ‚ç∞ | MV12: Yes | MX12: Yes | MZ12: Yes | NA12: Yes | NB12: Identification and assessment of GHG ‚ç∞,Monitored implementation plan to reduce or minimise GHG emissions ‚ç∞ | NC12: Yes | ND12: Yes | NE12: Yes | NG12: Started to buy smallholder credits | NJ12: Yes | NK12: Yes | NL12: No | NM12: Yes | NN12: Yes | NO12: Yes | NP12: Awareness of RSPO in the market,Competition with non-RSPO members,Low usage of palm oil,Others | NQ12: There is very little availability of physically certified palm oil in countries like Eastern Europe and Indonesia. Barriers to compliance are high - Chain of Custody certification is expensive and cumbersome. No local (language) Chain of Custody auditors in many countries - No local groups Managers in most countries. RSPO not adequately pitching/selling Group Certification as a good option. No local (language) materials in many countries. It is difficult to ask for or claim RSPO certified in Indonesia. | NR12: Others | NS12: Ahold Delhaize Brands require that all supplier who use PO/PKO in our own brand products use RSPO MB or SG certified palm oil and are RSPO Chain of Custody Certified themselves. This means that we reach out to every supplier using PO/PKO to start the journey towards compliance. In general, AD is working towards increasing the amount of physically certified RSPO Palm Oil in its supply chain, while reducing the use of Book&Claim. We engage proactively with the RSPO to strengthen its Principles and Criteria, and to reduce risk in its assurance protocols. We are part of the Retailers Palm Oil Group, which engages on these topics pre-competitively, and is represented on the RSPO Board of Governors. Ahold Delhaize is a member of the Palm Oil Transparency Coalition (POTC) which identifies and engages with major palm oil companies to gain greater transparency of the sustainability performance of our global palm oil supply chains. As a group of leading retailers, the RPOTC collaborates to incentivize faster progress towards a sustainable palm oil industry. | NT12: https://www.aholddelhaize.com/en/about-us/stakeholder-interests/palm-oil/
B13: Axfood AB | C13: 3-0026-10-000-00 | D13: Retailers | E13: Ordinary | F13: Sweden | G13: Yes | H13: I retail consumer (B2C) products containing palm oil, palm kernel oil or related products | J13: Retail - with own brand products ‚ç∞ | L13: Food (cookies, snacks, confectinary) non food (detergents) | M13: Europe ‚ç∞ | N13: an aggregate level (as in previous ACOP reporting cycles) | KJ13: 2519 | KK13: 0 | KL13: 0 | KM13: 0 | KP13: 100 | KQ13: 0 | KR13: 0 | KS13: 0 | KT13: 0 | KU13: 0 | KV13: 0 | KW13: 0 | KX13: 0 | KY13: 60 | KZ13: 0 | LA13: 0 | LB13: 0 | LC13: 0 | LD13: 0 | LE13: 0 | LF13: 0 | LG13: 737.7 | LH13: 0 | LI13: 0 | LJ13: 0 | LK13: 1229.5 | LL13: 0 | LM13: 0 | LN13: 0 | LO13: 491.8 | LP13: 0 | LQ13: 0 | LR13: 0 | LU13: 1 | LV13: We have certified palm oil in all our products that is food. It is for some of our non food products that is not certified, and those products we are buying credits. | LW13: 100 | LX13: 0 | LY13: 0 | LZ13: 0 | MA13: 0 | MB13: 0 | MC13: 0 | MD13: 0 | ME13: 0 | MF13: 2009 | MG13: Our target is met | MH13: 2017 | MJ13: 2019 | ML13: We only sell products in Sweden. | MM13: No | MP13: Limited label space | MR13: Our non food products should contain only certified palm oil | MS13: Please acknowledge that you have read and understood the Shared Responsibility requirements for policy submissions. | MT13: Yes | MU13: No discrimination ‚ç∞,Wage and working conditions ‚ç∞,Freedom of association ‚ç∞,No child labour ‚ç∞,No harassment ‚ç∞,No forced or trafficked labour ‚ç∞ | MV13: Yes | MW13: Recruitment ‚ç∞,Contractors ‚ç∞,Sub-Contractors & Third-Party Contractors ‚ç∞ | MX13: No | MZ13: No | NA13: No | NC13: No | NE13: No | NH13: Yes | NJ13: No | NK13: No | NL13: No | NM13: No | NN13: No | NO13: No | NP13: Low usage of palm oil,Reputation of palm oil in the market,Reputation of RSPO in the market,Traceability issues | NR13: No actions taken
B14: Woolworths (Proprietary) Limited | C14: 3-0027-10-000-00 | D14: Retailers | E14: Ordinary | F14: South Africa | G14: Yes | H14: I retail consumer (B2C) products containing palm oil, palm kernel oil or related products | J14: Retail - with own brand products ‚ç∞ | L14: None | M14: Africa ‚ç∞ | N14: an aggregate level (as in previous ACOP reporting cycles) | KJ14: 2796 | KK14: 341 | KL14: 0 | KM14: 271 | KN14: 80 | KO14: 20 | KP14: 0 | KQ14: 0 | KR14: 0 | KS14: 0 | KT14: 0 | KU14: 0 | KV14: 0 | KW14: 100 | KX14: 0 | KY14: 0 | KZ14: 0 | LA14: 0 | LB14: 0 | LC14: 100 | LD14: 0 | LE14: 0 | LF14: 0 | LG14: 2796 | LH14: 282 | LI14: 0 | LJ14: 230 | LK14: 0 | LL14: 0 | LM14: 0 | LN14: 0 | LO14: 0 | LP14: 0 | LQ14: 0 | LR14: 0 | LS14: 80 | LT14: 20 | LU14: 1 | LW14: 0 | LX14: 0 | LY14: 0 | LZ14: 0 | MA14: 0 | MB14: 0 | MC14: 0 | MD14: 100 | ME14: 0 | MF14: 2011 | MH14: 2020 | MJ14: 2020 | MK14: Approximately 1% of our usage is not currently physically certified, due to complexity in sourcing small volumes of certified palm oil derivatives. | MM14: Yes | MN14: South Africa | MO14: 2017 | MR14: Where it is viable, we aim to work with our suppliers to begin sourcing certified palm oil from a segregated supply chain for palm oil and palm kernel oil. | MS14: Please acknowledge that you have read and understood the Shared Responsibility requirements for policy submissions. | MT14: Yes | MU14: No discrimination ‚ç∞,Wage and working conditions ‚ç∞,Freedom of association ‚ç∞,No child labour ‚ç∞,No harassment ‚ç∞,No forced or trafficked labour ‚ç∞ | MV14: Yes | MW14: Recruitment ‚ç∞,Contractors ‚ç∞,Sub-Contractors & Third-Party Contractors ‚ç∞ | MX14: No | MZ14: No | NA14: Yes | NB14: Identification and assessment of GHG ‚ç∞ | NC14: Yes | ND14: Yes | NE14: Yes | NG14: Purchase of RSPO smallholder credits (May 2021) | NJ14: No | NK14: Yes | NL14: Yes | NM14: Yes | NN14: No | NO14: No | NP14: Awareness of RSPO in the market,Low usage of palm oil,Reputation of palm oil in the market | NR14: Engagement with business partners or consumers on the use of CSPO,Promotion of physical CSPO,Research & Development support | NT14: https://www.woolworths.co.za/images/elasticera/New_Site/Corporate/Woolworths_Palm_Oil_Position_Statement_2019.pdf
B15: Woolworths Limited | C15: 3-0029-10-000-00 | D15: Retailers | E15: Ordinary | F15: Australia | G15: Yes | H15: I retail consumer (B2C) products containing palm oil, palm kernel oil or related products | J15: Retail - with own brand products ‚ç∞ | L15: Woolworths - AU Countdown - New Zealand | M15: Rest of the World ‚ç∞ | N15: an aggregate level (as in previous ACOP reporting cycles) | KJ15: 6018.38 | KK15: 0 | KL15: 0 | KM15: 1995.821027 | KN15: 80 | KO15: 20 | KP15: 0 | KQ15: 0 | KR15: 0 | KS15: 0 | KT15: 0 | KU15: 0 | KV15: 0 | KW15: 0 | KX15: 100 | KY15: 200 | KZ15: 0 | LA15: 0 | LB15: 0 | LC15: 0 | LD15: 0 | LE15: 0 | LF15: 0 | LG15: 3511.03 | LH15: 0 | LI15: 0 | LJ15: 0 | LK15: 2307.352303 | LL15: 0 | LM15: 0 | LN15: 0 | LO15: 0 | LP15: 0 | LQ15: 0 | LR15: 0 | LU15: 0.751 | LV15: Food - we require suppliers of own-brand products containing Palm (Kernel) Oil and its derivatives/fractions to use RSPO certified ingredients. Most of our suppliers are required to have site certification, however, where this is not commercially feasible we will offset tonnage of palm oil through RSPO Book and Claim credits. Almost all Palm Oil in Food is certified sustainable and we will assess the feasibility of segregated palm oil in high/volume lines. Our reliance on Book and Claim credits for food has declined significantly in the last 3 years - this year only 89 credits were needed well below what we had purchased (200). Non-Food - Our 2025 Sustainability commitment will see an increased focus on the formulated non-food. We are aiming toward 100% certified sustainable palm oil by the end of 2025. Our Macro Whole Living Range of Cleaners and Laundry products have launched as RSPO certified. | LW15: 0 | LX15: 0 | LY15: 0 | LZ15: 0 | MA15: 0 | MB15: 0 | MC15: 0 | MD15: 0 | ME15: 100 | MF15: 2015 | MG15: We faced challenges for a small number of products that constituted around 2% of our total volume of Palm oil usage in Food. This can either be due to palm Oil being a compound ingredient that is not available as certified sustainable, or the costs of having multiple supply chain actors certified would be cost inhibitive. We are still working towards a certified sustainable source for these ingredients. | MH15: 2020 | MI15: Food - We closed out our 2020 commitments with 98% of our Palm Oil Volumes from Certified Sustainable Palm Oil. The remaining 2% was still from RSPO sources, however closing out chain of custody at the manufacturer level was not commercially feasible. This 2% was covered with RSPO Book and Claim credits. Our Non-Food target is 2025. | MJ15: 2020 | MK15: We faced challenges for a small number of products that constituted around 2% of our total volume of Palm oil usage in Food. This can either be due to palm Oil being a compound ingredient that is not available as certified sustainable, or the costs of having multiple supply chain actors certified would be cost inhibitive. We are still working towards a certified sustainable source for these ingredients. | MM15: No | MP15: Difficulty of applying for RSPO Trademark,Lack of customer demand,Limited label space,Low consumer awareness | MR15: 1. Begin the transition of Formulated Non-Food Products to physical certified sustainable supply chains 2. Continue to support Taronga Zoo's Tiger Trek 3. Assess the feasibility of movement to segregated/identity-preserved palm oil for high volume food lines 4. Run webinars with suppliers on RSPO Supply Chain Certification | MS15: Please acknowledge that you have read and understood the Shared Responsibility requirements for policy submissions. | MT15: Yes | MU15: No discrimination ‚ç∞,Wage and working conditions ‚ç∞,Freedom of association ‚ç∞,No child labour ‚ç∞,No harassment ‚ç∞,No forced or trafficked labour ‚ç∞ | MV15: Yes | MW15: Recruitment ‚ç∞,Contractors ‚ç∞,Sub-Contractors & Third-Party Contractors ‚ç∞ | MX15: Yes | MY15: Free Prior and Informed Consent (FPIC) ‚ç∞ | MZ15: Yes | NA15: Yes | NB15: Identification and assessment of GHG ‚ç∞,Monitored implementation plan to reduce or minimise GHG emissions ‚ç∞ | NC15: Yes | ND15: Yes | NE15: No | NH15: No | NI15: Our current focus is on ensuring our supply chains are physically certified sustainable. We will assess our approach once this is achieved. | NJ15: No | NK15: Yes | NL15: Yes | NM15: Yes | NN15: No | NO15: Yes | NP15: Difficulties in the certification process,High costs in achieving or adhering to certification,Reputation of palm oil in the market,Others | NQ15: 1. RSPO is not prominent in the Oceanic region. We needed to build up a knowledge and auditor base to ensure we would meet our commitments. 2. Site certification at the end-product manufacturer level can be cost inhibitive on lines that are either low sales volume or have small amounts of palm oil. 3. Customers are still on the journey of understanding palm oil's merits from a life cycle perspective. | NR15: Engagement with business partners or consumers on the use of CSPO,Promotion of physical CSPO,Providing funding or support for CSPO development efforts,Others | NS15: We keep our suppliers actively RSPO certified, as Australia's largest retailer this brings significant up stream benefits. We support Taronga Zoos 'Tiger Trek' - an exhibition which supports customer sentiment pertaining to certified sustainable palm oil | NT15: https://www.woolworthsgroup.com.au/page/investors/our-performance/reports/Reports/CR_Reports
B16: Coles Supermarkets Pty Ltd | C16: 3-0030-10-000-00 | D16: Retailers | E16: Ordinary | F16: Australia | G16: Yes | H16: I retail consumer (B2C) products containing palm oil, palm kernel oil or related products,I operate food retail outlets that use palm oil, palm kernel oil or related products | J16: Retail - with own brand products ‚ç∞ | L16: Coles Supermarkets & Coles Express | M16: Rest of the World ‚ç∞ | N16: an aggregate level (as in previous ACOP reporting cycles) | KJ16: 5531.15 | KK16: 440.74 | KL16: 0 | KM16: 1445.7 | KN16: 80 | KO16: 20 | KP16: 0 | KQ16: 0 | KR16: 0 | KS16: 0 | KT16: 0 | KU16: 0 | KV16: 0 | KW16: 0 | KX16: 100 | LA16: 0 | LB16: 407.89 | LC16: 0 | LD16: 0 | LE16: 0 | LF16: 0 | LG16: 3697.86 | LH16: 352.92 | LI16: 0 | LJ16: 666.8 | LK16: 1833.29 | LL16: 87.81 | LM16: 0 | LN16: 371.01 | LO16: 0 | LP16: 0 | LQ16: 0 | LR16: 0 | LS16: 80 | LT16: 20 | LU16: 1 | LV16: Coles Brand food and drink products sold in Coles Supermarkets are manufactured using palm oil sourced from RSPO certified sources. This represents almost all of the palm oil used in Coles Brand products in Supermarkets. Non-food Coles Brand products sold in Coles Supermarkets are manufactured using palm oil sourced from RSPO certified sources or book and claim. Coles is continuing to transition the palm oil used in Coles Brand non-food products sold in Coles Supermarkets to palm oil and derivatives sourced from RSPO certified sources where possible. | MF16: 2012 | MG16: N/A | MH16: 2015 | MI16: Coles Brand food and drink products sold in Coles Supermarkets are manufactured using palm oil sourced from RSPO certified sources. This represents almost all of the palm oil used in Coles Brand products in Supermarkets. Non-food Coles Brand products sold in Coles Supermarkets are manufactured using palm oil sourced from RSPO certified sources or book and claim. Coles is continuing to transition the palm oil used in Coles Brand non-food products sold in Coles Supermarkets to palm oil and derivatives sourced from RSPO certified sources where possible. | MJ16: 2025 | MK16: Coles Brand food and drink products sold in Coles Supermarkets are manufactured using palm oil sourced from RSPO certified sources. This represents almost all of the palm oil used in Coles Supermarket Brand products. Non-food Coles Brand products sold in Coles Supermarkets are manufactured using palm oil sourced from RSPO certified sources or book and claim. Coles is continuing to transition the palm oil used in Coles Brand non-food products sold in Coles Supermarkets to palm oil and derivatives sourced from RSPO certified sources where possible. | ML16: N/A | MM16: No | MP16: Challenging reputation of palm oil,Confusion among end-consumers,Lack of customer demand,Limited label space,Low consumer awareness | MR16: Coles will continue to roll-out the use of palm oil ingredient labelling (i.e. identifying 'palm oil' as an ingredient rather than using the more general term 'vegetable oil'); and include statements on back of pack referencing support/contribution to sustainable palm oil in Supermarket products. Coles will continue to require new Coles Brand food and drink products sold in Coles Supermarkets to be manufactured using palm oil from RSPO certified sources. Coles will continue to work with our supply chain where possible on the conversion of remaining Coles Brand products sold in Coles Supermarkets containing non-food palm oil derivatives to sustainable sources. Coles Own brand products are promoted in 'Tiger Trek', an educational immersive experience designed to increase consumer sentiment towards CSPO. | MS16: Please acknowledge that you have read and understood the Shared Responsibility requirements for policy submissions. | MT16: Yes | MU16: No discrimination ‚ç∞,Wage and working conditions ‚ç∞,Freedom of association ‚ç∞,No child labour ‚ç∞,No harassment ‚ç∞,No forced or trafficked labour ‚ç∞ | MV16: Yes | MW16: Recruitment ‚ç∞,Contractors ‚ç∞,Sub-Contractors & Third-Party Contractors ‚ç∞ | MX16: No | MZ16: Yes | NA16: No | NC16: Yes | ND16: No | NE16: No | NH16: No | NI16: Coles does not currently have plans to support oil palm independent smallholders. Coles will be reviewing its Palm Oil Policy and Requirements, including support for oil palm independent smallholders. | NJ16: No | NK16: Yes | NL16: No | NM16: Yes | NN16: Yes | NO16: Yes | NP16: Awareness of RSPO in the market,High costs in achieving or adhering to certification,Insufficient demand for RSPO-certified palm oil,Reputation of palm oil in the market,Supply issues,Others | NQ16: To address these obstacles/challenges, Coles has helped create awareness by announcing that we are a member of the RSPO who has embraced the Principles and Criteria for Sustainable Palm Oil Production. This information is publicly available to consumers on our Sustainability - Responsible Sourcing web page. | NR16: Engagement with business partners or consumers on the use of CSPO,Stakeholder engagement,Others | NS16: Coles is a member of the Retailers Palm Oil Group. Where palm oil is present in Coles Own Brand food and drink products, Coles labels it accordingly - identifying palm oil specifically instead of using the common term ‚Äòblended vegetable oils‚Äô. | NT16: https://www.colesgroup.com.au/sustainability/?page=responsible-sourcing
B17: SCAMARK SA | C17: 3-0032-10-000-00 | D17: Retailers | E17: Ordinary | F17: France | G17: Yes | H17: I retail consumer (B2C) products containing palm oil, palm kernel oil or related products | J17: Retail - with own brand products ‚ç∞ | L17: SCAMARK is a subsidiary of E.Leclerc. Scamark is dedicated to the development and distribution of E.Leclerc's private lable products for E.Leclerc's stores. Scamark do not own any industrial factory to manufacture the products. The production is carried out by specialized suppliers to whom the products are bought according to Scamark's specifications. Sustainability has been one of E.Leclerc and Scamark's top priorities for a long time. Concerning palm oil, Scamark policy is part of E.Leclerc's "Forest Action Plan", aiming at buying sustainable raw materials and products (wood, palm oil, paper...). Scamark consumption represents about 7000 tons/year (2020). In compliance with E.Leclerc's Palm Oil Policy and commitments, here are our objectives : - To develop products with a 100% sustainable sourcing of palm oil, - To train our teams and colleagues, - To imply our suppliers, - To inform our consumers. - To ensure the complete transparency of our actions with a scope, goals and results communicated annually. As consequence, our suppliers using palm oil have to offer products made with sustainable palm oil when substitution is not possible for technological or organoleptic reasons. They shall use one of the three systems of sustainable palm oil : mass balance, identity preserved or segregated. Scamark intends to promote RSPO by the means of a website (https://www.e.leclerc/e/utiliser-une-huile-de-palme-100-certifiee-durable) but also by appealing our suppliers to get RSPO certified. Joining the RSPO is one of Scamark's priorities in order to fulfill its environnemental commitments and targets. We will ensure the best transparency towards our clients and customers, and inform regularly the RSPO on our activities, promotion, implementation and consumption of sustainable palm oil. | M17: Europe ‚ç∞ | N17: an aggregate level (as in previous ACOP reporting cycles) | KJ17: 6739 | KK17: 269 | KL17: 0 | KM17: 0 | KP17: 100 | KQ17: 0 | KR17: 0 | KS17: 0 | KT17: 0 | KU17: 0 | KV17: 0 | KW17: 0 | KX17: 0 | KY17: 0 | KZ17: 0 | LA17: 0 | LB17: 0 | LC17: 0 | LD17: 0 | LE17: 0 | LF17: 0 | LG17: 4012 | LH17: 184 | LI17: 0 | LJ17: 0 | LK17: 2682 | LL17: 84 | LM17: 0 | LN17: 0 | LO17: 46 | LP17: 0 | LQ17: 0 | LR17: 0 | LU17: 1 | LV17: Not necessary, Scamark has reached 100% usage of sustainable palm oil | LW17: 100 | LX17: 0 | LY17: 0 | LZ17: 0 | MA17: 0 | MB17: 0 | MC17: 0 | MD17: 0 | ME17: 0 | MF17: 2010 | MH17: 2015 | MJ17: 2016 | MM17: Yes | MN17: France | MO17: 2020 | MR17: 1/ Train Scamark's staff - continue Scamark's purchasing staff training on the RSPO - continue Scamark's quality staff training on the RSPO 2/ Inform our suppliers and manufacturers of Scamark's Policy : - our requirements sent to our suppliers when asked for tenders contain explicit solicitations for RSPO Certified palm o√Øl from physical supply chains (it is written that we ony authorize Mass Balance, Identity Preserved and Segregated palm oil). - E.Leclerc and consecutively Scamark has taken a "zero deforestation" commitment. - Each year since 2016, we conduct a traceability survey with our main suppliers with Earthworm Foundation. We trace the palm o√Øl back to the first importer on the EU Market. The goal is to check if the RSPO certified palm o√Øl used in our products is covered by a "zero deforestation" commitments. This survey helps us to identify the mains importers and analyse the sustainable politics concerning "zero deforestation" of those importers. We notice the results to our suppliers in order to make them aware of the situation. 3/ Inform our customers The Marque Repere's web site explains palm oil issue and Scamark's commitment : use palm oil only if necessary and 100% certified (physical supply chain only). We also explain what is RSPO and our "zero deforestation policy". 4/ Control and Improve: - Renew Earthworm Foundation's critical review of Scamark system for calculating how much palm o√Øl we use in our products to verify the reliability and efficiency on an annual basis. - We will conduct another traceability survey during 2021 with the NGO Earthworm Foundation.The survey will highlight the mains importers and allow us to analyse the sustainable politics concerning "zero deforestation" commitments of thos importers. - We will study the ability to calculate our consumption of palm oil on hygiene and detergency products 5/ Continue group work with other French Retailers (Sending a co-written letter to importers explaining the "zero deforestation zero conversion" policy shared by members...) | MS17: Please acknowledge that you have read and understood the Shared Responsibility requirements for policy submissions. | MT17: Yes | MU17: No discrimination ‚ç∞,Wage and working conditions ‚ç∞,Freedom of association ‚ç∞,No child labour ‚ç∞,No harassment ‚ç∞,No forced or trafficked labour ‚ç∞ | MV17: Yes | MW17: Contractors ‚ç∞,Sub-Contractors & Third-Party Contractors ‚ç∞ | MX17: Yes | MY17: Free Prior and Informed Consent (FPIC) ‚ç∞ | MZ17: Yes | NA17: No | NC17: No | NE17: No | NH17: No | NI17: In 2021 Scamark will consider this opportunity, there is no identifies project for now. | NJ17: No | NK17: Yes | NL17: No | NM17: No | NN17: No | NO17: Yes | NP17: No challenges faced | NR17: Engagement with business partners or consumers on the use of CSPO,Promotion of physical CSPO | NT17: https://www.mouvement.leclerc/distributeur-engage/relation-fournisseurs/lengagement-eleclerc-en-faveur-dune-huile-de-palme https://www.mouvement.leclerc/sites/default/files/2018-11/Rapport_RSE2018_E.Leclerc_0.pdf https://www.e.leclerc/e/utiliser-une-huile-de-palme-100-certifiee-durable
B18: Compass Group PLC | C18: 3-0033-10-000-00 | D18: Retailers | E18: Ordinary | F18: United Kingdom | G18: Yes | H18: I operate food retail outlets that use palm oil, palm kernel oil or related products | J18: Retail - without own brand products ‚ç∞,Food service providers ‚ç∞,Other | K18: Compass Group is a world leading food and support services company. It is important to note that we do not manufacture any products or have any own label products, and do not purchase palm oil directly. This means that whilst we can help to influence the product specifications that we purchase from suppliers, we do not have direct control of their composition/ingredients sourcing. That said, we recognize that we have a responsibility to work with our suppliers to ensure that the palm oil used in our kitchens and in the manufacturing of the products we buy is Certified Sustainable Palm Oil (CSPO). Palm oil used back of house in our kitchens: The main products that we use containing palm oil (cooking (frying) oil and margarine/vegetable oil based spreads) are used to prepare food in our kitchens. Although not Compass Group 'own brand', for the purposes of our palm oil strategy, all palm oil, and palm oil based products used back of house (i.e. in our kitchens to prepare food) will be captured and reported under our 'own brand' commitments. Palm oil in other manufacturers' brands that we source: Many of the products that Compass Group source from other manufacturers either directly contain palm oil, or palm oil products were used in the manufacturing process. These products will be captured and reported under our commitments for 'third party brands'. | L18: We use palm oil across our entire business. Compass provides food and support services to millions of people every day. We have a global footprint, with some 600,000 colleagues working in around 45 countries across 55,000 client locations. We manage the business in three geographic regions: North America, Europe and Rest of World. | M18: Europe ‚ç∞,North America ‚ç∞,China,India,Indonesia,Africa ‚ç∞,Latin America ‚ç∞,Rest of the World ‚ç∞ | N18: an aggregate level (as in previous ACOP reporting cycles) | KJ18: 3798 | KK18: 0 | KL18: 0 | KM18: 0 | KP18: 31 | KQ18: 13 | KR18: 0 | KS18: 10 | KT18: 1 | KU18: 1 | KV18: 14 | KW18: 0 | KX18: 30 | KY18: 1000 | KZ18: 0 | LA18: 0 | LB18: 0 | LC18: 612 | LD18: 0 | LE18: 0 | LF18: 0 | LG18: 1836 | LH18: 0 | LI18: 0 | LJ18: 0 | LK18: 90 | LL18: 0 | LM18: 0 | LN18: 0 | LO18: 260 | LP18: 0 | LQ18: 0 | LR18: 0 | LU18: 1 | LV18: This year and annually since 2018, we purchased PalmTrace credits to cover the uncertified volume of palm oil (within cooking (frying) oil and margarine/vegetable oil based spreads) being used back of house (i.e. in our kitchens). 38% (2019: 25%) of the credits we purchased this year were from Independent Smallholders. We will look to increase this percentage year on year until we achieve our 100% CSPO commitment by the end of 2022. | LW18: 29 | LX18: 22 | LY18: 0 | LZ18: 13 | MA18: 0 | MB18: 0 | MC18: 2 | MD18: 0 | ME18: 34 | MF18: 2017 | MG18: Not applicable - response as per previous ACOP submission | MH18: 2017 | MI18: In 2018, we took the landmark step of purchasing PalmTrace credits to cover the uncertified volume of palm oil (within cooking (frying) oil and margarine/vegetable oil based spreads) being used back of house (i.e. in our kitchens). We did the same this year and expect to do the same next year and each subsequent year until we achieve our 100% CSPO commitment by the end of 2022. | MJ18: 2022 | MK18: Not applicable - target year is 2022 | ML18: Applies globally | MM18: No | MP18: Others | MQ18: Compass Group does not source any 'own brand' products. | MR18: For the last few years, we have used a data capture system to measure the volume of palm oil used across markets that contribute in excess of 93% of our annual revenue. The system also captures the volume that comes from RSPO member companies, that is RSPO certified. In 2021, this system will be implemented in the remaining markets to provide more accurate globally representative values. We recognize that some of the products we source (margarine/vegetable oil based spreads, for example) may contain a smaller volume of other palm oil derivatives such as palm kernel oil. Although our data capture system does not currently capture this separately to the crude and refined palm oil, we are continuing to explore options in terms of how we might split this volume out in the near future. Compass Group will continue to promote the use of certified sustainable palm oil in other manufacturer's brands. Compass Group has several KPIs in place to promote CSPO use along its supply chain and continues to make steady progress towards achieving our commitments surrounding the sustainable procurement of palm oil. In 2021, we will roll out and upgraded Compass Palm Oil Supplier Questionnaire across our key suppliers, however our complex supply chain structure continues to make this process challenging. We commit to having full transparency of products with palm oil , its quantities, and the identification of the split of sustainable and non-sustainable palm oil including the supply chain method in place. We are passionate about increasing visibility, and in 2016 successfully implemented data capture systems in the UK to record the classification of palm oil contained in purchased products and the specific RSPO supply chain method used to certify. These data capture systems will be rolled out across our other major markets, commencing with Europe and North America in the near future. Based on the data collected, Compass Group will look to set incremental targets towards CSPO in other manufacturer's products. Compass Group will continue to raise awareness among suppliers and work with them towards the sustainable sourcing of palm oil. 2021 signifies one year out from our 2022 timebound commitment - during this year we are actively engaged with our procurement teams in all markets to transition any last remaining volumes of palm oil to certified sustainable from physical sources, within the specific scope of our commitment. This activity will contribute to socializing the requirement and increasing the demand as we lead our industry sub-sector towards CSPO as the norm. | MS18: Please acknowledge that you have read and understood the Shared Responsibility requirements for policy submissions. | MT18: Yes | MU18: No discrimination ‚ç∞,Wage and working conditions ‚ç∞,Freedom of association ‚ç∞,No child labour ‚ç∞,No harassment ‚ç∞,No forced or trafficked labour ‚ç∞ | MV18: Yes | MW18: Recruitment ‚ç∞,Contractors ‚ç∞,Sub-Contractors & Third-Party Contractors ‚ç∞ | MX18: Yes | MY18: Free Prior and Informed Consent (FPIC) ‚ç∞,Compensation ‚ç∞ | MZ18: Yes | NA18: Yes | NB18: Identification and assessment of GHG ‚ç∞,Monitored implementation plan to reduce or minimise GHG emissions ‚ç∞ | NC18: Yes | ND18: Yes | NE18: Yes | NF18: Fair and transparent dealings with Smallholders ‚ç∞,Improved Smallholder livelihoods ‚ç∞ | NG18: This year, 38% (2019: 25%) of the PalmTrace credits we purchased were from Independent Smallholders. We will look to increase this percentage year on year until we achieve our 100% CSPO commitment by the end of 2022. | NJ18: Yes | NK18: Yes | NL18: No | NM18: Yes | NN18: Yes | NO18: Yes | NP18: Low usage of palm oil,Traceability issues,Others | NQ18: Pre-pandemic, Compass Group operated at around 55,000 client locations and has a complex multi-tiered supply chain through which it sources the ingredients required to service our clients. Within our supply chain we procure a wide range of commodities from raw ingredients to processed food and drink, but not palm oil directly. Due to such complexities and our widespread support of SME suppliers, we are on a 'journey' of improving the visibility of those products identified with a material level of palm oil content. We have developed data capture systems to gather information on the sustainability standards applied to the palm oil contained in purchased products, this has been successfully implemented in the UK. We plan to roll such systems out to other global markets - initially Europe and North America. As use of palm oil is limited within Compass Group, our ability to roll out such systems is dependent on other drivers. We continue to develop and roll out expansive IT systems in wider geographies although the rate of deployment has been a challenge. We have developed a range of sustainable procurement standards, along with training materials on the issues around palm oil. The process of implementation includes a requirement for each country to identify suppliers where risks may exist and to begin to challenge those suppliers to provide products containing sustainably sourced commodities. We actively support the more proactive of our suppliers who are opting for CSPO such as Unilever, and our European French fries suppliers (100% of the contracted volume we purchase is from RSPO members, with 100% of the constituent palm oil being RSPO certified). The need for increased resources is another major hurdle in the use and/or promotion of CSPO. Especially in relation to our complex supply chains, increased administration burden could lead to a significant rise in costs. Although we are happy to devote more resources to promote and use CSPO, it should be noted that although palm oil containing products play a role in the Compass Group value chain, they do not constitute a significant proportion of revenue. | NR18: Engagement with business partners or consumers on the use of CSPO,Engagement with government agencies,Promotion of CSPO outside of RSPO venues such as trade workshops or industry associations,Research & Development support,Others | NS18: Compass Group has responded to the CDP Forests program and the WWF Palm Oil buyers scorecard for a number of years and will continue to do so in 2021. | NT18: https://www.compass-group.com/content/dam/compass-group/corporate/sustainability/updates/Compass_sustainability_report_2020.pdf.downloadasset.pdf
B19: Walmart Inc. | C19: 3-0034-11-000-00 | D19: Retailers | E19: Ordinary | F19: United States | G19: Yes | H19: I retail consumer (B2C) products containing palm oil, palm kernel oil or related products | J19: Retail - with own brand products ‚ç∞ | L19: - | M19: Europe ‚ç∞,North America ‚ç∞,China,India,Africa ‚ç∞,Latin America ‚ç∞,Rest of the World ‚ç∞ | N19: an aggregate level (as in previous ACOP reporting cycles) | KJ19: 107648.42 | KK19: 0 | KL19: 0 | KM19: 0 | KP19: 0 | KQ19: 86 | KR19: 0 | KS19: 0 | KT19: 1 | KU19: 0 | KV19: 13 | KW19: 0 | KX19: 0 | KY19: 1438 | KZ19: 0 | LA19: 0 | LB19: 0 | LC19: 0 | LD19: 0 | LE19: 0 | LF19: 0 | LG19: 88527 | LH19: 0 | LI19: 0 | LJ19: 0 | LK19: 2708 | LL19: 0 | LM19: 0 | LN19: 0 | LO19: 4478 | LP19: 0 | LQ19: 0 | LR19: 0 | LU19: 0.9025 | LV19: In Non Compliant Palm - there is 8713MT (8.9%) of non-certified palm oil and 811MT (0.8%) of RSPO Palmtrace Credit. | LW19: 16 | LX19: 72 | LY19: 0 | LZ19: 0 | MA19: 1 | MB19: 0 | MC19: 10 | MD19: 1 | ME19: 0 | MF19: 2011 | MH19: 2020 | MI19: Some suppliers did not deliver on the 100% RSPO certified goal - but we continue to work with them and are now asking them to move toward segregated supply. | MJ19: 2020 | MM19: No | MP19: Confusion among end-consumers,Costs of changing labels,Lack of customer demand,Low consumer awareness | MR19: In accordance with our policy, we ask our private brand suppliers to: ‚Ä¢ Source and use palm oil in accordance with the principles and criteria of the Roundtable on Sustainable Palm Oil (segregated supply chain systems), or equivalent standards, by the end of 2025. Many food products have palm oil listed as ‚Äúvegetable oil‚Äù and, in non-food products, palm oil can have over 200 alternate names. If you are unsure what ingredients are derived from palm oil, please see the list below. ‚Ä¢ Maintain (and make available upon request to Walmart) comprehensive records about the volume of palm oil and verification of sustainable palm oil used in Walmart private brand products on an annual basis, as well as disclose the origin (geographic region, country, state/province, plantation, and trader) through public monitoring and geospatial transparency platforms. ‚Ä¢ Maintain comprehensive records and reports about the volume of palm oil and verification of deforestation and conversion-free palm oil sold to Walmart, as well as the origin. Annually demonstrate deforestation and conversion-free palm sourcing to the plantation of origin through traceability reports or verifiable monitoring tools. We ask our National Brand suppliers to source RSPO Mass Balance certified palm oil in 100% of Walmart National Brand products by 2025 | MS19: Please acknowledge that you have read and understood the Shared Responsibility requirements for policy submissions. | MT19: Yes | MU19: No discrimination ‚ç∞,Wage and working conditions ‚ç∞,Freedom of association ‚ç∞,No child labour ‚ç∞,No harassment ‚ç∞,No forced or trafficked labour ‚ç∞ | MV19: Yes | MW19: Recruitment ‚ç∞,Contractors ‚ç∞ | MX19: No | MZ19: Yes | NA19: Yes | NB19: Identification and assessment of GHG ‚ç∞,Monitored implementation plan to reduce or minimise GHG emissions ‚ç∞ | NC19: Yes | ND19: Yes | NE19: No | NH19: No | NI19: - | NJ19: Yes | NK19: Yes | NL19: Yes | NM19: Yes | NN19: No | NO19: No | NP19: Awareness of RSPO in the market,High costs in achieving or adhering to certification,Insufficient demand for RSPO-certified palm oil,Supply issues,Traceability issues | NR19: Engagement with business partners or consumers on the use of CSPO,Promotion of CSPO outside of RSPO venues such as trade workshops or industry associations,Promotion of physical CSPO,Stakeholder engagement | NT19: https://corporate.walmart.com/policies https://www.walmartsustainabilityhub.com/climate/project-gigaton/forests
B20: Groupe CASINO | C20: 3-0035-11-000-00 | D20: Retailers | E20: Ordinary | F20: France | G20: Yes | H20: I retail consumer (B2C) products containing palm oil, palm kernel oil or related products,I operate food retail outlets that use palm oil, palm kernel oil or related products | J20: Retail - with own brand products ‚ç∞ | L20: Achats Marchandises Casino Grupo √âxito Grupo P√£o de A√ßucar | M20: Europe ‚ç∞,Latin America ‚ç∞ | N20: by up to 5 individual subsidiaries. Members with more than 5 subsidiaries will be required to aggregate the volumes of remaining subsidiaries into a separate total. | O20: 3 | P20: Achats Marchandises Casino | Q20: Europe ‚ç∞ | R20: This subsidiary operates in France. | S20: 2392.38 | T20: 47.08 | U20: 0 | V20: 240.22 | W20: 51 | X20: 49 | Y20: 100 | Z20: 0 | AA20: 0 | AB20: 0 | AC20: 0 | AD20: 0 | AE20: 0 | AF20: 0 | AG20: 0 | AH20: 94.44 | AI20: 0 | AJ20: 0 | AK20: 0 | AL20: 0 | AM20: 0 | AN20: 0 | AO20: 0 | AP20: 171.33 | AQ20: 2.75 | AR20: 0 | AS20: 79.42 | AT20: 2004.38 | AU20: 44.33 | AV20: 0 | AW20: 96.43 | AX20: 0.4 | AY20: 0 | AZ20: 0 | BA20: 28.11 | BB20: 51 | BC20: 49 | BD20: 0.941 | BE20: The total volume of palm oil decreases every year. | BF20: 100 | BG20: 0 | BH20: 0 | BI20: 0 | BJ20: 0 | BK20: 0 | BL20: 0 | BM20: 0 | BN20: 0 | BO20: Grupo √âxito | BP20: Latin America ‚ç∞ | BQ20: This subsidiary operates in Colombia. This year, only cooking palm oil could be reported. | BR20: 9245 | BS20: 0 | BT20: 0 | BU20: 0 | BV20: 80 | BW20: 20 | BX20: 0 | BY20: 0 | BZ20: 0 | CA20: 0 | CB20: 0 | CC20: 0 | CD20: 100 | CE20: 0 | CF20: 0 | CG20: 0 | CH20: 0 | CI20: 0 | CJ20: 0 | CK20: 0 | CL20: 0 | CM20: 0 | CN20: 0 | CO20: 9245 | CP20: 0 | CQ20: 0 | CR20: 0 | CS20: 0 | CT20: 0 | CU20: 0 | CV20: 0 | CW20: 0 | CX20: 0 | CY20: 0 | CZ20: 0 | DA20: 80 | DB20: 20 | DC20: 1 | DE20: 0 | DF20: 0 | DG20: 0 | DH20: 0 | DI20: 0 | DJ20: 0 | DK20: 100 | DL20: 0 | DM20: 0 | DN20: Grupo P√£o de A√ß√∫car | DO20: Latin America ‚ç∞ | DP20: This subsidiary operates in Brazil. | DQ20: 345 | DR20: 1.4 | DS20: 0 | DT20: 165 | DU20: 80 | DV20: 20 | DW20: 0 | DX20: 0 | DY20: 0 | DZ20: 0 | EA20: 0 | EB20: 0 | EC20: 100 | ED20: 0 | EE20: 0 | EF20: 0 | EG20: 0 | EH20: 0 | EI20: 0 | EJ20: 0 | EK20: 0 | EL20: 0 | EM20: 0 | EN20: 264 | EO20: 0 | EP20: 0 | EQ20: 38 | ER20: 67 | ES20: 0 | ET20: 0 | EU20: 4 | EV20: 0 | EW20: 0 | EX20: 0 | EY20: 0.1 | EZ20: 80 | FA20: 20 | FB20: 0.7296 | FD20: 0 | FE20: 0 | FF20: 0 | FG20: 0 | FH20: 0 | FI20: 0 | FJ20: 100 | FK20: 0 | FL20: 0 | JK20: =S20+BR20+DQ20+FP20+HO20 -> 11982.38 | JL20: =T20+BS20+DR20+FQ20+HP20 -> 48.48 | JM20: =U20+BT20+DS20+FR20+HQ20 -> 0 | JN20: 165 | JO20: =AH20+CG20+EF20+FT20+ID20 -> 94.44 | JP20: =AI20+CH20+EG20+FU20+IE20 -> 0 | JQ20: =AJ20+CI20+EH20+FV20+IF20 -> 0 | JR20: =AK20+CJ20+EI20+FW20+IG20 -> 0 | JS20: =AL20+CK20+EJ20+FX20+IH20 -> 0 | JT20: =AM20+CL20+EK20+FY20+II20 -> 0 | JU20: =AN20+CM20+EL20+FZ20+IJ20 -> 0 | JV20: =AO20+CN20+EM20+GA20+IK20 -> 0 | JW20: =AP20+CO20+EN20+GB20+IL20 -> 9680.33 | JX20: =AQ20+CP20+EO20+GC20+IM20 -> 2.75 | JY20: =AR20+CQ20+EP20+GD20+IN20 -> 0 | JZ20: =AS20+CR20+EQ20+GE20+IO20 -> 117.42 | KA20: =AT20+CS20+ER20+GF20+IP20 -> 2071.38 | KB20: =AU20+CT20+ES20+GG20+IQ20 -> 44.33 | KC20: =AV20+CU20+ET20+GH20+IR20 -> 0 | KD20: =AW20+CV20+EU20+GI20+IS20 -> 100.43 | KE20: =AX20+CW20+EV20+GJ20+IT20 -> 0.4 | KF20: =AY20+CX20+EW20+GK20+IU20 -> 0 | KG20: =AZ20+CY20+EX20+GL20+IV20 -> 0 | KH20: =BA20+CZ20+EY20+GM20+IW20 -> 28.21 | KI20: =SUM(JO20:KH20)/SUM(JK20:JN20) -> 0.9953943387 | MF20: 2011 | MH20: 2015 | MJ20: 2020 | MM20: Yes | MN20: France | MO20: 2022 | MR20: With the support of Earthworm foundation, the Casino Group committed to: ‚Ä¢ ensuring a transparent supply chain for the palm oil used in its private-label brands by first of all identifying the refiner or distributor so as ultimately to have better visibility of the whole supply chain, starting from the mill stage; ‚Ä¢ using palm oil produced without causing any deforestation or exploitation, i.e., palm oil from plantations that adopt ecologically sound policies with regard to high conservation value forests, carbon-rich forests and peatlands, which also support the development of small producers and respect local communities and workers‚Äô rights; ‚Ä¢ sharing progress reports and information regarding actions and next steps to be taken. | MS20: Please acknowledge that you have read and understood the Shared Responsibility requirements for policy submissions. | MT20: Yes | MU20: No discrimination ‚ç∞,Wage and working conditions ‚ç∞,Freedom of association ‚ç∞,No child labour ‚ç∞,No harassment ‚ç∞,No forced or trafficked labour ‚ç∞ | MV20: Yes | MW20: Recruitment ‚ç∞,Contractors ‚ç∞,Sub-Contractors & Third-Party Contractors ‚ç∞ | MX20: Yes | MY20: Free Prior and Informed Consent (FPIC) ‚ç∞ | MZ20: Yes | NA20: Yes | NB20: Identification and assessment of GHG ‚ç∞,Monitored implementation plan to reduce or minimise GHG emissions ‚ç∞ | NC20: Yes | ND20: Yes | NE20: No | NH20: No | NI20: We believe that a joint initiative has a more effective impact than supporting oil palm independent smallholders, therefore we joined the POTC (Palm Oil Transparency Coalition) in 2019. | NJ20: Yes | NK20: Yes | NL20: Yes | NM20: Yes | NN20: No | NO20: Yes | NP20: Awareness of RSPO in the market,Insufficient demand for RSPO-certified palm oil,Reputation of palm oil in the market,Reputation of RSPO in the market,Supply issues,Traceability issues,Others | NQ20: Actions should be led with refiners who are the point of entry in the European and French markets of the palm oil used downstream by the manufacturers of our own brand products.For this we asked our suppliers to obtain better visibility of our palm oil supply chain. | NR20: Engagement with business partners or consumers on the use of CSPO,Stakeholder engagement,Others | NS20: Given that the Group does not deal directly with refiners, in January 2019, it joined the Palm Oil Transparency Coalition (POTC) to take collective action in association with other retailers who share the same commitment and, in many cases, the same refiners. Joint initiatives also have a more effective impact on tier-two suppliers. On behalf of the POTC members, assessment questionnaires have been sent to the initial palm oil importers to get a precise picture of their commitment to sustainable palm oil. The findings have been shared with all of the POTC members so that they can align their future purchases accordingly. In Colombia, Grupo √âxito is supporting TFA 2020, a multi-stakeholder initiative launched in 2012 after the Rio+20 Summit, whose objective is to reduce tropical deforestation related to palm oil, soy and beef (www.tfa2020.org). √âxito also signed the TFA‚Äôs Palm Oil National Agreement, which supports joint stakeholder efforts to eliminate deforestation in the palm oil supply chain. | NT20: https://www.groupe-casino.fr/wp-content/uploads/2021/03/CASINO_URD_2020.pdf
B21: C.I.V. Superunie B.A. | C21: 3-0036-11-000-00 | D21: Retailers | E21: Ordinary | F21: Netherlands | G21: Yes | H21: I retail consumer (B2C) products containing palm oil, palm kernel oil or related products | J21: Retail - with own brand products ‚ç∞ | L21: Superunie is a buying company with 13 retailorganisaties as members: Detailresult groep, Deen, Sligro, Hoogvliet, Vomar, Spar, Nettorama, Plus, Boni, Jan Linders, Boon, Coop and Poiezs | M21: Europe ‚ç∞ | N21: an aggregate level (as in previous ACOP reporting cycles) | KJ21: 12484 | KK21: 0 | KL21: 0 | KM21: 0 | KP21: 100 | KQ21: 0 | KR21: 0 | KS21: 0 | KT21: 0 | KU21: 0 | KV21: 0 | KW21: 0 | KX21: 0 | KY21: 14 | KZ21: 0 | LA21: 0 | LB21: 0 | LC21: 0 | LD21: 0 | LE21: 0 | LF21: 0 | LG21: 8088 | LH21: 0 | LI21: 0 | LJ21: 0 | LK21: 4362 | LL21: 0 | LM21: 0 | LN21: 0 | LO21: 8 | LP21: 0 | LQ21: 0 | LR21: 0 | LU21: 0.999 | LV21: The reported volumes have increased significantly in comparison to our 2019 data. This is due to an improvement of data quality. | LW21: 100 | LX21: 0 | LY21: 0 | LZ21: 0 | MA21: 0 | MB21: 0 | MC21: 0 | MD21: 0 | ME21: 0 | MF21: 2012 | MH21: 2015 | MJ21: 2020 | MK21: The objective to use 100% RSPO certified palm oil according to the segregated principle in 2020 has turned out to not be feasible. In 2020 we reported 43%. However, all products containing 5% or more palm oil are sourced according to the RSPO trading systems Book & Claim or Mass Balance. We will continue to encourage a transition to segregated palm oil. | MM21: No | MP21: Confusion among end-consumers,Lack of customer demand,Limited label space | MR21: We continue to urge suppliers to move towards segregated RPSO. | MS21: Please acknowledge that you have read and understood the Shared Responsibility requirements for policy submissions. | MT21: Yes | MU21: No discrimination ‚ç∞,Wage and working conditions ‚ç∞,Freedom of association ‚ç∞,No child labour ‚ç∞,No harassment ‚ç∞,No forced or trafficked labour ‚ç∞ | MV21: Yes | MW21: Recruitment ‚ç∞,Contractors ‚ç∞,Sub-Contractors & Third-Party Contractors ‚ç∞ | MX21: No | MZ21: Yes | NA21: No | NC21: No | NE21: No | NH21: No | NI21: To urge our suppliers to move to RSPO is our main goal. We trust that the RSPO requirements include the support of independent palm oil smallholders. We as a company do not have the leverage to do this on our own. | NJ21: No | NK21: No | NL21: No | NM21: No | NN21: No | NO21: No | NP21: Difficulties in the certification process,Traceability issues | NR21: Engagement with business partners or consumers on the use of CSPO,Promotion of physical CSPO
B22: SOK Corporation | C22: 3-0037-11-000-00 | D22: Retailers | E22: Ordinary | F22: Finland | G22: Yes | H22: I retail consumer (B2C) products containing palm oil, palm kernel oil or related products | J22: Retail - with own brand products ‚ç∞,Food service providers ‚ç∞ | L22: S Group's private label food products, deep frying oil at S Group's restaurants. | M22: Europe ‚ç∞ | N22: an aggregate level (as in previous ACOP reporting cycles) | KJ22: 1018 | KK22: 285 | KL22: 0 | KM22: 136 | KN22: 80 | KO22: 20 | KP22: 100 | KQ22: 0 | KR22: 0 | KS22: 0 | KT22: 0 | KU22: 0 | KV22: 0 | KW22: 0 | KX22: 0 | KY22: 0 | KZ22: 0 | LA22: 0 | LB22: 0 | LC22: 0 | LD22: 0 | LE22: 0 | LF22: 0 | LG22: 46 | LH22: 16 | LI22: 0 | LJ22: 8 | LK22: 961 | LL22: 271 | LM22: 0 | LN22: 130 | LO22: 0 | LP22: 0 | LQ22: 0 | LR22: 0 | LS22: 80 | LT22: 20 | LU22: 0.9951 | LW22: 100 | LX22: 0 | LY22: 0 | LZ22: 0 | MA22: 0 | MB22: 0 | MC22: 0 | MD22: 0 | ME22: 0 | MF22: 2011 | MH22: 2019 | MJ22: 2020 | MM22: No | MP22: Low consumer awareness | MR22: SOK Corporation promotes the use of sustainable palm oil according to the palm oil policy.The requirement of the use of certified palm oil is included in own brand product requirements and communicated to suppliers. | MS22: Please acknowledge that you have read and understood the Shared Responsibility requirements for policy submissions. | MT22: Yes | MU22: No discrimination ‚ç∞,Wage and working conditions ‚ç∞,Freedom of association ‚ç∞,No child labour ‚ç∞,No harassment ‚ç∞,No forced or trafficked labour ‚ç∞ | MV22: Yes | MW22: Recruitment ‚ç∞,Contractors ‚ç∞,Sub-Contractors & Third-Party Contractors ‚ç∞ | MX22: No | MZ22: Yes | NA22: Yes | NB22: Identification and assessment of GHG ‚ç∞,Monitored implementation plan to reduce or minimise GHG emissions ‚ç∞ | NC22: Yes | ND22: Yes | NE22: No | NH22: No | NI22: - | NJ22: Yes | NK22: Yes | NL22: No | NM22: Yes | NN22: No | NO22: No | NP22: Awareness of RSPO in the market | NR22: Engagement with business partners or consumers on the use of CSPO | NT22: Sustainability report 2020: https://downloads.ctfassets.net/8122zj5k3sy9/4pDizIPc59eEA781TCAuvD/e6aa2d793419f66cb90b60d92df6743e/S_Group_and_Sustainability_2020.pdf
B23: METRO AG | C23: 3-0038-11-000-00 | D23: Retailers | E23: Ordinary | F23: Germany | G23: Yes | H23: I retail consumer (B2C) products containing palm oil, palm kernel oil or related products | J23: Retail - with own brand products ‚ç∞,Retail wholesalers ‚ç∞ | L23: METRO Cash & Carry Romania, METRO Cash & Carry Slovakia, METRO Cash & Carry Kazakhstan, METRO Cash & Carry Ukraine, METRO Jinjiang Cash & Carry, METRO Cash & Carry Deutschland, METRO Cash & Carry France, METRO Cash & Carry India, METRO Cash & Carry Japan, METRO Cash & Carry Russia, METRO Cash & Carry T√ºrkiye, METRO Cash & Carry Bulgaria, METRO Cash & Carry √ñsterreich, METRO Cash & Carry Croatia, METRO Cash & Carry Serbia, METRO Italia Cash & Carry, Makro Cash & Carry Polska, Makro Cash & Carry Spain, Makro Cash & Carry Czech, Makro Cash & Carry Belgium, METRO Cash & Carry Pakistan, METRO Cash & Carry Moldova, METRO Cash & Carry Portugal, METRO Cash & Carry Hungary, Makro Cash & Carry Netherlands | M23: Europe ‚ç∞,India,Rest of the World ‚ç∞ | N23: an aggregate level (as in previous ACOP reporting cycles) | KJ23: 11983.8 | KK23: 108.58 | KL23: 0 | KM23: 0 | KP23: 50 | KQ23: 0 | KR23: 0 | KS23: 0 | KT23: 0 | KU23: 10 | KV23: 0 | KW23: 0 | KX23: 40 | KY23: 4001.18 | KZ23: 71 | LA23: 0 | LB23: 0 | LC23: 0 | LD23: 0 | LE23: 0 | LF23: 0 | LG23: 3479.09 | LH23: 37.16 | LI23: 0 | LJ23: 0 | LK23: 4416.15 | LL23: 0.34 | LM23: 0 | LN23: 0 | LO23: 87.38 | LP23: 0.08 | LQ23: 0 | LR23: 0 | LU23: 1 | LV23: In 2020, METRO AG as the holding company decided to cover the gap of aggregated non-certified palm oil volume by centrally buying Book & Claim credits. For this, CSPO and CPKO credits were purchased via the PalmTrace plattform. These were claimed for 2020 and included in the calculation above. | LW23: 71 | LX23: 0 | LY23: 0 | LZ23: 0 | MA23: 0 | MB23: 16 | MC23: 0 | MD23: 0 | ME23: 13 | MF23: 2012 | MG23: The target of starting in 2012 was the first target, so no previous target existed. | MH23: 2020 | MI23: Minimum 100% Mass Balance was expected in 2015. Due to product categories such as derivatives, fractions or geographical availability (esp. China, India, Pakistan) that target was prolonged to 2020.. | MJ23: 2020 | MK23: The target has been met by covering a gap with Book & Claim credits. | ML23: It does cover all countries of operation for METRO Cash & Carry / METRO Wholesale | MM23: Yes | MN23: Applies globally | MO23: 2012 | MR23: The target is to increase the global uptake of Segregated or Identity Preserved CSPO by 2023. For this, the internal governance structure at METRO has been enhanced with a stronger support to focus on RSPO product certification throughout all METRO business areas and geographies. | MS23: Please acknowledge that you have read and understood the Shared Responsibility requirements for policy submissions. | MT23: Yes | MU23: No discrimination ‚ç∞,Wage and working conditions ‚ç∞,Freedom of association ‚ç∞,No child labour ‚ç∞,No harassment ‚ç∞,No forced or trafficked labour ‚ç∞ | MV23: Yes | MW23: Recruitment ‚ç∞,Contractors ‚ç∞,Sub-Contractors & Third-Party Contractors ‚ç∞ | MX23: No | MZ23: Yes | NA23: Yes | NB23: Identification and assessment of GHG ‚ç∞,Monitored implementation plan to reduce or minimise GHG emissions ‚ç∞ | NC23: Yes | ND23: Yes | NE23: No | NH23: Yes | NJ23: Yes | NK23: Yes | NL23: Yes | NM23: Yes | NN23: Yes | NO23: Yes | NP23: High costs in achieving or adhering to certification,Insufficient demand for RSPO-certified palm oil,Reputation of palm oil in the market,Others | NQ23: METRO faced weak market demand in some geographies, suc as Eastern Europe or India and Pakistan. The awareness of palm oil as such and the RSPO is very low. Also, price levels especially for food products, are very low and competitive. Hence, customers are not always willing to invest into RSPO certified products. In other markets, we observe a negative reputation of palm oil. This leads to manufacturers switching to other (exotic) oils to substitute palm oil. We do not generally support this as this might push other environmental & social risks. | NR23: Engagement with business partners or consumers on the use of CSPO,Promotion of CSPO outside of RSPO venues such as trade workshops or industry associations,Promotion of physical CSPO,Stakeholder engagement,Others | NS23: METRO is working actively on the implementation of its Palm Oil Procurement Policy together with different stakeholders within the value chain. METRO also encourages its METRO Wholesale country-based business operations to partner with nationally relevant stakeholders. METRO Wholesale (METRO) is committed to promoting sustainable palm oil production and continuously seeks to optimise the procurement process in order to ensure that it only purchases products containing palm oil derived from legal and more sustainable sources. METRO is committed to the sustainable use of palm oil resources in environmental, social and economic terms. | NT23: https://responsibility.metroag.de/focus-areas/raw-material-sourcing https://responsibility.metroag.de/commitments/kpis-and-targets/organic-and-responsible-products
B24: REWE Group on behalf of REWE-Zentral-Aktiengesellschaft K√∂ln | C24: 3-0039-11-000-00 | D24: Retailers | E24: Ordinary | F24: Germany | G24: Yes | H24: I retail consumer (B2C) products containing palm oil, palm kernel oil or related products | J24: Retail - with own brand products ‚ç∞ | L24: - | M24: Europe ‚ç∞ | N24: an aggregate level (as in previous ACOP reporting cycles) | KJ24: 4084 | KK24: 647 | KL24: 0 | KM24: 3317 | KN24: 70 | KO24: 30 | KP24: 100 | KQ24: 0 | KR24: 0 | KS24: 0 | KT24: 0 | KU24: 0 | KV24: 0 | KW24: 0 | KX24: 0 | KY24: 0 | KZ24: 0 | LA24: 0 | LB24: 57 | LC24: 0 | LD24: 0 | LE24: 0 | LF24: 0 | LG24: 17 | LH24: 8 | LI24: 0 | LJ24: 1294 | LK24: 4038 | LL24: 639 | LM24: 0 | LN24: 1952 | LO24: 29 | LP24: 0 | LQ24: 0 | LR24: 12 | LS24: 60 | LT24: 40 | LU24: 0.9998 | LV24: REWE Group is a member of the German Forum for Sustainable Palm Oil. | LW24: 100 | LX24: 0 | LY24: 0 | LZ24: 0 | MA24: 0 | MB24: 0 | MC24: 0 | MD24: 0 | ME24: 0 | MF24: 2011 | MH24: 2013 | MJ24: 2020 | MK24: Few suppliers could not reach the target due to low purchase volumes. | MM24: No | MP24: Challenging reputation of palm oil | MR24: REWE Group will continue to support the activities of the German Forum for Sustainable Palm Oil in order to promote the production and consumption of certified sustainable palm oil. | MS24: Please acknowledge that you have read and understood the Shared Responsibility requirements for policy submissions. | MT24: Yes | MU24: No discrimination ‚ç∞,Wage and working conditions ‚ç∞,Freedom of association ‚ç∞,No child labour ‚ç∞,No harassment ‚ç∞,No forced or trafficked labour ‚ç∞ | MV24: Yes | MW24: Contractors ‚ç∞ | MX24: No | MZ24: Yes | NA24: Yes | NC24: Yes | ND24: Yes | NE24: Yes | NF24: Improved Smallholder livelihoods ‚ç∞ | NG24: REWE Group is financially supporting a joint project with the German Forum for Sustainable Palm Oil: https://www.forumpalmoel.org/fonap-project | NJ24: Yes | NK24: No | NL24: No | NM24: No | NN24: No | NO24: Yes | NP24: No challenges faced | NR24: Engagement with business partners or consumers on the use of CSPO,Stakeholder engagement | NT24: https://rewe-group-nachhaltigkeitsbericht.de/2016/sites/default/files/pdfs/en/REWE_Group_guideline_palm-oil_EN.pdf https://www.rewe-group.com/content/uploads/2020/02/guideline-fairness-09-04-2021.pdf https://www.rewe-group.com/content/uploads/2019/06/guideline-sustainable-business-practices.pdf
B25: Rema 1000 Denmark A/S | C25: 3-0040-11-000-00 | D25: Retailers | E25: Ordinary | F25: Denmark | G25: Yes | H25: I retail consumer (B2C) products containing palm oil, palm kernel oil or related products | J25: Retail - with own brand products ‚ç∞ | L25: REMA 1000 Danmark A/S | M25: Europe ‚ç∞ | N25: an aggregate level (as in previous ACOP reporting cycles) | KJ25: 1842 | KK25: 267 | KL25: 0 | KM25: 0 | KP25: 100 | KQ25: 0 | KR25: 0 | KS25: 0 | KT25: 0 | KU25: 0 | KV25: 0 | KW25: 0 | KX25: 0 | KY25: 0 | KZ25: 0 | LA25: 0 | LB25: 0 | LC25: 0 | LD25: 0 | LE25: 0 | LF25: 0 | LG25: 368 | LH25: 267 | LI25: 0 | LJ25: 0 | LK25: 1474 | LL25: 0 | LM25: 0 | LN25: 0 | LO25: 0 | LP25: 0 | LQ25: 0 | LR25: 0 | LU25: 1 | LV25: We buy RSPO credits for the palmoil used in third-party brand products sold in our stores, | LW25: 100 | LX25: 0 | LY25: 0 | LZ25: 0 | MA25: 0 | MB25: 0 | MC25: 0 | MD25: 0 | ME25: 0 | MF25: 2012 | MH25: 2015 | MJ25: 2015 | MM25: Yes | MN25: Denmark | MO25: 2017 | MR25: REMA 1000 Denmark will continue to apply the RSPO trademark on new own branded products that contain CSPO on segregated or mass balance level. Furthermore we will look into our possibilities to ensure that the third party branded products we sell in our stores are using 100% RSPO from physical supply chains. We have joined the new Danish alliance "Dansk Alliance for Ansvarlig Palm Oil" that supports responsible produced palm oil. We hope that we through that alliance can do even more to support the work on sustainable palmoil. | MS25: Please acknowledge that you have read and understood the Shared Responsibility requirements for policy submissions. | MT25: Yes | MU25: No discrimination ‚ç∞,Wage and working conditions ‚ç∞,Freedom of association ‚ç∞,No child labour ‚ç∞,No harassment ‚ç∞,No forced or trafficked labour ‚ç∞ | MV25: Yes | MW25: Recruitment ‚ç∞,Contractors ‚ç∞,Sub-Contractors & Third-Party Contractors ‚ç∞ | MX25: No | MZ25: Yes | NA25: No | NC25: No | NE25: No | NH25: No | NI25: It is too complicated for us as a retailer to effectuate. We need support in this area. | NJ25: Yes | NK25: Yes | NL25: No | NM25: No | NN25: No | NO25: Yes | NP25: Awareness of RSPO in the market,Reputation of palm oil in the market,Reputation of RSPO in the market,Supply issues,Others | NQ25: We find that it makes NO sense to ask all parts of the supply chain to submit a mill list. When we use CSPO on mass balance and segregated level, the the whole supply chain has been supply chain certified. The mill lists must be possible to implement at this level. Otherwise RSPO will recieve the same information from all actors in the chain. That is not working smart but instead asking all actors to do double work in the end. | NR25: Engagement with business partners or consumers on the use of CSPO,Promotion of CSPO outside of RSPO venues such as trade workshops or industry associations,Stakeholder engagement | NT25: https://ansvarlighed.rema1000.dk/csr-reports
B26: SODEXO | C26: 3-0042-11-000-00 | D26: Retailers | E26: Ordinary | F26: France | G26: Yes | H26: I operate food retail outlets that use palm oil, palm kernel oil or related products | J26: Food service providers ‚ç∞ | L26: Sodexo operates in 64 countries and our operations are under Sodexo SA. Sodexo SA. holds directly or indirectly 100% of the subsidiaries indicated: 1/ UK: SODEXO LTD - SODEXO IRELAND LTD - SODEXO REMOTE SITES SCOTLAND LTD - STH JAPAN K.K. 2/ NORTH AMRICA: SODEXO, INC - CENTERPLATE ULTIMATE HOLDINGS, CORP. - CK FRANCHISING, INC - SODEXO CANADA LTD 3/ FRANCE: SOGERES SA - SODEXO ENTREPRISES SAS - SODEXO SANTE MEDICO SOCIAL SAS - SOCIETE FRANCAISE DE RESTAURATION ET SERVICES - SODEXO SPORTS ET LOISIRS - SODEXO JUSTICE SERVICES 4/ EUROPE: SODEXO ITALIA SPA - SODEXO BELGIUM SA - SODEXO SERVICES GMBH GERMANY - SODEXO IBERIA SA - SODEXO AB (SWEDEN) SODEXO NEDERLAND BV - SODEXO LUXEMBOURG SA 5/ SOUTH AMERICA: SODEXO CHILE SPA - SODEXO DO BRASIL COMERCIAL SA - SODEXO PEROU SAC - SODEXO SAS (COLOMBIA) 6/ ASIA AUSTRALIA: SODEXO MANAGEMENT CO. LTD SHANGHA√è - SODEXO SINGAPORE PTE LTD - SODEXO AUSTRALIA PTY LTD - SODEXO REMOTE SITES AUSTRALIA PTY LTD - SODEXO FOOD SOLUTIONS INDIA PRIVATE LTD - KELVIN CATERING SERVICES (UNITED ARAB EMIRATES) - SODEXO EUROASIA SARL (RUSSIA) | M26: Europe ‚ç∞,North America ‚ç∞,China,India,Malaysia,Indonesia,Africa ‚ç∞,Latin America ‚ç∞,Rest of the World ‚ç∞ | N26: an aggregate level (as in previous ACOP reporting cycles) | KJ26: 2932 | KK26: 0 | KL26: 0 | KM26: 0 | KP26: 37 | KQ26: 46 | KR26: 0 | KS26: 0 | KT26: 2 | KU26: 1 | KV26: 8 | KW26: 0 | KX26: 6 | KY26: 0 | KZ26: 0 | LA26: 0 | LB26: 0 | LC26: 1979 | LD26: 0 | LE26: 0 | LF26: 0 | LG26: 881 | LH26: 0 | LI26: 0 | LJ26: 0 | LK26: 72 | LL26: 0 | LM26: 0 | LN26: 0 | LO26: 0 | LP26: 0 | LQ26: 0 | LR26: 0 | LU26: 1 | LV26: During the last 18 months, as a food service provider we have been hardly impacted by the Covid-19 sanitary crisis. In many geographies we faced sites' closure and we saw huge decrease in number of meals we serve on daily basis. In the meantime in more and more geographies we are seing a desengagement from the consumers on product containing palm oil in general. Regarding our commitments, we continue to make sure that 100% of the palm oil we sourced is 100% certified sustainable palm oil (including RSPO credits, Mass Balance, Segregated and Identity Preserved). The part of part oil that is not certified by our suppliers is covered by the purchase of RSPO credits. Our goal is to have 100% physical certfied PO by 2025 (including Mass Balance, Segregated and Identity Preserved). To support our ambition, we joined the Consumer Goods Forum in 2020 and we are active in the Forest Positive Coalition. | LW26: 46 | LX26: 13 | LY26: 3 | LZ26: 0 | MA26: 0 | MB26: 0 | MC26: 1 | MD26: 0 | ME26: 37 | MF26: 2012 | MH26: 2013 | MJ26: 2025 | MM26: No | MP26: Others | MQ26: Sodexo is a food service provider and not a retailer, we do not have any own brand products that contain palm oil. The main products that we use containing palm oil are used back of house in our kitchens. | MR26: As a part of our Better Tomorrow 2025 roadmap, Sodexo's objective is to move to 100% RSPO certified palm oil from physical supply chain by 2025. This percentage is improving each year: - 2014: 17% physical CSPO - 2015: 24% physical CSPO - 2016: 31% physical CSPO - 2017: 32% physical CSPO - 2018: 59,5% physical CSPO - 2019: 34,7% physical CSPO - 2020: 32,5% physical CSPO In 2017, it was the first time the results were audited externally by KPMG and published in our Reference Document. In Fiscal 2019, we have increased our palm oil data collection scope, from top 2 products to total products containing palm oil. In addition, our Supply Management Team has formalized its Responsible sourcing roadmap and one initiative under the "Protect and restore natural ecosystems" is about sustainable agriculture and deforestation. Our position related to forest and peatlands is publicaly available on our website. To support our ambition, we joined the Consumer Goods Forum in 2020 and we are active in the Forest Positive Coalition. | MS26: Please acknowledge that you have read and understood the Shared Responsibility requirements for policy submissions. | MT26: Yes | MU26: No discrimination ‚ç∞,Wage and working conditions ‚ç∞,Freedom of association ‚ç∞,No child labour ‚ç∞,No harassment ‚ç∞,No forced or trafficked labour ‚ç∞ | MV26: Yes | MW26: Recruitment ‚ç∞,Contractors ‚ç∞,Sub-Contractors & Third-Party Contractors ‚ç∞ | MX26: Yes | MY26: Free Prior and Informed Consent (FPIC) ‚ç∞,Compensation ‚ç∞ | MZ26: Yes | NA26: Yes | NB26: Identification and assessment of GHG ‚ç∞,Monitored implementation plan to reduce or minimise GHG emissions ‚ç∞ | NC26: Yes | ND26: Yes | NE26: No | NH26: No | NI26: Sodexo is a food service provider and not a retailer, we do not have any own brand products that contain palm oil. The main products that we use containing palm oil are used back of house in our kitchens. To support our ambition, we joined the Consumer Goods Forum in 2020 and we are active in the Forest Positive Coalition. | NJ26: Yes | NK26: Yes | NL26: Yes | NM26: Yes | NN26: No | NO26: No | NP26: Insufficient demand for RSPO-certified palm oil,Low usage of palm oil,Reputation of palm oil in the market,Reputation of RSPO in the market,Traceability issues,Others | NQ26: We face an issue with the lack of available of physical CSPO in some markets. We continue to work with our suppliers to try to improve the availability of physical CSPO and in the meantime, we use certificates to compensate. | NR26: Engagement with business partners or consumers on the use of CSPO,Engagement with government agencies,Stakeholder engagement,Others | NS26: Sodexo has a technical agreement with WWF. Sodexo has done some significant outreach to stakeholders including suppliers and has had a particular focus in the last year on Asia where several countries have been able to implement a physical CSPO supply chain. To support our ambition, we joined the Consumer Goods Forum in 2020 and we are active in the Forest Positive Coalition. | NT26: https://www.sodexo.com/files/live/sites/com-global/files/02%20PDF/Finance/Sodexo-Integrated-Report-Fiscal-2020.pdf
B27: McDonald's Corporation | C27: 3-0044-11-000-00 | D27: Retailers | E27: Ordinary | F27: United States | G27: Yes | H27: I operate food retail outlets that use palm oil, palm kernel oil or related products | J27: Food service providers ‚ç∞ | L27: McDonald‚Äôs restaurants worldwide including restaurants owned by the Company and its Franchisees for more information, please see the Company‚Äôs Annual Report. | M27: Europe ‚ç∞,North America ‚ç∞,China,India,Malaysia,Indonesia,Africa ‚ç∞,Latin America ‚ç∞,Rest of the World ‚ç∞ | N27: an aggregate level (as in previous ACOP reporting cycles) | KJ27: 19810 | KK27: 428 | KL27: 0 | KM27: 79350 | KN27: 80 | KO27: 20 | KP27: 5 | KQ27: 21 | KR27: 9 | KS27: 11 | KT27: 4 | KU27: 4 | KV27: 1 | KW27: 5 | KX27: 40 | KY27: 4370 | KZ27: 2 | LA27: 0 | LB27: 17482 | LC27: 0 | LD27: 0 | LE27: 0 | LF27: 0 | LG27: 14021 | LH27: 426 | LI27: 0 | LJ27: 56191 | LK27: 1405 | LL27: 0 | LM27: 0 | LN27: 5621 | LO27: 14 | LP27: 0 | LQ27: 0 | LR27: 56 | LS27: 80 | LT27: 20 | LU27: 1 | LV27: We are committed to increasing traceability for the palm oil used in the McDonald‚Äôs system in the greatest volumes, which means we are increasing our physical RSPO volumes (Mass Balance, Segregated and Identity Preserved). All volumes used in the McDonald‚Äôs system are required to be covered by either RSPO physical Certification or RSPO Credits. | LW27: 5 | LX27: 21 | LY27: 9 | LZ27: 11 | MA27: 4 | MB27: 4 | MC27: 1 | MD27: 5 | ME27: 40 | MF27: 2012 | MH27: 2017 | MI27: 100% of our palm oil supply has been Roundtable for Sustainable Palm Oil (RSPO) certified since 2017, the minimum level of verification currently required according to our Global Sustainable Palm Oil Policy. | MJ27: 2020 | MK27: We‚Äôve been using a combination of RSPO Physical palm oil and RSPO credits since 2012 gradually increasing our proportion of Physical RSPO palm oil. Our volumes of RSPO physical certified oils (Mass Balance, Segregated and Identity Preserved), have increased for all volume usage from 13% in 2016 to over 78% in 2020. Identity Preserved: 0.1% Segregated: 7% Mass Balance: 71% Book and Claim: 22% Of which, products using the largest amounts of palm oil in the McDonald‚Äôs system (restaurant and par-fry oils). Have reached over 93% of physically certified RSPO oils globally. In addition, as part of our global oils strategy, we regularly engage suppliers on McDonald‚Äôs policy and ensure that we only source from suppliers capable of meeting our expectations. In 2016 suppliers submitted documentation outlining that they have policies and programs in place to fulfil the requirements outlined in our Global Sustainable Palm Oil policy. | ML27: Applies Globally | MM27: No | MP27: Others | MQ27: McDonald's does not produce own brand products | MR27: Our previously stated goal for the end of 2020, was that 100% of the palm oil used in McDonald‚Äôs restaurants and as ingredients in McDonald‚Äôs products will support sustainable production. (Ingredients includes any type of palm oil used directly as an ingredient in a McDonald‚Äôs product and listed on the product‚Äôs ingredient statement.) Looking forward past 2020, we intend to continue to monitor and seek compliance on these criteria. Additionally, we require that all globally managed suppliers of restaurant and par-fry oil must: Be active members of the RSPO and report through the RSPO Annual Communications of Progress; Have a public commitment to eliminate deforestation and supporting strategy; Have a strategy for traceability to the mill and plantation level; Be committed not to source from peatlands, high conservation value land and high carbon stock forests; Be committed to uphold human rights at the plantation level and Free and Prior Informed Consent; Have a third-party verification process; and have a strategy to address any open grievances. McDonald‚Äôs will continue to use our data collection systems to gather data from all suppliers globally. The scope of our data collection currently captures information on high palm oil volume products such as restaurant frying oil, oil used for par frying potatoes and chicken, and certain baked goods and sauces (liquid products). The remaining volumes of palm oil used in other items, are accounted for through a calculation based on ingredient declarations. We purchase Book and Claim certificates for the estimated volumes. We are committed to continue increasing traceability for the palm oil used in the McDonald‚Äôs system in the greatest volumes. McDonald's also participates in forums that promote the use of sustainable palm oil and industry transformation through organizations such as the Tropical Forests Alliance and the RSPO. When travel allows, we regularly visit facilities and plantations with our supplier and NGO partners. | MS27: Please acknowledge that you have read and understood the Shared Responsibility requirements for policy submissions. | MT27: Yes | MU27: No discrimination ‚ç∞,Wage and working conditions ‚ç∞,Freedom of association ‚ç∞,No child labour ‚ç∞,No harassment ‚ç∞,No forced or trafficked labour ‚ç∞ | MV27: Yes | MW27: Recruitment ‚ç∞,Contractors ‚ç∞,Sub-Contractors & Third-Party Contractors ‚ç∞ | MX27: Yes | MY27: Free Prior and Informed Consent (FPIC) ‚ç∞ | MZ27: Yes | NA27: Yes | NB27: Identification and assessment of GHG ‚ç∞,Monitored implementation plan to reduce or minimise GHG emissions ‚ç∞ | NC27: Yes | ND27: Yes | NE27: Yes | NF27: Fair and transparent dealings with Smallholders ‚ç∞,Improved Smallholder livelihoods ‚ç∞ | NG27: Supporting smallholders is one of the tenets of McDonald's Commitment on Forests. See the detailed commitment here: https://corporate.mcdonalds.com/content/dam/gwscorp/scale-for-good/McDonaldsCommitmentOnForests.pdf We are working with our suppliers and partners to understand the best methods to support smallholders through both our commitment to sustainable palm oil and our work to uphold our Commitment on Forests | NJ27: No | NK27: Yes | NL27: Yes | NM27: Yes | NN27: No | NO27: No | NP27: High costs in achieving or adhering to certification,Human rights issues,Reputation of palm oil in the market,Reputation of RSPO in the market,Traceability issues,Others | NQ27: Challenges to procure physical certified palm in some markets. Ex. Segregated palm in the US | NR27: Engagement with business partners or consumers on the use of CSPO,Promotion of CSPO outside of RSPO venues such as trade workshops or industry associations,Promotion of physical CSPO,Stakeholder engagement | NT27: https://corporate.mcdonalds.com/content/dam/gwscorp/assets/our-planet/climate-action/McDonalds_Corporation_CDP_Forests_2020.pdf We are also currently working to update our website in the coming months with progress on our 2020 Goals.
B28: Kesko Corporation | C28: 3-0045-11-000-00 | D28: Retailers | E28: Ordinary | F28: Finland | G28: Yes | H28: I retail consumer (B2C) products containing palm oil, palm kernel oil or related products,I operate food retail outlets that use palm oil, palm kernel oil or related products | J28: Retail - with own brand products ‚ç∞,Food service providers ‚ç∞,Retail wholesalers ‚ç∞ | L28: *Wholesaling and Retailing K Group is the 2nd biggest grocery trade operator in Finland. Nearly 1,000 independent K-food retailers are in charge of daily customer experiences. There are some 1,200 K-food stores in Finland, with 1.2 million daily customer visits. Some 470 stores also offer online services. The K-food store chains are K-Citymarket, K-Supermarket, K-Market and Neste K service stations. Sales of our K-Ruoka online grocery service grew in 2020, making us the market leader in Finland. *Providing to foodservice Kespro is the leading foodservice provider in Finland. *Private label owning K Group¬¥s own crocery store brands are Pirkka and K-Menu. Kespros has its own brand product line Menu. | M28: Europe ‚ç∞ | N28: an aggregate level (as in previous ACOP reporting cycles) | KJ28: 3563 | KK28: 629 | KL28: 0 | KM28: 0 | KP28: 100 | KQ28: 0 | KR28: 0 | KS28: 0 | KT28: 0 | KU28: 0 | KV28: 0 | KW28: 0 | KX28: 0 | KY28: 0 | KZ28: 0 | LA28: 0 | LB28: 0 | LC28: 195 | LD28: 34 | LE28: 0 | LF28: 0 | LG28: 1985 | LH28: 350 | LI28: 0 | LJ28: 0 | LK28: 1383 | LL28: 244 | LM28: 0 | LN28: 0 | LO28: 1 | LP28: 0 | LQ28: 0 | LR28: 0 | LU28: 1 | LV28: If for some reason, the private label supplier is unable to provide sufficient verified information on use of CSPO, Kesko obtained the RSPO credits itself, but this was a very small amount (under 3%). | LW28: 100 | LX28: 0 | LY28: 0 | LZ28: 0 | MA28: 0 | MB28: 0 | MC28: 0 | MD28: 0 | ME28: 0 | MF28: 2011 | MG28: The target has been met. | MH28: 2019 | MI28: The target has been met. | MJ28: 2025 | MK28: Using RSPO-certified sustainable palm oil and palm oil products from physical supply chain options has been more difficult for our private label manufacturers than we estimated at begining (2011). | ML28: It does cover all countries. | MM28: Yes | MN28: Finland | MO28: 2020 | MR28: We have reached our main targets, so we will keep up this 100% level of CSPO and working towards 100% RSPO-certified sustainable palm oil and palm oil products from physical supply chain. | MS28: Please acknowledge that you have read and understood the Shared Responsibility requirements for policy submissions. | MT28: Yes | MU28: No discrimination ‚ç∞,Wage and working conditions ‚ç∞,Freedom of association ‚ç∞,No child labour ‚ç∞,No harassment ‚ç∞,No forced or trafficked labour ‚ç∞ | MV28: Yes | MW28: Recruitment ‚ç∞,Contractors ‚ç∞,Sub-Contractors & Third-Party Contractors ‚ç∞ | MX28: No | MZ28: No | NA28: Yes | NB28: Identification and assessment of GHG ‚ç∞,Monitored implementation plan to reduce or minimise GHG emissions ‚ç∞ | NC28: Yes | ND28: Yes | NE28: No | NH28: No | NI28: It is not included on companys sustainability policy. | NJ28: No | NK28: No | NL28: No | NM28: Yes | NN28: No | NO28: No | NP28: No challenges faced | NR28: Promotion of CSPO outside of RSPO venues such as trade workshops or industry associations | NT28: https://www.kesko.fi/en/company/responsibility/sustainability-policies/kesko-foods-palm-oil-policy/ https://www.kesko.fi/globalassets/03-sijoittaja/raporttikeskus/2021/q1/kesko_annual_report_2020_keskos_direction_final.pdf
B29: Metcash Trading Ltd | C29: 3-0048-10-000-00 | D29: Retailers | E29: Ordinary | F29: Australia | G29: Yes | H29: I operate food retail outlets that use palm oil, palm kernel oil or related products | J29: Retail - with own brand products ‚ç∞,Retail wholesalers ‚ç∞ | L29: Metcash (ASX: MTS) is Australia‚Äôs leading wholesale distribution and marketing company with sales of over $14.9 billion in FY20. We believe that it is absolutely vital to Australia that there is a sustainable, independent, family-owned business sector. Independent retailers support their local communities. We help them to be the ‚ÄòBest Store in Town‚Äô by providing merchandising, operational and marketing support across our food, liquor and hardware pillars. Palm Oil is used within a small number of Private Label products sold to our retail customers under our Supermarkets division | M29: Rest of the World ‚ç∞ | N29: an aggregate level (as in previous ACOP reporting cycles) | KJ29: 448 | KK29: 230 | KL29: 1 | KM29: 299 | KN29: 80 | KO29: 20 | KP29: 0 | KQ29: 0 | KR29: 60 | KS29: 30 | KT29: 0 | KU29: 0 | KV29: 0 | KW29: 0 | KX29: 10 | KY29: 35 | KZ29: 0 | LA29: 0 | LB29: 26 | LC29: 0 | LD29: 0 | LE29: 0 | LF29: 0 | LG29: 410 | LH29: 168 | LI29: 1 | LJ29: 273 | LK29: 3 | LL29: 62 | LM29: 0 | LN29: 0 | LO29: 0 | LP29: 0 | LQ29: 0 | LR29: 0 | LS29: 80 | LT29: 20 | LU29: 1 | LV29: Supplier is responsible for supplying products with MB or SG, otherwise must purchase B&C certificates. | LW29: 0 | LX29: 0 | LY29: 0 | LZ29: 0 | MA29: 0 | MB29: 0 | MC29: 0 | MD29: 0 | ME29: 100 | MF29: 2015 | MG29: n/a | MH29: 2020 | MI29: n/a | MJ29: 2025 | MK29: n/a | ML29: n/a | MM29: No | MP29: Limited label space | MR29: Continue to request segregated palm oil and PKO in preference to MB | MS29: Please acknowledge that you have read and understood the Shared Responsibility requirements for policy submissions. | MT29: Yes | MU29: No discrimination ‚ç∞,Wage and working conditions ‚ç∞,Freedom of association ‚ç∞,No child labour ‚ç∞,No harassment ‚ç∞,No forced or trafficked labour ‚ç∞ | MV29: Yes | MW29: Contractors ‚ç∞,Sub-Contractors & Third-Party Contractors ‚ç∞ | MX29: No | MZ29: Yes | NA29: Yes | NB29: Identification and assessment of GHG ‚ç∞,Monitored implementation plan to reduce or minimise GHG emissions ‚ç∞ | NC29: Yes | ND29: Yes | NE29: No | NH29: No | NI29: The first step is to transition to Segregated sources | NJ29: No | NK29: Yes | NL29: No | NM29: Yes | NN29: No | NO29: No | NP29: Awareness of RSPO in the market,Supply issues,Traceability issues | NR29: Engagement with business partners or consumers on the use of CSPO,Promotion of physical CSPO | NT29: .
B30: Lidl Stiftung & Co.KG | C30: 3-0049-12-000-00 | D30: Retailers | E30: Ordinary | F30: Germany | G30: Yes | H30: I retail consumer (B2C) products containing palm oil, palm kernel oil or related products | J30: Retail - with own brand products ‚ç∞ | L30: We are a food retail company and operate around 3.200 stores in Germany. | M30: Europe ‚ç∞ | N30: an aggregate level (as in previous ACOP reporting cycles) | KJ30: 11130.49 | KK30: 3424.43 | KL30: 0 | KM30: 0 | KP30: 100 | KQ30: 0 | KR30: 0 | KS30: 0 | KT30: 0 | KU30: 0 | KV30: 0 | KW30: 0 | KX30: 0 | KY30: 205.87 | KZ30: 38.12 | LA30: 0 | LB30: 0 | LC30: 0 | LD30: 0 | LE30: 0 | LF30: 0 | LG30: 542.27 | LH30: 2504.4 | LI30: 0 | LJ30: 0 | LK30: 10144.54 | LL30: 880.06 | LM30: 0 | LN30: 0 | LO30: 26.6 | LP30: 0 | LQ30: 0 | LR30: 0 | LU30: 0.9854 | LV30: We have 100% certified palm (kernal) oil. For food we use the model SG and for food fractions/derivatives MB. For NearFood-products our palm(kernal)oil incl. fractions/derivatives are sourced MB. | LW30: 100 | LX30: 0 | LY30: 0 | LZ30: 0 | MA30: 0 | MB30: 0 | MC30: 0 | MD30: 0 | ME30: 0 | MF30: 2012 | MG30: Previous target year has been met | MH30: 2016 | MI30: Previous target year has been met | MJ30: 2020 | MK30: Previous target year has been met | ML30: TimeBound Plan commitments cover germany | MM30: Yes | MN30: Germany | MO30: 2018 | MR30: We are working on to apply the label for all eatable own-brand products of Lidl Germany from supply chain model Segregation. | MS30: Please acknowledge that you have read and understood the Shared Responsibility requirements for policy submissions. | MT30: Yes | MU30: No discrimination ‚ç∞,Wage and working conditions ‚ç∞,Freedom of association ‚ç∞,No child labour ‚ç∞,No harassment ‚ç∞,No forced or trafficked labour ‚ç∞ | MV30: Yes | MW30: Contractors ‚ç∞,Sub-Contractors & Third-Party Contractors ‚ç∞ | MX30: No | MZ30: Yes | NA30: Yes | NB30: Identification and assessment of GHG ‚ç∞,Monitored implementation plan to reduce or minimise GHG emissions ‚ç∞ | NC30: Yes | ND30: Yes | NE30: No | NH30: Yes | NJ30: No | NK30: No | NL30: No | NM30: Yes | NN30: No | NO30: No | NP30: Difficulties in the certification process,Competition with non-RSPO members,Insufficient demand for RSPO-certified palm oil,Reputation of palm oil in the market,Reputation of RSPO in the market,Traceability issues | NR30: Engagement with business partners or consumers on the use of CSPO,Promotion of physical CSPO,Stakeholder engagement | NT30: Deforestation policy: https://www.lidl.de/de/asset/other/Positionspapier_Entwaldung_210224_02.pdf Compliance: https://unternehmen.lidl.de/ueber-lidl/compliance; https://www.bkms-system.net/bkwebanon/report/clientInfo?cin=12ldl12&c=-1&language=ger Climate: https://unternehmen.lidl.de/verantwortung/handlungsfeld-umwelt/klimaschutz UN WEP: https://unternehmen.lidl.de/verantwortung/women-s-empowerment-principles Due Dilligence: - https://www.lidl.de/de/asset/other/DE-Grundsatzerklaerung-Schwarz-Gruppe-zur-Achtung-der-Menschenrechte-20210324.pdf - https://www.lidl.de/de/asset/other/Positionspapier-fu-r-den-nachhaltigeren-Einkauf-von-Palm-kern-o-l.pdf - https://www.lidl.de/de/asset/other/Positionspapier-Sorgfaltspflicht-01-2021.pdf - https://unternehmen.lidl.de/verantwortung/code-of-conduct
B31: Kaufland | C31: 3-0052-12-000-00 | D31: Retailers | E31: Ordinary | F31: Germany | G31: Yes | H31: I retail consumer (B2C) products containing palm oil, palm kernel oil or related products | J31: Retail - with own brand products ‚ç∞ | L31: Kaufland Stiftung & Co. KG | M31: Europe ‚ç∞ | N31: an aggregate level (as in previous ACOP reporting cycles) | KJ31: 1777 | KK31: 96 | KL31: 0 | KM31: 1116 | KN31: 80 | KO31: 20 | KP31: 100 | KQ31: 0 | KR31: 0 | KS31: 0 | KT31: 0 | KU31: 0 | KV31: 0 | KW31: 0 | KX31: 0 | KY31: 0 | KZ31: 0 | LA31: 0 | LB31: 7 | LC31: 0 | LD31: 0 | LE31: 0 | LF31: 0 | LG31: 0 | LH31: 0 | LI31: 0 | LJ31: 218 | LK31: 1770 | LL31: 18 | LM31: 0 | LN31: 891 | LO31: 7 | LP31: 78 | LQ31: 0 | LR31: 0 | LS31: 80 | LT31: 20 | LU31: 1 | LW31: 100 | LX31: 0 | LY31: 0 | LZ31: 0 | MA31: 0 | MB31: 0 | MC31: 0 | MD31: 0 | ME31: 0 | MF31: 2012 | MH31: 2014 | MJ31: 2021 | MK31: Availability problems still exist in sporadic cases | MM31: Yes | MN31: Applies globally | MO31: 2015 | MR31: Compliance with the commitment and additional criteria of FONAP membership, raising awareness among non-own brand suppliers, communicating and raising awareness among customers as part of our CSR communication "Machen macht den Unterschied" ("Actions do the talking"). | MS31: Please acknowledge that you have read and understood the Shared Responsibility requirements for policy submissions. | MT31: Yes | MU31: No discrimination ‚ç∞,Wage and working conditions ‚ç∞,Freedom of association ‚ç∞,No child labour ‚ç∞,No harassment ‚ç∞,No forced or trafficked labour ‚ç∞ | MV31: Yes | MW31: Recruitment ‚ç∞,Contractors ‚ç∞,Sub-Contractors & Third-Party Contractors ‚ç∞ | MX31: No | MZ31: Yes | NA31: Yes | NB31: Identification and assessment of GHG ‚ç∞,Monitored implementation plan to reduce or minimise GHG emissions ‚ç∞ | NC31: Yes | ND31: Yes | NE31: Yes | NF31: Fair and transparent dealings with Smallholders ‚ç∞,Improved Smallholder livelihoods ‚ç∞ | NG31: FONAP Wild Asia Project: At present, four certification systems are accepted by FONAP: ISCC PLUS, Rainforest Alliance, RSB and RSPO. Even though FONAP accepts the existing certification standards for palm oil, these can only be considered adequate in that they define minimum requirements for sustainable palm oil production. Therefore, FONAP members have voluntarily accepted following add-on criteria: Stopping cultivation on peatlands and other areas with a high carbon content; Ban on the use of highly hazardous pesticides (Rotterdam and Stockholm Conventions, WHO class 1a and 1b pesticides and paraquat); Application of strict greenhouse gas reduction targets; Use of fresh fruit bunches from legal sources only. In introducing these add-on criteria, FONAP aims to take measures to ensure inclusivity of smallholders are not affected. As so, in an effort to understand the implications and applicability of these criteria on small producers, WWF Germany-FONAP commissioned Wild Asia to carry out a project titled "Impact of the FONAP Add-on Criteria on Small Producers in Malaysia" which takes place from July 2018 to November 2020. The project aims to understand the impact of the FONAP Criteria on small producers and also to understand more about opportunities for FONAP to support better production on the ground. Wild Asia is a Malaysian-based social enterprise with a goal of promoting the production of sustainable palm oil and ensuring greater traceability in the supply chain. In 2012, the Wild Asia Group Scheme (WAGS) was founded. Through this program, Wild Asia works with independent smallholder farmers to help them improve their farming practices and comply with national and international standards (such as MSPO and RSPO). WAGS is a community development initiative designed to improve the livelihoods of smallholder farmers by increasing yields and ensuring access to the international market of sustainable palm oil. To date there are 2 key outputs from this project. 1) A detailed comparative study of the efforts by FONAP against other similar initiatives in palm oil Wild Asia conducted a detailed study on comparing existing palm oil related sustainability standards (i.e: MSPO, RSPO, ISCC, RSB, RSPO Next & POIG) as well as market initiatives (i.e: FONAP, French alliance and NDPE commitments) in an effort to see how they rank against each other. Based on the review, it was concluded that only POIG and the recently endorsed 2018 RSPO P&C would likely meet the FONAP requirements. 2) A review of the FONAP criteria on an established RSPO-certified smallholder group. Wild Asia works together with 261 smallholders and provides trainings for a sustainable cultivation of palm oil. As part of the project, some of these smallholders (each with less than 40 hectares) are testing the applicability and feasibility of the additional FONAP criteria. Results on this work will be available in June 2019. In preparation of this testing phase, Wild Asia has conducted a desktop analysis in order to assess to what degree the smallholders can already meet the FONAP criteria to this date. Furthermore, Kaufland contacted Wild Asia in 2020 and purchased Wild Asia Group Scheme (WAGS) smallholder certificates, to support smallholders directly. This was done after consultation with FONAP, as it was not possible to purchase the entire palm oil volume for 2019 in accordance with the strict FONAP commitment. | NJ31: No | NK31: Yes | NL31: Yes | NM31: Yes | NN31: No | NO31: No | NP31: Awareness of RSPO in the market,Certification of smallholders,Human rights issues,Reputation of palm oil in the market,Reputation of RSPO in the market,Others | NQ31: Deforestation issues | NR31: Engagement with business partners or consumers on the use of CSPO,Promotion of CSPO outside of RSPO venues such as trade workshops or industry associations,Stakeholder engagement | NT31: kaufland.de/artenvielfalt
B32: Coop Sverige AB | C32: 3-0053-12-000-00 | D32: Retailers | E32: Ordinary | F32: Sweden | G32: Yes | H32: I retail consumer (B2C) products containing palm oil, palm kernel oil or related products | J32: Retail - with own brand products ‚ç∞ | L32: Retailer with own brand products containing PO, PKO and fractions and derivates. | M32: Europe ‚ç∞ | N32: an aggregate level (as in previous ACOP reporting cycles) | KJ32: 55 | KK32: 133 | KL32: 0 | KM32: 721 | KN32: 80 | KO32: 20 | KP32: 100 | KQ32: 0 | KR32: 0 | KS32: 0 | KT32: 0 | KU32: 0 | KV32: 0 | KW32: 0 | KX32: 0 | KY32: 0 | KZ32: 16 | LA32: 0 | LB32: 19 | LC32: 0 | LD32: 59 | LE32: 0 | LF32: 21 | LG32: 55 | LH32: 21 | LI32: 0 | LJ32: 22 | LK32: 0 | LL32: 37 | LM32: 0 | LN32: 647 | LO32: 0 | LP32: 0 | LQ32: 0 | LR32: 12 | LS32: 80 | LT32: 20 | LU32: 1 | LV32: We have not yet bought the smallholder certificate covering 2020, but will. All palm oil in our products that is not crude has been registered as derivates and fractions. | LW32: 100 | LX32: 0 | LY32: 0 | LZ32: 0 | MA32: 0 | MB32: 0 | MC32: 0 | MD32: 0 | ME32: 0 | MF32: 2011 | MG32: NA | MH32: 2011 | MI32: NA | MJ32: 2020 | MK32: Food -100% Non-food - 90% mass balance not reached because postponed negotiations with suppliers. Will reach 94 % in 2021. | ML32: NA | MM32: No | MP32: Challenging reputation of palm oil,Lack of customer demand | MR32: Continue to develop requirements for non-food products. Work for increased awareness amongst our suppliers. | MS32: Please acknowledge that you have read and understood the Shared Responsibility requirements for policy submissions. | MT32: Yes | MU32: No discrimination ‚ç∞,Wage and working conditions ‚ç∞,Freedom of association ‚ç∞,No child labour ‚ç∞,No harassment ‚ç∞,No forced or trafficked labour ‚ç∞ | MV32: Yes | MW32: Recruitment ‚ç∞,Contractors ‚ç∞,Sub-Contractors & Third-Party Contractors ‚ç∞ | MX32: Yes | MY32: Free Prior and Informed Consent (FPIC) ‚ç∞,Compensation ‚ç∞ | MZ32: Yes | NA32: Yes | NB32: Identification and assessment of GHG ‚ç∞,Monitored implementation plan to reduce or minimise GHG emissions ‚ç∞ | NC32: Yes | ND32: Yes | NE32: Yes | NF32: Fair and transparent dealings with Smallholders ‚ç∞ | NG32: Buying IS-certificates | NJ32: Yes | NK32: Yes | NL32: No | NM32: Yes | NN32: No | NO32: No | NP32: Awareness of RSPO in the market,Certification of smallholders,Reputation of palm oil in the market,Reputation of RSPO in the market,Traceability issues | NR32: Engagement with business partners or consumers on the use of CSPO,Promotion of CSPO outside of RSPO venues such as trade workshops or industry associations,Stakeholder engagement | NT32: https://www.coop.se/vart-ansvar/hallbarhetsarbete/vara-produkter/hallbar-palmolja/
B33: EDEKA ZENTRALE Stiftung & Co. KG | C33: 3-0054-12-000-00 | D33: Retailers | E33: Ordinary | F33: Germany | G33: Yes | H33: I retail consumer (B2C) products containing palm oil, palm kernel oil or related products,I operate food retail outlets that use palm oil, palm kernel oil or related products | J33: Retail - with own brand products ‚ç∞ | L33: Netto Marken-Discount Stiftung & Co. KG BUDNI Handels- und Service GmbH & Co. KG | M33: Europe ‚ç∞ | N33: by up to 5 individual subsidiaries. Members with more than 5 subsidiaries will be required to aggregate the volumes of remaining subsidiaries into a separate total. | O33: 3 | P33: EDEKA ZENTRALE Stiftung & Co. KG | Q33: Europe ‚ç∞ | R33: EDEKA ZENTRALE Stiftung & Co. KG is our Holding company. | S33: 4477 | T33: 318 | U33: 0 | V33: 6209 | W33: 35 | X33: 65 | Y33: 100 | Z33: 0 | AA33: 0 | AB33: 0 | AC33: 0 | AD33: 0 | AE33: 0 | AF33: 0 | AG33: 0 | AH33: 0 | AI33: 0 | AJ33: 0 | AK33: 8 | AL33: 0 | AM33: 0 | AN33: 0 | AO33: 0 | AP33: 4 | AQ33: 0 | AR33: 0 | AS33: 2732 | AT33: 4448 | AU33: 318 | AV33: 0 | AW33: 3469 | AX33: 25 | AY33: 0 | AZ33: 0 | BA33: 0 | BB33: 35 | BC33: 65 | BD33: 1 | BE33: Yes, we do cover gaps by using RSPO credits. | BF33: 100 | BG33: 0 | BH33: 0 | BI33: 0 | BJ33: 0 | BK33: 0 | BL33: 0 | BM33: 0 | BN33: 0 | BO33: Netto Marken-Discount Stiftung & Co. KG | BP33: Europe ‚ç∞ | BQ33: Discount supermarket company in Germany. | BR33: 4468 | BS33: 528 | BT33: 0 | BU33: 5941 | BV33: 35 | BW33: 65 | BX33: 100 | BY33: 0 | BZ33: 0 | CA33: 0 | CB33: 0 | CC33: 0 | CD33: 0 | CE33: 0 | CF33: 0 | CG33: 0 | CH33: 0 | CI33: 0 | CJ33: 10 | CK33: 0 | CL33: 0 | CM33: 0 | CN33: 0 | CO33: 63 | CP33: 5 | CQ33: 0 | CR33: 2089 | CS33: 4363 | CT33: 523 | CU33: 0 | CV33: 3842 | CW33: 42 | CX33: 0 | CY33: 0 | CZ33: 0 | DA33: 35 | DB33: 65 | DC33: 1 | DD33: Yes, we do cover gaps by using RSPO credits. | DE33: 100 | DF33: 0 | DG33: 0 | DH33: 0 | DI33: 0 | DJ33: 0 | DK33: 0 | DL33: 0 | DM33: 0 | DN33: BUDNI Handels- und Service GmbH & Co. KG | DO33: Europe ‚ç∞ | DP33: Drug store in Germany | DQ33: 1 | DR33: 1 | DS33: 0 | DT33: 107 | DU33: 35 | DV33: 65 | DW33: 100 | DX33: 0 | DY33: 0 | DZ33: 0 | EA33: 0 | EB33: 0 | EC33: 0 | ED33: 0 | EE33: 0 | EF33: 0 | EG33: 0 | EH33: 0 | EI33: 1 | EJ33: 0 | EK33: 0 | EL33: 0 | EM33: 0 | EN33: 0 | EO33: 0 | EP33: 0 | EQ33: 103 | ER33: 0 | ES33: 0 | ET33: 0 | EU33: 0 | EV33: 0 | EW33: 0 | EX33: 0 | EY33: 0 | EZ33: 35 | FA33: 65 | FB33: 0.9541 | FC33: Yes, we do cover gaps by using RSPO credits. | FD33: 100 | FE33: 0 | FF33: 0 | FG33: 0 | FH33: 0 | FI33: 0 | FJ33: 0 | FK33: 0 | FL33: 0 | JK33: =S33+BR33+DQ33+FP33+HO33 -> 8946 | JL33: =T33+BS33+DR33+FQ33+HP33 -> 847 | JM33: =U33+BT33+DS33+FR33+HQ33 -> 0 | JN33: 12182 | JO33: =AH33+CG33+EF33+FT33+ID33 -> 0 | JP33: =AI33+CH33+EG33+FU33+IE33 -> 0 | JQ33: =AJ33+CI33+EH33+FV33+IF33 -> 0 | JR33: =AK33+CJ33+EI33+FW33+IG33 -> 19 | JS33: =AL33+CK33+EJ33+FX33+IH33 -> 0 | JT33: =AM33+CL33+EK33+FY33+II33 -> 0 | JU33: =AN33+CM33+EL33+FZ33+IJ33 -> 0 | JV33: =AO33+CN33+EM33+GA33+IK33 -> 0 | JW33: =AP33+CO33+EN33+GB33+IL33 -> 67 | JX33: =AQ33+CP33+EO33+GC33+IM33 -> 5 | JY33: =AR33+CQ33+EP33+GD33+IN33 -> 0 | JZ33: =AS33+CR33+EQ33+GE33+IO33 -> 4924 | KA33: =AT33+CS33+ER33+GF33+IP33 -> 8811 | KB33: =AU33+CT33+ES33+GG33+IQ33 -> 841 | KC33: =AV33+CU33+ET33+GH33+IR33 -> 0 | KD33: =AW33+CV33+EU33+GI33+IS33 -> 7311 | KE33: =AX33+CW33+EV33+GJ33+IT33 -> 67 | KF33: =AY33+CX33+EW33+GK33+IU33 -> 0 | KG33: =AZ33+CY33+EX33+GL33+IV33 -> 0 | KH33: =BA33+CZ33+EY33+GM33+IW33 -> 0 | KI33: =SUM(JO33:KH33)/SUM(JK33:JN33) -> 1.003185438 | MF33: 2012 | MG33: n/a | MH33: 2014 | MI33: n/a | MJ33: 2020 | MK33: n/a | ML33: n/a | MM33: Yes | MN33: Germany | MO33: 2013 | MR33: Using sustainable palm oil is a prerequisite of EDEKAs own brand products containing palm oil. It is one of the committed aims we agreed upon with our partner for Sustainability, the WWF. To meet this requirement, our individual product specifications have been adapted, allowing our suppliers only to use sustainable palm oil. Furthermore, EDEKA is a full member of the German Forum for Sustainable Palm Oil (FONAP). EDEKA¬¥s aim is to achieve as soon as possible 100% segregated palm oil in our private label products. Therefore we are currently engaged in an FONAP working group to develope feasible goals in a step-by-step approach. This includes the inclusion of additional requirements, which are as follows: - No illegal FFBs - Disclosure of GHG gas emissions - No peat-land and HCV land-use change - No use of critical pesticides e.g. WHO class 1 a & b Furthermore we started a smallholder Project within our Membership in FONAP. In addition, EDEKA has set itself the target of achieving at least 30 percent of the palm oil used in EDEKA own products by 2020, which are in line with the verification of the Palm Oil Innovation Group (POIG) | MS33: Please acknowledge that you have read and understood the Shared Responsibility requirements for policy submissions. | MT33: Yes | MU33: No discrimination ‚ç∞,Wage and working conditions ‚ç∞,Freedom of association ‚ç∞,No child labour ‚ç∞,No harassment ‚ç∞,No forced or trafficked labour ‚ç∞ | MV33: Yes | MW33: Recruitment ‚ç∞,Contractors ‚ç∞,Sub-Contractors & Third-Party Contractors ‚ç∞ | MX33: Yes | MY33: Free Prior and Informed Consent (FPIC) ‚ç∞ | MZ33: Yes | NA33: Yes | NB33: Identification and assessment of GHG ‚ç∞,Monitored implementation plan to reduce or minimise GHG emissions ‚ç∞ | NC33: No | NE33: Yes | NF33: Fair and transparent dealings with Smallholders ‚ç∞,Improved Smallholder livelihoods ‚ç∞ | NG33: We are member of The Forum for Sustainable Palm Oil (FONAP). The FONAP runs a smallholder Project. As a member we are also participating in this Project. | NJ33: Yes | NK33: Yes | NL33: Yes | NM33: Yes | NN33: No | NO33: No | NP33: Awareness of RSPO in the market,Certification of smallholders,Reputation of palm oil in the market,Reputation of RSPO in the market,Traceability issues,Others | NQ33: Environmental issues and deforestation. | NR33: Engagement with business partners or consumers on the use of CSPO,Engagement with government agencies,Promotion of physical CSPO,Stakeholder engagement | NT33: https://www.edeka.de/nachhaltigkeit/unsere-wwfpartnerschaft/ themenschwerpunkte/wwf_pandahaus_themenscherpunkte.jsp https://verbund.edeka/verantwortung/projekte-partnerschaften/√∂kologischesengagement/ partnerschaftmit- dem-wwf/ https://verbund.edeka/verbund/verantwortung/√∂kologischesengagement/ wwf/edeka_fortschrittsbericht_2019.pdf https://verbund.edeka/verbund/presse/mediathek/edeka_gesch√§ftsbericht-2019.pdf
B34: Loblaws Inc. | C34: 3-0056-13-000-00 | D34: Retailers | E34: Ordinary | F34: Canada | G34: Yes | H34: I retail consumer (B2C) products containing palm oil, palm kernel oil or related products | J34: Retail - with own brand products ‚ç∞ | L34: Loblaw Companies Limited sells both private labeland manufacturer branded products across food and non food categories in Canada. | M34: North America ‚ç∞ | N34: an aggregate level (as in previous ACOP reporting cycles) | KJ34: 3533.94 | KK34: 406.62 | KL34: 0 | KM34: 322.41 | KN34: 80 | KO34: 20 | KP34: 0 | KQ34: 100 | KR34: 0 | KS34: 0 | KT34: 0 | KU34: 0 | KV34: 0 | KW34: 0 | KX34: 0 | KY34: 1088.16 | KZ34: 135.19 | LA34: 0 | LB34: 274.66 | LC34: 0 | LD34: 0 | LE34: 0 | LF34: 0 | LG34: 1700.43 | LH34: 262.13 | LI34: 0 | LJ34: 47.62 | LK34: 741.21 | LL34: 9.29 | LM34: 0 | LN34: 0.13 | LO34: 4.14 | LP34: 0 | LQ34: 0 | LR34: 0 | LS34: 80 | LT34: 20 | LU34: 1 | LW34: 0 | LX34: 100 | LY34: 0 | LZ34: 0 | MA34: 0 | MB34: 0 | MC34: 0 | MD34: 0 | ME34: 0 | MF34: 2015 | MG34: NA | MH34: 2016 | MI34: NA | MJ34: 2025 | MK34: NA | ML34: NA | MM34: No | MP34: Costs of changing labels,Lack of customer demand,Limited label space,Low consumer awareness | MR34: We will continue to engage in discussions with key control brand suppliers not already using physical supply of certified sustainable palm oil (CSPO) to encourage them to develop time-bound plans to convert to physical supply of sustainable palm oil. The use of CSPO is incorporated into our control brand ingredient standards to which all control brand products must adhere. We will also continue to track the increased use of CSPO in our control brand supply chain | MS34: Please acknowledge that you have read and understood the Shared Responsibility requirements for policy submissions. | MT34: Yes | MU34: No discrimination ‚ç∞,Wage and working conditions ‚ç∞,Freedom of association ‚ç∞,No child labour ‚ç∞,No harassment ‚ç∞,No forced or trafficked labour ‚ç∞ | MV34: Yes | MW34: Recruitment ‚ç∞,Contractors ‚ç∞,Sub-Contractors & Third-Party Contractors ‚ç∞ | MX34: No | MZ34: Yes | NA34: Yes | NB34: Identification and assessment of GHG ‚ç∞,Monitored implementation plan to reduce or minimise GHG emissions ‚ç∞ | NC34: Yes | ND34: Yes | NE34: No | NH34: No | NI34: Loblaw is retailer of control brand products,and we rely on our control brand suppliers who buy palm oil ingredients for our products. | NJ34: Yes | NK34: Yes | NL34: No | NM34: Yes | NN34: No | NO34: Yes | NP34: Awareness of RSPO in the market,Competition with non-RSPO members,High costs in achieving or adhering to certification,Low usage of palm oil | NR34: Engagement with business partners or consumers on the use of CSPO,Promotion of physical CSPO,Stakeholder engagement | NT34: https://www.loblaw.ca/en/responsibility.html
B35: The ICA Group (ICA AB) | C35: 3-0058-13-000-00 | D35: Retailers | E35: Ordinary | F35: Sweden | G35: Yes | H35: I retail consumer (B2C) products containing palm oil, palm kernel oil or related products | J35: Retail - with own brand products ‚ç∞ | L35: ICA Sweden (with approx 1300 independent retailers), Rimi Baltic, Apotek Hj√§rtat | M35: Europe ‚ç∞ | N35: an aggregate level (as in previous ACOP reporting cycles) | KJ35: 1894 | KK35: 0 | KL35: 0 | KM35: 0 | KP35: 100 | KQ35: 0 | KR35: 0 | KS35: 0 | KT35: 0 | KU35: 0 | KV35: 0 | KW35: 0 | KX35: 0 | KY35: 0 | KZ35: 0 | LA35: 0 | LB35: 0 | LC35: 0 | LD35: 0 | LE35: 0 | LF35: 0 | LG35: 19 | LH35: 0 | LI35: 0 | LJ35: 0 | LK35: 1875 | LL35: 0 | LM35: 0 | LN35: 0 | LO35: 0 | LP35: 0 | LQ35: 0 | LR35: 0 | LU35: 1 | LW35: 100 | LX35: 0 | LY35: 0 | LZ35: 0 | MA35: 0 | MB35: 0 | MC35: 0 | MD35: 0 | ME35: 0 | MF35: 2007 | MH35: 2015 | MJ35: 2017 | ML35: For 2020 reporting the scope of reporting from ICA Gruppens Opco¬¥s has increased compared to previous years. Answers above refer to ICA Sweden, Apotek Hj√§rtat and Rimi Baltic food corporate brand products. In ICA Sweden and Apotek Hj√§rtat "Brand criteria" for all food products include demands on CSPO, from segregated supply chains. At Rimi Baltic the target is 100% CSPO through physical supply chains in own brand products by 2020. Reporting for Nearfood and Non-food products will follow coming years. | MM35: No | MP35: Challenging reputation of palm oil,Confusion among end-consumers,Lack of customer demand | MR35: To ensure a compleate coverage of palmoil used in corporate brands ICA Gruppen will work to include Nearfood and Non-food products from all OpCo¬¥s in reporting upcoming years. | MS35: Please acknowledge that you have read and understood the Shared Responsibility requirements for policy submissions. | MT35: Yes | MU35: No discrimination ‚ç∞,Wage and working conditions ‚ç∞,Freedom of association ‚ç∞,No child labour ‚ç∞,No harassment ‚ç∞,No forced or trafficked labour ‚ç∞ | MV35: Yes | MW35: Recruitment ‚ç∞,Contractors ‚ç∞ | MX35: No | MZ35: Yes | NA35: Yes | NB35: Identification and assessment of GHG ‚ç∞,Monitored implementation plan to reduce or minimise GHG emissions ‚ç∞ | NC35: Yes | ND35: No | NE35: No | NH35: No | NI35: We require of our suppliers of private label products to set up rules for palm oil (based on sustainable palmoil) hence we do not have any cooperations of our own. | NJ35: Yes | NK35: Yes | NL35: No | NM35: Yes | NN35: No | NO35: No | NP35: Others | NQ35: There is a resistance towards palmoil in general both from consumers and from some NGO¬¥s. Media debates on 3-MCPD. Awareness of palmoil in nearfood and non-food is low and suppliers indicate low interest in palmoil issues. | NR35: Others | NS35: ICA Sweden is a member in the Swedish initiative "Sustainable food supply chain" facilitated by WWF Sweden, where discussions on palmoil has taken place. One of the requirements that has been decided on is RSPO certified palm oil in all food products. In Sweden discussions are taking place in the retail sector (retailers, suppliers etc) to increase the work with both palmoil and soy. The issue is also discussed in Consumer Goods Forum (mainly in connection to social issues). | NT35: On our swedish website towards consumers: https://www.ica.se/ica-tar-ansvar/ravaror/palmolja/
B36: Foodstuffs Own Brands Ltd | C36: 3-0059-14-000-00 | D36: Retailers | E36: Ordinary | F36: New Zealand | G36: Yes | H36: I retail consumer (B2C) products containing palm oil, palm kernel oil or related products | J36: Retail - with own brand products ‚ç∞,Retail wholesalers ‚ç∞ | L36: Foodstuffs Own Brands Ltd is jointly owned by the two regional co-operatives (Foodstuffs North Island and Foodstuffs South Island) and operates on behalf of both to centrally represent the following main activities: 1.Procurement and marketing of private label products 2.Management and co-ordination of the national general merchandise programme 3.Commercial activities relating to the proprietary branded suppliers particularly Supplier Trading Terms, Supplier Price Adjustments and strategic procurement. Foodstuffs Own Brands Ltd does not buy, sell, store or physically distribute product. | M36: Rest of the World ‚ç∞ | N36: an aggregate level (as in previous ACOP reporting cycles) | KJ36: 994 | KK36: 8 | KL36: 0 | KM36: 822 | KN36: 84 | KO36: 16 | KP36: 0 | KQ36: 0 | KR36: 0 | KS36: 0 | KT36: 0 | KU36: 0 | KV36: 0 | KW36: 0 | KX36: 100 | KY36: 1 | KZ36: 0 | LA36: 0 | LB36: 0 | LC36: 0 | LD36: 0 | LE36: 0 | LF36: 0 | LG36: 695 | LH36: 7 | LI36: 0 | LJ36: 642 | LK36: 298 | LL36: 1 | LM36: 0 | LN36: 176 | LO36: 0 | LP36: 0 | LQ36: 0 | LR36: 4 | LS36: 84 | LT36: 16 | LU36: 1 | LV36: N/A | LW36: 0 | LX36: 0 | LY36: 0 | LZ36: 0 | MA36: 0 | MB36: 0 | MC36: 0 | MD36: 0 | ME36: 100 | MF36: 2014 | MG36: N/A | MH36: 2017 | MI36: N/A | MJ36: 2017 | MK36: 2020 is the first year we have had full visibility of the supply chain data for our product range. We have currently 99.9% from physical supply chain options. The remainder is RSPO credits from Mill/Crusher. | ML36: N/A | MM36: Yes | MN36: New Zealand | MO36: 2016 | MR36: Any new suppliers, or suppliers of new or amended products will be questioned about any potential ingredients which contain palm oil or derivatives. Any palm oil in use must be from certified source, physical sourcing preferred (MB, Identity Preserved or Segregated). Carry out a regular audit on our palm oil containing products to ensure the data remains up to date. | MS36: Please acknowledge that you have read and understood the Shared Responsibility requirements for policy submissions. | MT36: No | MV36: No | MX36: No | MZ36: No | NA36: No | NC36: No | NE36: No | NH36: No | NI36: We do not manufacture product. All palm oil ingredients are sourced and purchased by the manufacturers of the products. We can encourage them to support oil palm independent smallholders. | NJ36: No | NK36: No | NL36: No | NM36: No | NN36: No | NO36: No | NP36: No challenges faced | NR36: Engagement with business partners or consumers on the use of CSPO,Others | NS36: RSPO commitment documented on Foodstuffs website (in English). Our Customer Services team have details of our programme which they share with any consumers who enquire about our palm oil policies. | NT36: https://www.foodstuffs.co.nz/corporate-responsibility/sustainability-leadership/certification/
B37: DAVIS TRADING COMPANY LIMITED | C37: 3-0060-14-000-00 | D37: Retailers | E37: Ordinary | F37: New Zealand | G37: Yes | H37: I retail consumer (B2C) products containing palm oil, palm kernel oil or related products | J37: Retail wholesalers ‚ç∞ | L37: Davis is an importer of refined oil and products that contain palm oil as an ingredient. For some products we will pack bulk products into smaller pack sizes (intended for catering and retail) and on-sell to various customers. | M37: Rest of the World ‚ç∞ | N37: an aggregate level (as in previous ACOP reporting cycles) | KJ37: 0 | KK37: 22.6 | KL37: 0 | KM37: 3353.8 | KN37: 7 | KO37: 93 | KP37: 0 | KQ37: 0 | KR37: 8 | KS37: 92 | KT37: 0 | KU37: 0 | KV37: 0 | KW37: 0 | KX37: 0 | KY37: 0 | KZ37: 0 | LA37: 0 | LB37: 0 | LC37: 0 | LD37: 0 | LE37: 0 | LF37: 0 | LG37: 0 | LH37: 22.6 | LI37: 0 | LJ37: 3353.8 | LK37: 0 | LL37: 0 | LM37: 0 | LN37: 0 | LO37: 0 | LP37: 0 | LQ37: 0 | LR37: 0 | LS37: 7 | LT37: 93 | LU37: 1 | LV37: Currently all products are MB certified. If gaps had been present in uptake, RSPO credits would be used to cover gaps. Davis is planning to trade SG palm kernel oil derived products in 2021, which is a change for the business. | LW37: 0 | LX37: 0 | LY37: 8 | LZ37: 92 | MA37: 0 | MB37: 0 | MC37: 0 | MD37: 0 | ME37: 0 | MF37: 2007 | MH37: 2007 | MJ37: 2007 | MM37: No | MP37: Lack of customer demand | MR37: We will continue to ensure compliance to the RSPO standard through our supplier monitoring program, specification management, monitoring of palm oil usage within the New Zealand market. For the 2021 period Davis has begun to import SG certified product (historically only MB was handled). For locally sourced product containing Palm Oil, we will continue to support suppliers that use RSPO certified palm oil products. We will continue to provide training to our sales staff to promote our products that are RSPO certified. | MS37: Please acknowledge that you have read and understood the Shared Responsibility requirements for policy submissions. | MT37: No | MV37: No | MX37: No | MZ37: Yes | NA37: No | NC37: Yes | ND37: Yes | NE37: No | NH37: Yes | NJ37: No | NK37: Yes | NL37: Yes | NM37: No | NN37: No | NO37: No | NP37: Awareness of RSPO in the market,Competition with non-RSPO members,Reputation of palm oil in the market | NR37: Engagement with business partners or consumers on the use of CSPO
B38: Etablissements Fr. Colruyt - Etablissementen Fr. Colruyt | C38: 3-0063-14-000-00 | D38: Retailers | E38: Ordinary | F38: Belgium | G38: Yes | H38: I retail consumer (B2C) products containing palm oil, palm kernel oil or related products | J38: Retail - with own brand products ‚ç∞ | L38: Colruyt Laagste Prijzen Spare Retail Group Solucious Fine Food Meat | M38: Europe ‚ç∞ | N38: an aggregate level (as in previous ACOP reporting cycles) | KJ38: 4947 | KK38: 485 | KL38: 0 | KM38: 0 | KP38: 100 | KQ38: 0 | KR38: 0 | KS38: 0 | KT38: 0 | KU38: 0 | KV38: 0 | KW38: 0 | KX38: 0 | KY38: 0 | KZ38: 0 | LA38: 0 | LB38: 0 | LC38: 112 | LD38: 225 | LE38: 0 | LF38: 0 | LG38: 634 | LH38: 113 | LI38: 0 | LJ38: 0 | LK38: 4201 | LL38: 147 | LM38: 0 | LN38: 0 | LO38: 0 | LP38: 0 | LQ38: 0 | LR38: 0 | LU38: 1 | LV38: We negociate with our suppliers to opt for physcial chains (preferbaly SEG, esp for food). If we need to buy credits, we decided last to purchase credits that support independent smallholders | LW38: 100 | LX38: 0 | LY38: 0 | LZ38: 0 | MA38: 0 | MB38: 0 | MC38: 0 | MD38: 0 | ME38: 0 | MF38: 2013 | MG38: targets have been met | MH38: 2015 | MI38: targets met | MJ38: 2020 | MK38: we have several smaller suppliers (that are using less than a ton palmoil/year) that are unable (due to cost or knowledge) or unwilling to change. Despite regular exchange and enormous progress we have not yet been able to make all our suppliers switch. We keep working on this during 2021. We are however considering installing a cut off percentage below which we will work with credits to ensure a reasonable ROI. Some of our suppliers are using very small quantities of palmoil (eg 50kg/year) and a physical supply chain is a big hurdle to take for them. | ML38: They cover all our subsidiaries/countries we sell in. | MM38: Yes | MN38: Belgium ,France ,Luxembourg | MO38: 2016 | MR38: Our own manufacturing unit (VLEVICO) (cheese, salads, meatdishes,...) has been certified. We will continue with our suppliers that still do not use physical chains to switch to physical RSPO supply chains: SEG for food and MB for non food. Yearly we send out an e mail to all our suppliers that use palmoil as an ingredient (we talk about several hundreds of products) to check if they use RSPO palmoil. We check their auditing proofs and if there is a problem we work with them to swithc to RSPO palmoil. We continue to work with our suppliers to decrease the use of certificates. | MS38: Please acknowledge that you have read and understood the Shared Responsibility requirements for policy submissions. | MT38: Yes | MU38: No discrimination ‚ç∞,Wage and working conditions ‚ç∞,Freedom of association ‚ç∞,No child labour ‚ç∞,No harassment ‚ç∞,No forced or trafficked labour ‚ç∞ | MV38: Yes | MW38: Recruitment ‚ç∞,Contractors ‚ç∞,Sub-Contractors & Third-Party Contractors ‚ç∞ | MX38: No | MZ38: Yes | NA38: Yes | NB38: Identification and assessment of GHG ‚ç∞,Monitored implementation plan to reduce or minimise GHG emissions ‚ç∞ | NC38: Yes | ND38: Yes | NE38: Yes | NF38: Improved Smallholder livelihoods ‚ç∞ | NG38: buying smallholder credits | NJ38: No | NK38: Yes | NL38: Yes | NM38: Yes | NN38: No | NO38: Yes | NP38: Awareness of RSPO in the market,Difficulties in the certification process,High costs in achieving or adhering to certification,Insufficient demand for RSPO-certified palm oil,Low usage of palm oil,Reputation of RSPO in the market,Others | NQ38: all our bigger suppliers have switched (we have taken the cost on us, translated in a loss of margin) Our smaller suppliers are often faced with numerous hurdles to get certified (they do not understand the system, do not want to invest time or money, etc..) or with a lack of demand (except for us). Often we are talking about small volumes. | NR38: Engagement with business partners or consumers on the use of CSPO,Engagement with government agencies,Promotion of physical CSPO,Stakeholder engagement,Others | NS38: We take are role at heart and we create demand for RSPO palmoil in our products by engagin with our suppliers to swithc to RSPO palm oil, explaining the why and supporting the switch. | NT38: https://palmoilscorecard.panda.org/scores/casestudy/colruyt-group
